Workbook

Sheet Summary Table
D1: Tab # | E1: Manufacturer | F1: Model | G1: Test Method | H1: Preliminary | I1: Final | J1: AK List Status | K1: Why
D2: 1 | E2: ='FPI-F2450'!$B$2 -> FPI / Regency Fireplace Products | F2: ='FPI-F2450'!$B$3 -> F2450 | G2: ASTM E3053 | H2: ='FPI-F2450'!$B$4 -> Disapproved | I2: ='FPI-F2450'!$B$6 -> Disapproved | J2: Disapproved List | K2: =SUBSTITUTE('FPI-F2450'!$I$6,"Basis: ","") -> ESA, ES1, IR, NR
A3: Start Sheet Number: | B3: 6 | D3: 2 | E3: ='FPI-I2450M'!$B$2 -> FPI / Regency Fireplace Products | F3: ='FPI-I2450M'!$B$3 -> I2450M, HI2450M | G3: ASTM E3053 | H3: ='FPI-I2450M'!$B$4 -> Disapproved | I3: ='FPI-I2450M'!$B$6 -> Pending - Major | J3: No Determination List | K3: =SUBSTITUTE('FPI-I2450M'!$I$6,"Basis: ","") -> IR, MD, NR
D4: 3 | E4: ='FPI-F2500'!$B$2 -> FPI / Regency Fireplace Products | F4: ='FPI-F2500'!$B$3 -> F2500 | G4: ASTM E3053 | H4: ='FPI-F2500'!$B$4 -> Disapproved | I4: ='FPI-F2500'!$B$6 -> Pending - Major | J4: Approved List - Pending | K4: =SUBSTITUTE('FPI-F2500'!$I$6,"Basis: ","") -> IR, IDU
D5: 4 | E5: ='FPI-I2500'!$B$2 -> FPI / Regency Fireplace Products | F5: ='FPI-I2500'!$B$3 -> I2500 | G5: ASTM E3053 | H5: ='FPI-I2500'!$B$4 -> Disapproved | I5: ='FPI-I2500'!$B$6 -> Pending - Major | J5: No Determination List | K5: =SUBSTITUTE('FPI-I2500'!$I$6,"Basis: ","") -> IR, NR
D6: 5 | E6: ='FPI-CI2700'!$B$2 -> FPI / Regency Fireplace Products | F6: ='FPI-CI2700'!$B$3 -> CI2700, HI500 | G6: ASTM E3053 | H6: ='FPI-CI2700'!$B$4 -> Disapproved | I6: ='FPI-CI2700'!$B$6 -> Disapproved | J6: Disapproved List | K6: =SUBSTITUTE('FPI-CI2700'!$I$6,"Basis: ","") -> ES1, IR, MD, NR
D7: 6 | E7: ='FPI-F3500'!$B$2 -> FPI / Regency Fireplace Products | F7: ='FPI-F3500'!$B$3 -> F3500 | G7: ASTM E3053 | H7: ='FPI-F3500'!$B$4 -> Disapproved | I7: ='FPI-F3500'!$B$6 -> Pending - Major | J7: No Determination List | K7: =SUBSTITUTE('FPI-F3500'!$I$6,"Basis: ","") -> IDU, IR, NR
D8: 7 | E8: ='FPI-F5200'!$B$2 -> FPI / Regency Fireplace Products | F8: ='FPI-F5200'!$B$3 -> F5200 | G8: ASTM E3053 | H8: ='FPI-F5200'!$B$4 -> Disapproved | I8: ='FPI-F5200'!$B$6 -> Disapproved | J8: Disapproved List | K8: =SUBSTITUTE('FPI-F5200'!$I$6,"Basis: ","") -> ES1, IR, NR
D9: 8 | E9: ='FPI-I1150'!$B$2 -> FPI / Fireplace Products International Limited | F9: ='FPI-I1150'!$B$3 -> F1150, I1150 | G9: ASTM E3053 | H9: ='FPI-I1150'!$B$4 -> Requires a more thorough review | I9: ='FPI-I1150'!$B$6 -> Pending - Major | J9: No Determination List | K9: =SUBSTITUTE('FPI-I1150'!$I$6,"Basis: ","") -> IR, NR
D10: 9 | E10: ='Kuma-K180'!$B$2 -> Kuma Stove and Iron Works | F10: ='Kuma-K180'!$B$3 -> K-180 Series, Aspen LE, Tamarack LE, Abderdeen LE, Alpine LE | G10: ASTM E3053 | H10: ='Kuma-K180'!$B$4 -> Disapproved | I10: ='Kuma-K180'!$B$6 -> Disapproved | J10: Disapproved List | K10: =SUBSTITUTE('Kuma-K180'!$I$6,"Basis: ","") -> ES1, IR, NR
D11: 10 | E11: ='Kuma-K250'!$B$2 -> Kuma Stove and Iron Works | F11: ='Kuma-K250'!$B$3 -> K-250 Series, Ashwood LE, Wood Classic LE, Cambridge LE, Cascade LE | G11: ASTM E3053 | H11: ='Kuma-K250'!$B$4 -> Disapproved | I11: ='Kuma-K250'!$B$6 -> Pending - Major | J11: No Determination List | K11: =SUBSTITUTE('Kuma-K250'!$I$6,"Basis: ","") -> IDU, IR, NR
D12: 11 | E12: ='Iron Strike-S160AGL'!$B$2 -> Innovative Hearth Products | F12: ='Iron Strike-S160AGL'!$B$3 -> S160 AGL, S160TGL, C160AGL, T160AGL, WX2016 | G12: ASTM E3053 | H12: ='Iron Strike-S160AGL'!$B$4 -> Disapproved | I12: ='Iron Strike-S160AGL'!$B$6 -> Disapproved | J12: Disapproved List | K12: =SUBSTITUTE('Iron Strike-S160AGL'!$I$6,"Basis: ","") -> ESA, ES1, IR, IDU, NR
D13: 12 | E13: ='Iron Strike-S210AGL'!$B$2 -> Innovative Hearth products | F13: ='Iron Strike-S210AGL'!$B$3 -> S210AGL, C210TGL, C210AGL, T2100GL, WSX2021WS-B | G13: ASTM E3053 | H13: ='Iron Strike-S210AGL'!$B$4 -> Disapproved | I13: ='Iron Strike-S210AGL'!$B$6 -> Pending - Major | J13: No Determination List | K13: =SUBSTITUTE('Iron Strike-S210AGL'!$I$6,"Basis: ","") -> IR, NR
D14: 13 | E14: ='Travis-Lopi Cape'!$B$2 -> Travis Industries | F14: ='Travis-Lopi Cape'!$B$3 -> Lopi Cape Cod Hybrid-Fyre | G14: ASTM E3053 | H14: ='Travis-Lopi Cape'!$B$4 -> Disapproved | I14: ='Travis-Lopi Cape'!$B$6 -> Disapproved | J14: Disapproved List | K14: =SUBSTITUTE('Travis-Lopi Cape'!$I$6,"Basis: ","") -> M1, IDU, IR, NR
D15: 14 | E15: ='IHP-Montecito-B'!$B$2 -> Innovative Hearth products | F15: ='IHP-Montecito-B'!$B$3 -> Montecito-B, Bainbridge (LVCFAR), WCT6920, WCT4920, WRT4920 | G15: ASTM E3053 | H15: ='IHP-Montecito-B'!$B$4 -> Requires a more thorough review | I15: ='IHP-Montecito-B'!$B$6 -> Pending - Major | J15: No Determination List | K15: =SUBSTITUTE('IHP-Montecito-B'!$I$6,"Basis: ","") -> IDU, IR, NR
D16: 15 | E16: ='Travis-Evergreen'!$B$2 -> Travis Industries | F16: ='Travis-Evergreen'!$B$3 -> Evergreen | G16: ASTM E3053 | H16: ='Travis-Evergreen'!$B$4 -> Disapproved | I16: ='Travis-Evergreen'!$B$6 -> Disapproved | J16: Disapproved List | K16: =SUBSTITUTE('Travis-Evergreen'!$I$6,"Basis: ","") -> ES1, IDU, IR, NR
D17: 16 | E17: ='Travis-Answer'!$B$2 -> Travis Industries | F17: ='Travis-Answer'!$B$3 -> Answer | G17: ASTM E3053 | H17: ='Travis-Answer'!$B$4 -> Disapproved | I17: ='Travis-Answer'!$B$6 -> Pending - Major | J17: No Determination List | K17: =SUBSTITUTE('Travis-Answer'!$I$6,"Basis: ","") -> IDU, IR, NR
D18: 17 | E18: ='Travis-Endeavor'!$B$2 -> Travis Industries | F18: ='Travis-Endeavor'!$B$3 -> Endeavor | G18: ASTM E3053 | H18: ='Travis-Endeavor'!$B$4 -> Disapproved | I18: ='Travis-Endeavor'!$B$6 -> Disapproved | J18: Disapproved List | K18: =SUBSTITUTE('Travis-Endeavor'!$I$6,"Basis: ","") -> ES1, IDU, IR, NR
D19: 18 | E19: ='Travis-Liberty'!$B$2 -> Travis Industries | F19: ='Travis-Liberty'!$B$3 -> Liberty | G19: ASTM E3053 | H19: ='Travis-Liberty'!$B$4 -> Disapproved | I19: ='Travis-Liberty'!$B$6 -> Disapproved | J19: Disapproved List | K19: =SUBSTITUTE('Travis-Liberty'!$I$6,"Basis: ","") -> ESA, ES1, IR, NR
D20: 19 | E20: ='Travis-42Apex'!$B$2 -> Travis Industries | F20: ='Travis-42Apex'!$B$3 -> 42 Apex | G20: ASTM E3053 | H20: ='Travis-42Apex'!$B$4 -> Disapproved | I20: ='Travis-42Apex'!$B$6 -> Disapproved | J20: No Determination List | K20: =SUBSTITUTE('Travis-42Apex'!$I$6,"Basis: ","") -> NTR, IDU, NR, data in question
D21: 20 | E21: ='Travis-44Elit'!$B$2 -> Travis Industries | F21: ='Travis-44Elit'!$B$3 -> 44 Elite | G21: ASTM E3053 | H21: ='Travis-44Elit'!$B$4 -> Disapproved | I21: ='Travis-44Elit'!$B$6 -> Disapproved | J21: Disapproved List | K21: =SUBSTITUTE('Travis-44Elit'!$I$6,"Basis: ","") -> IDU, IR, NR
D22: 21 | E22: ='Travis-36Elit'!$B$2 -> Travis Industries | F22: ='Travis-36Elit'!$B$3 -> 36 Elite | G22: ASTM E3053 | H22: ='Travis-36Elit'!$B$4 -> Disapproved | I22: ='Travis-36Elit'!$B$6 -> Disapproved | J22: Disapproved List | K22: =SUBSTITUTE('Travis-36Elit'!$I$6,"Basis: ","") -> ES1, IR, NR
D23: 22 | E23: ='Travis-Rockport'!$B$2 -> Travis Industries | F23: ='Travis-Rockport'!$B$3 -> Lopi Rockport Hybrid-Frye | G23: EPA M28R | H23: ='Travis-Rockport'!$B$4 -> Disapproved | I23: ='Travis-Rockport'!$B$6 -> Disapproved | J23: Disapproved List | K23: =SUBSTITUTE('Travis-Rockport'!$I$6,"Basis: ","") -> ES1, IR, NR
D24: 23 | E24: ='Travis-MediumFlush'!$B$2 -> Travis Industries | F24: ='Travis-MediumFlush'!$B$3 -> Medium Flush Wood Hybrid Frye Insert | G24: ASTM E3053 | H24: ='Travis-MediumFlush'!$B$4 -> Disapproved | I24: ='Travis-MediumFlush'!$B$6 -> Disapproved | J24: Disapproved List | K24: =SUBSTITUTE('Travis-MediumFlush'!$I$6,"Basis: ","") -> ES1, IDU, IR, NR
D25: 24 | E25: ='Travis - Large Flush Insert'!$B$2 -> Travis Industries | F25: ='Travis - Large Flush Insert'!$B$3 -> Large Flush Wood Insert | G25: ASTM E3053 | H25: ='Travis - Large Flush Insert'!$B$4 -> Disapproved | I25: ='Travis - Large Flush Insert'!$B$6 -> Disapproved | J25: Disapproved List | K25: =SUBSTITUTE('Travis - Large Flush Insert'!$I$6,"Basis: ","") -> ES1, IDU, IR, NR
D26: 25 | E26: ='Travis-LargeFlush'!$B$2 -> Travis Industries | F26: ='Travis-LargeFlush'!$B$3 -> Large Flush Hybrid Frye | G26: ASTM E3053 | H26: ='Travis-LargeFlush'!$B$4 -> Disapproved | I26: ='Travis-LargeFlush'!$B$6 -> Disapproved | J26: Disapproved List | K26: =SUBSTITUTE('Travis-LargeFlush'!$I$6,"Basis: ","") -> ES1, MD, IDU, IR, NR, data in question
D27: 26 | E27: ='H&H-Pioneer III'!$B$2 -> HHT/Hearth & Home Technologies | F27: ='H&H-Pioneer III'!$B$3 -> Quadra Fire Pioneer - III | G27: ASTM E3053 | H27: ='H&H-Pioneer III'!$B$4 -> Disapproved | I27: ='H&H-Pioneer III'!$B$6 -> Disapproved | J27: Disapproved List | K27: =SUBSTITUTE('H&H-Pioneer III'!$I$6,"Basis: ","") -> ES1, IDU, IR, NR
D28: 27 | E28: ='SBI-Waterloo'!$B$2 -> Stove Builder International Inc. | F28: ='SBI-Waterloo'!$B$3 -> HE350, FP-15-Waterloo, Horizon, and Monaco XL, WFP100 | G28: ASTM E3053 | H28: ='SBI-Waterloo'!$B$4 -> Disapproved | I28: ='SBI-Waterloo'!$B$6 -> Disapproved | J28: Disapproved List | K28: =SUBSTITUTE('SBI-Waterloo'!$I$6,"Basis: ","") -> ES1, IDU, IR, NR
D29: 28 | E29: ='SBI-S3.5'!$B$2 -> Stove Builder International Inc. | F29: ='SBI-S3.5'!$B$3 -> 3.5 Series - Solution 3.5, Escape 2100, HT-3000, Osburn 3500, Gateway 3500 | G29: ASTM E3053 | H29: ='SBI-S3.5'!$B$4 -> Disapproved | I29: ='SBI-S3.5'!$B$6 -> Disapproved | J29: Disapproved List | K29: =SUBSTITUTE('SBI-S3.5'!$I$6,"Basis: ","") -> ES1, IDU, IR, NR
D30: 29 | E30: ='SBI-Solution2.5'!$B$2 -> Stove Builder International Inc. | F30: ='SBI-Solution2.5'!$B$3 -> 2.5 Series, Solution 2.5 ZC II, Stratford II, FP10 Lafayette II, FP12 Mundo II, Monaco II, HE250R, Destination 2.7, and Matrix 2700 | G30: ASTM E3053 | H30: ='SBI-Solution2.5'!$B$4 -> Disapproved | I30: ='SBI-Solution2.5'!$B$6 -> Pending - Major | J30: No Determination List | K30: =SUBSTITUTE('SBI-Solution2.5'!$I$6,"Basis: ","") -> IR, NR
D31: 30 | E31: =' SBI 2300 Archway'!$B$2 -> Stove Builder International Inc. | F31: =' SBI 2300 Archway'!$B$3 -> 2.3 Series Archway 2300, FW2900, FW2900-SD, Gateway 2300, and Green Mountain Insert 70 Insert | G31: ASTM E3053 | H31: =' SBI 2300 Archway'!$B$4 -> Requires a more thorough review | I31: =' SBI 2300 Archway'!$B$6 -> Disapproved | J31: Disapproved List | K31: =SUBSTITUTE(' SBI 2300 Archway'!$I$6,"Basis: ","") -> ES1, IDU, IR, NR
D32: 31 | E32: ='SBI-Series 3.3'!$B$2 -> Stove Builder International Inc. | F32: ='SBI-Series 3.3'!$B$3 -> 3.3 Series Osburn 3300, Austral III, Myriad III, Legend III, Escape 1900, Black Stag II, Solution 3.3, Gateway 3300 | G32: ASTM E3053 | H32: ='SBI-Series 3.3'!$B$4 -> Disapproved | I32: ='SBI-Series 3.3'!$B$6 -> Pending - Major | J32: No Determination List | K32: =SUBSTITUTE('SBI-Series 3.3'!$I$6,"Basis: ","") -> IR, NR
D33: 32 | E33: ='SBI-Everest II'!$B$2 -> Stove Builder International Inc. | F33: ='SBI-Everest II'!$B$3 -> Everest II Series HE300 II, HE325, Everest II, St. Clair 3000 | G33: ASTM E3053 | H33: ='SBI-Everest II'!$B$4 -> Requires a more thorough review | I33: ='SBI-Everest II'!$B$6 -> Disapproved | J33: No Determination List | K33: =SUBSTITUTE('SBI-Everest II'!$I$6,"Basis: ","") -> ES1, IDU, IR, NR
D34: 33 | E34: ='SBI-2.3 Escape'!$B$2 -> Stove Builder International Inc. | F34: ='SBI-2.3 Escape'!$B$3 -> 2.3 Series Escape 1800, Escape 1800-I Insert, 2000 Stove, 2000-I Insert, Harmony 2.3 Stove, Solution 2.3 Stove, Solution 2.3-I Insert, XTD 1.9 Stove, XTD 1.9-I Insert, CW2900 Insert, Destination 2.3-I Insert, HEI 240 Insert, HEI 240R Insert | G34: ASTM E3053 | H34: ='SBI-2.3 Escape'!$B$4 -> Requires a more thorough review | I34: ='SBI-2.3 Escape'!$B$6 -> Disapproved | J34: Disapproved List | K34: =SUBSTITUTE('SBI-2.3 Escape'!$I$6,"Basis: ","") -> ES1, IDU, IR, NR
D35: 34 | E35: ='Norflam-Harbor Light 760'!$B$2 -> Dovre | F35: ='Norflam-Harbor Light 760'!$B$3 -> Norflam Harbor Light, Sierra Flame Lynwood W76, SBI Cape Town 1800 | G35: ASTM E3053 | H35: ='Norflam-Harbor Light 760'!$B$4 -> Requires a more thorough review | I35: ='Norflam-Harbor Light 760'!$B$6 -> Disapproved | J35: Disapproved List | K35: =SUBSTITUTE('Norflam-Harbor Light 760'!$I$6,"Basis: ","") -> ES1. IR, NR
D36: 35 | E36: ='Jotul-F602v2'!$B$2 -> Jotul | F36: ='Jotul-F602v2'!$B$3 -> F602 v2 | G36: ASTM E3053 | H36: ='Jotul-F602v2'!$B$4 -> Disapproved | I36: ='Jotul-F602v2'!$B$6 -> Disapproved | J36: Disapproved List | K36: =SUBSTITUTE('Jotul-F602v2'!$I$6,"Basis: ","") -> ESA, MD, IDU, IR,
D37: 36 | E37: ='Jotul-F45v2'!$B$2 -> Jotul | F37: ='Jotul-F45v2'!$B$3 -> F45 V2 | G37: ASTM E3053 | H37: ='Jotul-F45v2'!$B$4 -> Disapproved | I37: ='Jotul-F45v2'!$B$6 -> Pending - Major | J37: No Determination List | K37: =SUBSTITUTE('Jotul-F45v2'!$I$6,"Basis: ","") -> IDU, IR, NR
D38: 37 | E38: ='Arada-Farringdon12'!$B$2 -> Arada Stoves Ltd | F38: ='Arada-Farringdon12'!$B$3 -> Farringdon 12 | G38: ASTM E3053 | H38: ='Arada-Farringdon12'!$B$4 -> Disapproved | I38: ='Arada-Farringdon12'!$B$6 -> Pending - Major | J38: No Determination List | K38: =SUBSTITUTE('Arada-Farringdon12'!$I$6,"Basis: ","") -> IR
D39: 38 | E39: ='US Stoves-US1100E'!$B$2 -> United State Stove Company | F39: ='US Stoves-US1100E'!$B$3 -> US1100E, VG1120, AW1120E, CH11, NM680, SW1.2, and AHWS1120 | G39: ASTM E3053 | H39: ='US Stoves-US1100E'!$B$4 -> Disapproved | I39: ='US Stoves-US1100E'!$B$6 -> Pending - Major | J39: No Determination List | K39: =SUBSTITUTE('US Stoves-US1100E'!$I$6,"Basis: ","") -> IDU, IR
D40: 39 | E40: ='US Stoves-US1800E'!$B$2 -> United State Stove Company | F40: ='US Stoves-US1800E'!$B$3 -> US1800E, VG1820, AW1820E, CH18, NM690, SW1.8, AHWS1820 | G40: ASTM E3053 | H40: ='US Stoves-US1800E'!$B$4 -> Disapproved | I40: ='US Stoves-US1800E'!$B$6 -> Disapproved | J40: Disapproved List | K40: =SUBSTITUTE('US Stoves-US1800E'!$I$6,"Basis: ","") -> IR, NR
D41: 40 | E41: ='US Stoves-US2000E'!$B$2 -> United State Stove Company | F41: ='US Stoves-US2000E'!$B$3 -> US2000E, VG2020, AW2020E, CH20, NM890, SW2.0, and AHWS2020 | G41: ASTM E3053 | H41: ='US Stoves-US2000E'!$B$4 -> Disapproved | I41: ='US Stoves-US2000E'!$B$6 -> Pending - Major | J41: No Determination List | K41: =SUBSTITUTE('US Stoves-US2000E'!$I$6,"Basis: ","") -> IDU, IR, NR
D42: 41 | E42: ='US Stoves-US2500E'!$B$2 -> United State Stove Company | F42: ='US Stoves-US2500E'!$B$3 -> US2500E, AW2520E, VG2520, CH25, NM1190, SW2.5, and AHWS2520 | G42: ASTM E3053 | H42: ='US Stoves-US2500E'!$B$4 -> Disapproved | I42: ='US Stoves-US2500E'!$B$6 -> Pending - Major | J42: No Determination List | K42: =SUBSTITUTE('US Stoves-US2500E'!$I$6,"Basis: ","") -> IDU, IR, NR
D43: 42 | E43: ='US Stove US2941EB'!$B$2 -> United State Stove Company | F43: ='US Stove US2941EB'!$B$3 -> US2941EB, VG4020, AW40E, AW40 | G43: ASTM E3053 | H43: ='US Stove US2941EB'!$B$4 -> 0 | I43: ='US Stove US2941EB'!$B$6 -> Pending - Major | J43: No Determination List | K43: =SUBSTITUTE('US Stove US2941EB'!$I$6,"Basis: ","") -> IR
D44: 43 | E44: ='Kozy-Z42'!$B$2 -> Hussong Manufacturing Co. | F44: ='Kozy-Z42'!$B$3 -> Kozy Heat Z42, Kozy Heat Albany | G44: ASTM E3053 | H44: ='Kozy-Z42'!$B$4 -> Requires a more thorough review | I44: ='Kozy-Z42'!$B$6 -> Pending - Major | J44: No Determination List | K44: =SUBSTITUTE('Kozy-Z42'!$I$6,"Basis: ","") -> IR
D45: 44 | E45: ='Spartherm-S600'!$B$2 -> Spartherm | F45: ='Spartherm-S600'!$B$3 -> Spartherm S 600 Insert, Spartherm S 600 ZC, Spartherm S 600 Module | G45: ASTM E3053 | H45: ='Spartherm-S600'!$B$4 -> Requires a more thorough review | I45: ='Spartherm-S600'!$B$6 -> Pending - Major | J45: No Determination List | K45: =SUBSTITUTE('Spartherm-S600'!$I$6,"Basis: ","") -> IDU, IR
D46: 45 | E46: ='Spartherm-S700'!$B$2 -> Spartherm | F46: ='Spartherm-S700'!$B$3 -> Spartherm M 700 Insert, Spartherm M 700 ZC, Spartherm M 700 Module | G46: ASTM E3053 | H46: ='Spartherm-S700'!$B$4 -> Requires a more thorough review | I46: ='Spartherm-S700'!$B$6 -> Pending - Major | J46: No Determination List | K46: =SUBSTITUTE('Spartherm-S700'!$I$6,"Basis: ","") -> IR
D47: 46 | E47: ='Timberwolf-2200'!$B$2 -> Wolf Steel | F47: ='Timberwolf-2200'!$B$3 -> Timberwolf 2200, Timberwolf EPI22, Napoleon S20, Napoleon S20-I, Napoleon 2020-S, Napoleon 2020-Si | G47: ASTM E3053 | H47: ='Timberwolf-2200'!$B$4 -> Disapproved | I47: ='Timberwolf-2200'!$B$6 -> Disapproved | J47: Disapproved List | K47: =SUBSTITUTE('Timberwolf-2200'!$I$6,"Basis: ","") -> IDU, IR
D48: 47 | E48: ='Timberwolf-2100'!$B$2 -> Wolf Steel | F48: ='Timberwolf-2100'!$B$3 -> Timberwolf 2100, Napoleon S15 | G48: ASTM E3053 | H48: ='Timberwolf-2100'!$B$4 -> 0 | I48: ='Timberwolf-2100'!$B$6 -> 0 | J48: Disapproved List | K48: =SUBSTITUTE('Timberwolf-2100'!$I$6,"Basis: ","") -> 
D49: 48 | E49: ='Morsø-6140B'!$B$2 -> Morso | F49: ='Morsø-6140B'!$B$3 -> 6140 B, 6143 B, 6148 B, and 6170 B | G49: ASTM E3053 | H49: ='Morsø-6140B'!$B$4 -> Requires a more thorough review | I49: ='Morsø-6140B'!$B$6 -> Pending - Major | J49: No Determination List | K49: =SUBSTITUTE('Morsø-6140B'!$I$6,"Basis: ","") -> IR, NR
D50: 49 | E50: ='Arada-Farringdon 16'!$B$2 -> Arada Stoves Ltd. | F50: ='Arada-Farringdon 16'!$B$3 -> Farringdon 16 | G50: EPA M28R | H50: ='Arada-Farringdon 16'!$B$4 -> Disapproved | I50: ='Arada-Farringdon 16'!$B$6 -> Pending - Major | J50: Disapproved List | K50: =SUBSTITUTE('Arada-Farringdon 16'!$I$6,"Basis: ","") -> MD, IDU, IR, NR
D51: 50 | E51: ='Foyers-Astra18'!$B$2 -> Foyers Suprême | F51: ='Foyers-Astra18'!$B$3 -> Astra 18, Elegance 30, Novo 18 – Soapstone, and Novo 18 – Cast Iron | G51: EPA M28R | H51: ='Foyers-Astra18'!$B$4 -> Requires a more thorough review | I51: ='Foyers-Astra18'!$B$6 -> Disapproved | J51: Disapproved List | K51: =SUBSTITUTE('Foyers-Astra18'!$I$6,"Basis: ","") -> ES1, IDU, IR, NR
D52: 51 | E52: ='Foyers-Astra24'!$B$2 -> Foyers Suprême | F52: ='Foyers-Astra24'!$B$3 -> Astra 24 24SFC | G52: EPA M28R | H52: ='Foyers-Astra24'!$B$4 -> Requires a more thorough review | I52: ='Foyers-Astra24'!$B$6 -> Disapproved | J52: Disapproved List | K52: =SUBSTITUTE('Foyers-Astra24'!$I$6,"Basis: ","") -> ES1, IDU, IR
D53: 52 | E53: ='Foyers-Astra32'!$B$2 -> Foyers Suprême | F53: ='Foyers-Astra32'!$B$3 -> Astra 32 and Elegance 40 | G53: EPA M28R | H53: ='Foyers-Astra32'!$B$4 -> Requires a more thorough review | I53: ='Foyers-Astra32'!$B$6 -> Disapproved | J53: Disapproved List | K53: =SUBSTITUTE('Foyers-Astra32'!$I$6,"Basis: ","") -> ESI, IDU, IR, NR
D54: 53 | E54: ='Foyers-Astra38'!$B$2 -> Foyers Suprême | F54: ='Foyers-Astra38'!$B$3 -> Astra 38, Elegance 42, Novo 38 – Soapstone, Novo 38 Cast Iron | G54: EPA M28R | H54: ='Foyers-Astra38'!$B$4 -> Requires a more thorough review | I54: ='Foyers-Astra38'!$B$6 -> Disapproved | J54: Disapproved List | K54: =SUBSTITUTE('Foyers-Astra38'!$I$6,"Basis: ","") -> ES1, IDU, IR
D55: 54 | E55: ='Foyers-Elegance36'!$B$2 -> Foyers Suprême | F55: ='Foyers-Elegance36'!$B$3 -> Ambiance Elegance 36 24SF | G55: EPA M28R | H55: ='Foyers-Elegance36'!$B$4 -> Requires a more thorough review | I55: ='Foyers-Elegance36'!$B$6 -> Disapproved | J55: Disapproved List | K55: =SUBSTITUTE('Foyers-Elegance36'!$I$6,"Basis: ","") -> M1, IDU, IR, NR
D56: 55 | E56: ='Foyers-Fusion18'!$B$2 -> Foyers Suprême | F56: ='Foyers-Fusion18'!$B$3 -> Fusion 18 18FN | G56: EPA M28R | H56: ='Foyers-Fusion18'!$B$4 -> Disapproved | I56: ='Foyers-Fusion18'!$B$6 -> Disapproved | J56: Disapproved List | K56: =SUBSTITUTE('Foyers-Fusion18'!$I$6,"Basis: ","") -> ESA, M1, IDU, IR
D57: 56 | E57: ='VC-Aspen'!$B$2 -> HHT/Vermont Castings | F57: ='VC-Aspen'!$B$3 -> Aspen C3 | G57: EPA M28R | H57: ='VC-Aspen'!$B$4 -> Requires a more thorough review | I57: ='VC-Aspen'!$B$6 -> Disapproved | J57: Disapproved List | K57: =SUBSTITUTE('VC-Aspen'!$I$6,"Basis: ","") -> M1, IDU, IR
D58: 57 | E58: ='VC-Encore'!$B$2 -> HHT/Vermont Casting | F58: ='VC-Encore'!$B$3 -> Encore 2040-CAT-C | G58: EPA M28R | H58: ='VC-Encore'!$B$4 -> Requires a more thorough review | I58: ='VC-Encore'!$B$6 -> Pending - Major | J58: No Determination List | K58: =SUBSTITUTE('VC-Encore'!$I$6,"Basis: ","") -> IDU, IR
D59: 58 | E59: ='VC-Intrepid NC'!$B$2 -> HHT/Hearth & Home Technologies | F59: ='VC-Intrepid NC'!$B$3 -> Intrepid Flexburn 2115 | G59: EPA M28R | H59: ='VC-Intrepid NC'!$B$4 -> Requires a more thorough review | I59: ='VC-Intrepid NC'!$B$6 -> Disapproved | J59: Disapproved List | K59: =SUBSTITUTE('VC-Intrepid NC'!$I$6,"Basis: ","") -> MD, IDU, IR
D60: 59 | E60: ='VC-Defiant'!$B$2 -> HHT/Hearth & Home Technology | F60: ='VC-Defiant'!$B$3 -> Vermont Castings Defiant 1975-CAT-C | G60: EPA M28R | H60: ='VC-Defiant'!$B$4 -> Requires a more thorough review | I60: ='VC-Defiant'!$B$6 -> Pending - Major | J60: Approved List - Pending | K60: =SUBSTITUTE('VC-Defiant'!$I$6,"Basis: ","") -> IDU, IR, NR
D61: 60 | E61: ='VC-Expedition II'!$B$2 -> HHT/Hearth & Home Technologies | F61: ='VC-Expedition II'!$B$3 -> Quadra Fire Expedition II and Vermont Castings Montpelier II | G61: EPA M28R | H61: ='VC-Expedition II'!$B$4 -> Requires a more thorough review | I61: ='VC-Expedition II'!$B$6 -> Pending - Major | J61: Approved List - Pending | K61: =SUBSTITUTE('VC-Expedition II'!$I$6,"Basis: ","") -> MD, IDU, IR
D62: 61 | E62: ='Morsø-1410B'!$B$2 -> Morso Jernstoberi A/S | F62: ='Morsø-1410B'!$B$3 -> 1410B, 1440B, and 1450B | G62: EPA M28R | H62: ='Morsø-1410B'!$B$4 -> Requires a more thorough review | I62: ='Morsø-1410B'!$B$6 -> Pending - Major | J62: No Determination List | K62: =SUBSTITUTE('Morsø-1410B'!$I$6,"Basis: ","") -> MD, IDU, IR, NR
D63: 62 | E63: ='Morsø-3112B'!$B$2 -> Morso Jernstoberi A/S | F63: ='Morsø-3112B'!$B$3 -> 3112B/3142B | G63: EPA M28R | H63: ='Morsø-3112B'!$B$4 -> 0 | I63: ='Morsø-3112B'!$B$6 -> Disapproved | J63: Disapproved List | K63: =SUBSTITUTE('Morsø-3112B'!$I$6,"Basis: ","") -> ES1, IDU, IR
D64: 63 | E64: ='Morsø-7110b'!$B$2 -> Morso Jernstoberi A/S | F64: ='Morsø-7110b'!$B$3 -> 7110b | G64: ASTM E3053 | H64: ='Morsø-7110b'!$B$4 -> Requires a more thorough review | I64: ='Morsø-7110b'!$B$6 -> Pending - Major | J64: No Determination List | K64: =SUBSTITUTE('Morsø-7110b'!$I$6,"Basis: ","") -> IR, NR
D65: 64 | E65: ='Morsø-2B Standard 2020'!$B$2 -> Morso Jernstoberi A/S | F65: ='Morsø-2B Standard 2020'!$B$3 -> 2B Standard 2020 | G65: ASTM E3053 | H65: ='Morsø-2B Standard 2020'!$B$4 -> 0 | I65: ='Morsø-2B Standard 2020'!$B$6 -> Pending - Major | J65: No Determination List | K65: =SUBSTITUTE('Morsø-2B Standard 2020'!$I$6,"Basis: ","") -> IR, NR
D66: 65 | E66: ='RSF-OPEL Plus'!$B$2 -> RSF / Industrial Chimney Company, Incorporated | F66: ='RSF-OPEL Plus'!$B$3 -> OPEL PLUS Series: Opel+ 2C, Open+ 3C, Opel+ 4C, Opel+ Keystone | G66: EPA M28R | H66: ='RSF-OPEL Plus'!$B$4 -> Requires a more thorough review | I66: ='RSF-OPEL Plus'!$B$6 -> Pending - Major | J66: Approved List - Pending | K66: =SUBSTITUTE('RSF-OPEL Plus'!$I$6,"Basis: ","") -> IDU, IR, NR
D67: 66 | E67: ='Blaze King-KE40'!$B$2 -> Blaze King Industries, Inc. | F67: ='Blaze King-KE40'!$B$3 -> King KE40 | G67: EPA M28R | H67: ='Blaze King-KE40'!$B$4 -> Requires a more thorough review | I67: ='Blaze King-KE40'!$B$6 -> Pending - Major | J67: No Determination List | K67: =SUBSTITUTE('Blaze King-KE40'!$I$6,"Basis: ","") -> IR
D68: 67 | E68: ='Blaze King-PE32'!$B$2 -> Blaze King Industries Inc | F68: ='Blaze King-PE32'!$B$3 -> Princess PE32 | G68: EPA M28R | H68: ='Blaze King-PE32'!$B$4 -> Requires a more thorough review | I68: ='Blaze King-PE32'!$B$6 -> Pending - Major | J68: Approved List - Pending | K68: =SUBSTITUTE('Blaze King-PE32'!$I$6,"Basis: ","") -> IDU, IR, NR
D69: 68 | E69: ='Blaze King-SC2.20'!$B$2 -> Blaze King Industries Inc | F69: ='Blaze King-SC2.20'!$B$3 -> Ashford AF20.2, Chinook CK20.2, and Sirocco SC20.2 | G69: EPA M28R | H69: ='Blaze King-SC2.20'!$B$4 -> Requires a more thorough review | I69: ='Blaze King-SC2.20'!$B$6 -> Pending - Major | J69: No Determination List | K69: =SUBSTITUTE('Blaze King-SC2.20'!$I$6,"Basis: ","") -> MD, IDU, IR, NR
D70: 69 | E70: ='Blaze King-30.2'!$B$2 -> Blaze King Industries Inc | F70: ='Blaze King-30.2'!$B$3 -> Ashford AF30.2, Chinook CK30.2, and Sirocco SC30.2 | G70: EPA M28R | H70: ='Blaze King-30.2'!$B$4 -> Disapproved | I70: ='Blaze King-30.2'!$B$6 -> Disapproved | J70: Disapproved List | K70: =SUBSTITUTE('Blaze King-30.2'!$I$6,"Basis: ","") -> ES1, MD, IDU, IR, NR
D71: 70 | E71: ='Blaze King-SC25 Insert'!$B$2 -> Blaze King Industries Inc. | F71: ='Blaze King-SC25 Insert'!$B$3 -> Sirocco SC25, Ashford AF25, Boxer 24 (BX24) | G71: EPA M28R | H71: ='Blaze King-SC25 Insert'!$B$4 -> Requires a more thorough review | I71: ='Blaze King-SC25 Insert'!$B$6 -> Pending - Major | J71: No Determination List | K71: =SUBSTITUTE('Blaze King-SC25 Insert'!$I$6,"Basis: ","") -> MD, IDU, IR, NR
D72: 71 | E72: ='Blaze King-PI29'!$B$2 -> Blaze King Industries Inc | F72: ='Blaze King-PI29'!$B$3 -> PI29 Princess Insert | G72: EPA M28R | H72: ='Blaze King-PI29'!$B$4 -> Disapproved | I72: ='Blaze King-PI29'!$B$6 -> Disapproved | J72: Disapproved List | K72: =SUBSTITUTE('Blaze King-PI29'!$I$6,"Basis: ","") -> ES1, IDU, IR
D73: 72 | E73: ='Jotul-F500'!$B$2 -> Jotul North America | F73: ='Jotul-F500'!$B$3 -> F500 V3 | G73: EPA M28R | H73: ='Jotul-F500'!$B$4 -> Disapproved | I73: ='Jotul-F500'!$B$6 -> Pending - Major | J73: No Determination List | K73: =SUBSTITUTE('Jotul-F500'!$I$6,"Basis: ","") -> IDU, IR, NR
D74: 73 | E74: ='FPI-Regency F1500'!$B$2 -> FPI/Fireplace Products International Limited | F74: ='FPI-Regency F1500'!$B$3 -> F1500, I1500 | G74: EPA M28R | H74: ='FPI-Regency F1500'!$B$4 -> Disapproved | I74: ='FPI-Regency F1500'!$B$6 -> Pending - Major | J74: No Determination List | K74: =SUBSTITUTE('FPI-Regency F1500'!$I$6,"Basis: ","") -> IDU, IR
D75: 74 | E75: ='HearthStone-Green Mt 40'!$B$2 -> Hearthstone Quality Home Heating Products Inc. | F75: ='HearthStone-Green Mt 40'!$B$3 -> Green Mountain 40 (8640), Craftsbury 2 (8392), Hipster 14 | G75: EPA M28R | H75: ='HearthStone-Green Mt 40'!$B$4 -> Requires a more thorough review | I75: ='HearthStone-Green Mt 40'!$B$6 -> Pending - Major | J75: Approved List - Pending | K75: =SUBSTITUTE('HearthStone-Green Mt 40'!$I$6,"Basis: ","") -> IDU, IR
D76: 75 | E76: ='HearthStone-Green Mt 60'!$B$2 -> Hearthstone Quality Home Heating Products Inc. | F76: ='HearthStone-Green Mt 60'!$B$3 -> Green Mountain 60 8660, Hipster 20, Shelburne 8372 | G76: EPA M28R | H76: ='HearthStone-Green Mt 60'!$B$4 -> Requires a more thorough review | I76: ='HearthStone-Green Mt 60'!$B$6 -> Pending - Major | J76: Approved List - Pending | K76: =SUBSTITUTE('HearthStone-Green Mt 60'!$I$6,"Basis: ","") -> IDU, IR
D77: 76 | E77: ='HearthStone-Green Mt 80'!$B$2 -> Hearthstone Quality Home Heating Products Inc. | F77: ='HearthStone-Green Mt 80'!$B$3 -> Green Mountain 80 8680 | G77: EPA M28R | H77: ='HearthStone-Green Mt 80'!$B$4 -> Requires a more thorough review | I77: ='HearthStone-Green Mt 80'!$B$6 -> Pending - Major | J77: Approved List - Pending | K77: =SUBSTITUTE('HearthStone-Green Mt 80'!$I$6,"Basis: ","") -> IDU, IR
D78: 77 | E78: ='HearthStone-Castleton'!$B$2 -> Hearthstone Quality Home Heating Products Inc. | F78: ='HearthStone-Castleton'!$B$3 -> Castleton I 8031 | G78: EPA M28R | H78: ='HearthStone-Castleton'!$B$4 -> Requires a more thorough review | I78: ='HearthStone-Castleton'!$B$6 -> Pending - Major | J78: No Determination List | K78: =SUBSTITUTE('HearthStone-Castleton'!$I$6,"Basis: ","") -> IDU, IR, NR
D79: 78 | E79: ='Hearthstone-Manchester'!$B$2 -> Hearthstone Quality Home Heating Products Inc. | F79: ='Hearthstone-Manchester'!$B$3 -> Manchester 8362 | G79: EPA M28R | H79: ='Hearthstone-Manchester'!$B$4 -> Requires a more thorough review | I79: ='Hearthstone-Manchester'!$B$6 -> Pending - Major | J79: Approved List - Pending | K79: =SUBSTITUTE('Hearthstone-Manchester'!$I$6,"Basis: ","") -> IDU, IR
D80: 79 | E80: ='Hearthstone-Heritage'!$B$2 -> Hearthstone Quality Home Heating Products Inc. | F80: ='Hearthstone-Heritage'!$B$3 -> Heritage 8024 | G80: EPA M28R | H80: ='Hearthstone-Heritage'!$B$4 -> Requires a more thorough review | I80: ='Hearthstone-Heritage'!$B$6 -> Pending - Major | J80: No Determination List | K80: =SUBSTITUTE('Hearthstone-Heritage'!$I$6,"Basis: ","") -> IDU, IR, NR
D81: 80 | E81: ='Hearthstone-WFP100'!$B$2 -> Hearthstone Quality Home Heating Products Inc. | F81: ='Hearthstone-WFP100'!$B$3 -> WFP100 | G81: ASTM E3053 | H81: ='Hearthstone-WFP100'!$B$4 -> Requires a more thorough review | I81: ='Hearthstone-WFP100'!$B$6 -> Disapproved | J81: Disapproved List | K81: =SUBSTITUTE('Hearthstone-WFP100'!$I$6,"Basis: ","") -> ES1, IR, NR
D82: 81 | E82: ='MF-Nova'!$B$2 -> MF Fire | F82: ='MF-Nova'!$B$3 -> Nova | G82: EPA M28R | H82: ='MF-Nova'!$B$4 -> Disapproved | I82: ='MF-Nova'!$B$6 -> Pending - Major | J82: No Determination List | K82: =SUBSTITUTE('MF-Nova'!$I$6,"Basis: ","") -> IR
D83: 82 | E83: ='MF-Catalyst'!$B$2 -> MFFire | F83: ='MF-Catalyst'!$B$3 -> Cataylst | G83: EPA M28R | H83: ='MF-Catalyst'!$B$4 -> Disapproved | I83: ='MF-Catalyst'!$B$6 -> Pending - Minor | J83: No Determination List | K83: =SUBSTITUTE('MF-Catalyst'!$I$6,"Basis: ","") -> MD, IR
D84: 83 | E84: ='Absolute Steel Hybrid'!$B$2 -> Woodstock Soapstone Company, Inc | F84: ='Absolute Steel Hybrid'!$B$3 -> Absolute Steel Hybrid 211 | G84: EPA M28R | H84: ='Absolute Steel Hybrid'!$B$4 -> Disapproved | I84: ='Absolute Steel Hybrid'!$B$6 -> Disapproved | J84: Disapproved List | K84: =SUBSTITUTE('Absolute Steel Hybrid'!$I$6,"Basis: ","") -> ES1, MD, IDU, IR
D85: 84 | E85: ='Travis Med Flush Insert'!$B$2 -> Travis Industries | F85: ='Travis Med Flush Insert'!$B$3 -> Medium Flush | G85: ASTM E3053 | H85: ='Travis Med Flush Insert'!$B$4 -> 0 | I85: ='Travis Med Flush Insert'!$B$6 -> Disapproved | J85: Disapproved List | K85: =SUBSTITUTE('Travis Med Flush Insert'!$I$6,"Basis: ","") -> ESA, ES1, IR, NR
D86: 85 | E86: ='IHP-GV230GL'!$B$2 -> Innovative Hearth Products, LLC | F86: ='IHP-GV230GL'!$B$3 -> GV230GL and ML230GL | G86: EPA M28R | H86: ='IHP-GV230GL'!$B$4 -> Requires a more thorough review | I86: ='IHP-GV230GL'!$B$6 -> Disapproved | J86: Disapproved List | K86: =SUBSTITUTE('IHP-GV230GL'!$I$6,"Basis: ","") -> ES1, IDU, IR
D87: 86 | E87: ='IHP-GV300GL'!$B$2 -> Innovative Hearth Products, LLC | F87: ='IHP-GV300GL'!$B$3 -> GV300GL and ML300GL | G87: EPA M28R | H87: ='IHP-GV300GL'!$B$4 -> Requires a more thorough review | I87: ='IHP-GV300GL'!$B$6 -> Disapproved | J87: Disapproved List | K87: =SUBSTITUTE('IHP-GV300GL'!$I$6,"Basis: ","") -> ES1, IDU, IR
D88: 87 | E88: ='PE-Vista'!$B$2 -> Pacific Energy Fireplace Products | F88: ='PE-Vista'!$B$3 -> Vista LE, Vista Classic LE, NEO 1.6 LE, Neostone 1.6 LE, Alderlea T4 LE (Freestanding), NEO 1.6 LE | G88: EPA M28R | H88: ='PE-Vista'!$B$4 -> Requires a more thorough review | I88: ='PE-Vista'!$B$6 -> Pending - Major | J88: No Determination List | K88: =SUBSTITUTE('PE-Vista'!$I$6,"Basis: ","") -> MD, IR, NR
D89: 88 | E89: ='PE-Summit'!$B$2 -> Pacific Energy Fireplace Products | F89: ='PE-Summit'!$B$3 -> Summit LE, Summit Classic LE, Alderlea T6 LE, and Summit Insert LE | G89: EPA M28R | H89: ='PE-Summit'!$B$4 -> Requires a more thorough review | I89: ='PE-Summit'!$B$6 -> Pending - Major | J89: No Determination List | K89: =SUBSTITUTE('PE-Summit'!$I$6,"Basis: ","") -> IDU, IR, NR
D90: 89 | E90: ='PE-Super'!$B$2 -> Pacific Energy Fireplace Products | F90: ='PE-Super'!$B$3 -> Super Insert LE, Alderlea T5 Insert LE, Super LE, Super Classic LE, Alderlea T5 LE | G90: EPA M28R | H90: ='PE-Super'!$B$4 -> Requires a more thorough review | I90: ='PE-Super'!$B$6 -> Disapproved | J90: Disapproved List | K90: =SUBSTITUTE('PE-Super'!$I$6,"Basis: ","") -> ES1, MD, IDU, IR, NR
D91: 90 | E91: ='PE-True North 10'!$B$2 -> Pacific Energy Fireplace Products | F91: ='PE-True North 10'!$B$3 -> True North 10 | G91: EPA M28R | H91: ='PE-True North 10'!$B$4 -> Requires a more thorough review | I91: ='PE-True North 10'!$B$6 -> Pending - Major | J91: No Determination List | K91: =SUBSTITUTE('PE-True North 10'!$I$6,"Basis: ","") -> MD, IR
D92: 91 | E92: ='PE-True North 20'!$B$2 -> Pacific Energy Fireplace Products | F92: ='PE-True North 20'!$B$3 -> True North TN20 and TN Insert Series B | G92: EPA M28R | H92: ='PE-True North 20'!$B$4 -> 0 | I92: ='PE-True North 20'!$B$6 -> Pending - Major | J92: No Determination List | K92: =SUBSTITUTE('PE-True North 20'!$I$6,"Basis: ","") -> MD, IR
D93: 92 | E93: ='Energy Distribution-Kazan'!$B$2 -> Energy Distribution | F93: ='Energy Distribution-Kazan'!$B$3 -> Invicta Group: Kazan, Kazan GA, Kiara, and Kiara GA | G93: EPA M28R | H93: ='Energy Distribution-Kazan'!$B$4 -> 0 | I93: ='Energy Distribution-Kazan'!$B$6 -> Pending - Major | J93: Approved List - Pending | K93: =SUBSTITUTE('Energy Distribution-Kazan'!$I$6,"Basis: ","") -> IDU, IR, NR
D94: 93 | E94: ='HHT-57ST'!$B$2 -> HHT/Hearth and Home Technologies | F94: ='HHT-57ST'!$B$3 -> Quadra Fire 57ST-ACC-C | G94: EPA M28R | H94: ='HHT-57ST'!$B$4 -> Requires a more thorough review | I94: ='HHT-57ST'!$B$6 -> Disapproved | J94: Disapproved List | K94: =SUBSTITUTE('HHT-57ST'!$I$6,"Basis: ","") -> ES1, IDU, IR, NR
D95: 94 | E95: ='HHT-31M'!$B$2 -> HHT/Hearth and Home Technologies | F95: ='HHT-31M'!$B$3 -> QuadraFire 31M-ACC-C and QuadraFire Discovery-II-C | G95: EPA M28R | H95: ='HHT-31M'!$B$4 -> Requires a more thorough review | I95: ='HHT-31M'!$B$6 -> Pending - Major | J95: No Determination List | K95: =SUBSTITUTE('HHT-31M'!$I$6,"Basis: ","") -> MD, IDU, IR
D96: 95 | E96: =STUV16!$B$2 -> Stuv America, Inc. | F96: =STUV16!$B$3 -> STUV 1658IN, STUV 1658CUBE, STUV 1658H, STUV 1658-Z | G96: EPA M28R | H96: =STUV16!$B$4 -> Requires a more thorough review | I96: =STUV16!$B$6 -> Pending - Major | J96: No Determination List | K96: =SUBSTITUTE(STUV16!$I$6,"Basis: ","") -> MD, IR, NR
D97: 96 | E97: =STUV30!$B$2 -> Stuv America | F97: =STUV30!$B$3 -> 30 Compact, 30 Compact-H, 30 Compact-one | G97: EPA M28R | H97: =STUV30!$B$4 -> Requires a more thorough review | I97: =STUV30!$B$6 -> Pending - Major | J97: No Determination List | K97: =SUBSTITUTE(STUV30!$I$6,"Basis: ","") -> IDU, IR, NR
D98: 97 | E98: ='Roby-Cook'!$B$2 -> J. A. Roby | F98: ='Roby-Cook'!$B$3 -> Cook, Cicero, Chief, Cuistot, Elda, and Marmiton | G98: EPA M28R | H98: ='Roby-Cook'!$B$4 -> Requires a more thorough review | I98: ='Roby-Cook'!$B$6 -> Disapproved | J98: Disapproved List | K98: =SUBSTITUTE('Roby-Cook'!$I$6,"Basis: ","") -> ES1, IDU, IR
D99: 98 | E99: ='RAIS-Viva'!$B$2 -> RAIS A/S | F99: ='RAIS-Viva'!$B$3 -> Viva 100 L (CA) USA, Viva 100 L G (CA) USA, Viva 100 L Classic (CA) USA, Viva 100 L G Classic (CA) USA, Viva 120 L (CA) USA, Viva 120 L G (CA) USA, Viva 120 L Classic (CA) USA, Viva 120 L G Classic (CA) USA, Viva 160 L (CA) USA, Viva 160 L | G99: EPA M28R | H99: ='RAIS-Viva'!$B$4 -> Requires a more thorough review | I99: ='RAIS-Viva'!$B$6 -> Disapproved | J99: Disapproved List | K99: =SUBSTITUTE('RAIS-Viva'!$I$6,"Basis: ","") -> ES1, IDU, IR, NR
D100: 99 | E100: ='New Buck 21NC'!$B$2 -> New Buck Corporation | F100: ='New Buck 21NC'!$B$3 -> 21 NC | G100: EPA M28R | H100: ='New Buck 21NC'!$B$4 -> Requires a more thorough review | I100: ='New Buck 21NC'!$B$6 -> Pending - Major | J100: No Determination List | K100: =SUBSTITUTE('New Buck 21NC'!$I$6,"Basis: ","") -> MD, IDU, IR
D101: 100 | E101: ='1269e'!$B$2 -> United States Stove Company | F101: ='1269e'!$B$3 -> 1269e | G101: EPA M28R | H101: ='1269e'!$B$4 -> Disapproved | I101: ='1269e'!$B$6 -> Disapproved | J101: Disapproved List | K101: =SUBSTITUTE('1269e'!$I$6,"Basis: ","") -> two test reports for same model one passed one didn't
D102: 101 | E102: =US1269e!$B$2 -> United States Stove Company | F102: =US1269e!$B$3 -> US 1269e | G102: EPA M28R | H102: =US1269e!$B$4 -> Requires a more thorough review | I102: =US1269e!$B$6 -> Pending - Major | J102: No Determination List | K102: =SUBSTITUTE(US1269e!$I$6,"Basis: ","") -> Pending further information from manufacturer
D103: 102 | E103: ='HHT 43M ACC'!$B$2 -> HHT/Hearth and Home Technologies | F103: ='HHT 43M ACC'!$B$3 -> Quadra Fire 43M-ACC-C, 43ST-ACC-C, Discovery-III-C | G103: EPA M28R | H103: ='HHT 43M ACC'!$B$4 -> Disapproved | I103: ='HHT 43M ACC'!$B$6 -> Pending - Major | J103: No Determination List | K103: =SUBSTITUTE('HHT 43M ACC'!$I$6,"Basis: ","") -> IDU, IR
D104: 103 | E104: ='HHT 21M ACC'!$B$2 -> HHT/Hearth and Home Tech | F104: ='HHT 21M ACC'!$B$3 -> 21M-ACC-C, Discovery-1- | G104: EPA M28R | H104: ='HHT 21M ACC'!$B$4 -> Disapproved | I104: ='HHT 21M ACC'!$B$6 -> Pending - Major | J104: Approved List - Pending | K104: =SUBSTITUTE('HHT 21M ACC'!$I$6,"Basis: ","") -> IDU, IR
D105: 104 | E105: ='England 15-SSW01'!$B$2 -> England's Stoves | F105: ='England 15-SSW01'!$B$3 -> 15-SSW01, 50-SHSSW01, 50-TRSSW01 | G105: EPA M28R | H105: ='England 15-SSW01'!$B$4 -> Disapproved | I105: ='England 15-SSW01'!$B$6 -> Disapproved | J105: Disapproved List | K105: =SUBSTITUTE('England 15-SSW01'!$I$6,"Basis: ","") -> M1, IDU, IR
D106: 105 | E106: ='Skye E700'!$B$2 -> A.J. Wells and Sons | F106: ='Skye E700'!$B$3 -> Charnwood Skye E700 | G106: ASTM E3053 | H106: ='Skye E700'!$B$4 -> 0 | I106: ='Skye E700'!$B$6 -> Disapproved | J106: Disapproved List | K106: =SUBSTITUTE('Skye E700'!$I$6,"Basis: ","") -> ESA. ES1. IR, NR
D107: 106 | E107: ='England 15-W06'!$B$2 -> England's Stoves | F107: ='England 15-W06'!$B$3 -> 15-W06, 50-SHW06, 50-SHW06L, 50TRW06, 15-W08, 50-SHW08, 50-SHW08L, 50TRW08 | G107: ASTM E3053 | H107: ='England 15-W06'!$B$4 -> 0 | I107: ='England 15-W06'!$B$6 -> Disapproved | J107: Disapproved List | K107: =SUBSTITUTE('England 15-W06'!$I$6,"Basis: ","") -> ES1, IR, NR
D108: 107 | E108: ='Englands 32NC'!$B$2 -> England's Stoves | F108: ='Englands 32NC'!$B$3 -> 32-NC, 50-SNC32, 50-TNC32 | G108: ASTM E3053 | H108: ='Englands 32NC'!$B$4 -> 0 | I108: ='Englands 32NC'!$B$6 -> Disapproved | J108: Disapproved List | K108: =SUBSTITUTE('Englands 32NC'!$I$6,"Basis: ","") -> ES1, IR, NR
D109: 108 | E109: ='Hearthstone Bari'!$B$2 -> Hearthstone Quality Home Products Inc./Hase Kaminofenbau | F109: ='Hearthstone Bari'!$B$3 -> Bari, Bari Plus 8171 Hybrid | G109: EPA M28R | H109: ='Hearthstone Bari'!$B$4 -> Requires a more thorough review | I109: ='Hearthstone Bari'!$B$6 -> Pending - Major | J109: No Determination List | K109: =SUBSTITUTE('Hearthstone Bari'!$I$6,"Basis: ","") -> IDU, IR, NR
D110: 109 | E110: ='IHP Ladera'!$B$2 -> Innovative Hearth Products | F110: ='IHP Ladera'!$B$3 -> Ladera CAT WRT3920WS | G110: EPA M28R | H110: ='IHP Ladera'!$B$4 -> Disapproved | I110: ='IHP Ladera'!$B$6 -> Disapproved | J110: Disapproved List | K110: =SUBSTITUTE('IHP Ladera'!$I$6,"Basis: ","") -> ES1, MD, IDU, IR
D111: 110 | E111: ='IHP Montecito'!$B$2 -> Innovative Hearth Products | F111: ='IHP Montecito'!$B$3 -> Montecito Estate CAT and WCT6940WS | G111: EPA M28R | H111: ='IHP Montecito'!$B$4 -> Disapproved | I111: ='IHP Montecito'!$B$6 -> Disapproved | J111: Disapproved List | K111: =SUBSTITUTE('IHP Montecito'!$I$6,"Basis: ","") -> ES1, MD, IR, NR
D112: 111 | E112: ='JA Roby Polaris'!$B$2 -> J.A. Roby | F112: ='JA Roby Polaris'!$B$3 -> Polaris, Centauri, Vega, Sirius, Antares and Rigel | G112: EPA M28R | H112: ='JA Roby Polaris'!$B$4 -> Disapproved | I112: ='JA Roby Polaris'!$B$6 -> Disapproved | J112: Disapproved List | K112: =SUBSTITUTE('JA Roby Polaris'!$I$6,"Basis: ","") -> ES1, MD, IR, NR
D113: 112 | E113: ='Jotul F55'!$B$2 -> Jotul North America | F113: ='Jotul F55'!$B$3 -> F55V2 | G113: ASTM E3053 | H113: ='Jotul F55'!$B$4 -> 0 | I113: ='Jotul F55'!$B$6 -> Pending - Major | J113: No Determination List | K113: =SUBSTITUTE('Jotul F55'!$I$6,"Basis: ","") -> IR, NR
D114: 113 | E114: ='New Buck 74'!$B$2 -> New Buck Coporation | F114: ='New Buck 74'!$B$3 -> Model 74 | G114: ASTM E3053 | H114: ='New Buck 74'!$B$4 -> 0 | I114: ='New Buck 74'!$B$6 -> Disapproved | J114: Disapproved List | K114: =SUBSTITUTE('New Buck 74'!$I$6,"Basis: ","") -> ES1, IDU, IR, NR
D115: 114 | E115: ='New Buck 91'!$B$2 -> New Buck Coporation | F115: ='New Buck 91'!$B$3 -> Model 91 | G115: ASTM E3053 | H115: ='New Buck 91'!$B$4 -> Disapproved | I115: ='New Buck 91'!$B$6 -> Disapproved | J115: Disapproved List | K115: =SUBSTITUTE('New Buck 91'!$I$6,"Basis: ","") -> ES1, IR, NR
D116: 115 | E116: ='PEF FP25LE'!$B$2 -> Pacific Energy Fireplaces | F116: ='PEF FP25LE'!$B$3 -> FP25LE, FP25AR LE | G116: ASTM E3053 | H116: ='PEF FP25LE'!$B$4 -> Requires a more thorough review | I116: ='PEF FP25LE'!$B$6 -> Pending - Major | J116: No Determination List | K116: =SUBSTITUTE('PEF FP25LE'!$I$6,"Basis: ","") -> IR, NR
D117: 116 | E117: ='PEF NEO 2.5'!$B$2 -> Pacific Energy Fireplaces | F117: ='PEF NEO 2.5'!$B$3 -> NEO 2.5 LE, NEO 2.5 Insert LE, NEOSTONE 2.5 LE | G117: ASTM E3053 | H117: ='PEF NEO 2.5'!$B$4 -> Disapproved | I117: ='PEF NEO 2.5'!$B$6 -> Disapproved | J117: Disapproved List | K117: =SUBSTITUTE('PEF NEO 2.5'!$I$6,"Basis: ","") -> ESA, ES1, IR, NR
D118: 117 | E118: ='RSF Focus 320SBR'!$B$2 -> RSF / Industrial Chimney Company, Incorporated | F118: ='RSF Focus 320SBR'!$B$3 -> Focus 320SBR and Onyx SBR | G118: EPA M28R | H118: ='RSF Focus 320SBR'!$B$4 -> Requires a more thorough review | I118: ='RSF Focus 320SBR'!$B$6 -> Pending - Major | J118: No Determination List | K118: =SUBSTITUTE('RSF Focus 320SBR'!$I$6,"Basis: ","") -> IR, NR
D119: 118 | E119: ='Rais Qtee'!$B$2 -> Rais A/S | F119: ='Rais Qtee'!$B$3 -> Q-Tee II Steel, Q-Tee II Glass, and Q-Tee II C | G119: EPA M28R | H119: ='Rais Qtee'!$B$4 -> Disapproved | I119: ='Rais Qtee'!$B$6 -> Pending - Major | J119: No Determination List | K119: =SUBSTITUTE('Rais Qtee'!$I$6,"Basis: ","") -> MD, IR, NR
D120: 119 | E120: ='RSF Delta Fusion'!$B$2 -> RSF / Industrial Chimney Company, Incorporated | F120: ='RSF Delta Fusion'!$B$3 -> Delta Fusion | G120: EPA M28R | H120: ='RSF Delta Fusion'!$B$4 -> Requires a more thorough review | I120: ='RSF Delta Fusion'!$B$6 -> Pending - Major | J120: No Determination List | K120: =SUBSTITUTE('RSF Delta Fusion'!$I$6,"Basis: ","") -> MD, IDU, IR, NR
D121: 120 | E121: ='Thelin Parlour'!$B$2 -> Thelin Company Inc. (Cardon Products) | F121: ='Thelin Parlour'!$B$3 -> Thelin Parlour T-4000 | G121: EPA M28R | H121: ='Thelin Parlour'!$B$4 -> Requires a more thorough review | I121: ='Thelin Parlour'!$B$6 -> Disapproved | J121: Disapproved List | K121: =SUBSTITUTE('Thelin Parlour'!$I$6,"Basis: ","") -> ES1, IR
D122: 121 | E122: ='US Stove TR007'!$B$2 -> United States Stove Company | F122: ='US Stove TR007'!$B$3 -> TR007E, US3200E VG3200, AW3200E | G122: ASTM E3053 | H122: ='US Stove TR007'!$B$4 -> Requires a more thorough review | I122: ='US Stove TR007'!$B$6 -> Pending - Major | J122: No Determination List | K122: =SUBSTITUTE('US Stove TR007'!$I$6,"Basis: ","") -> MD, IR, NR
D123: 122 | E123: ='VC Dauntless CAT'!$B$2 -> HHT/Hearth and Home Technologies | F123: ='VC Dauntless CAT'!$B$3 -> Vermont Castings Dauntless Flexburn Catalytic Model | G123: ASTM E3053 | H123: ='VC Dauntless CAT'!$B$4 -> Disapproved | I123: ='VC Dauntless CAT'!$B$6 -> Disapproved | J123: Disapproved List | K123: =SUBSTITUTE('VC Dauntless CAT'!$I$6,"Basis: ","") -> ES1, IR
D124: 123 | E124: ='SBI 1.7 Archway'!$B$2 -> Stove Builders International | F124: ='SBI 1.7 Archway'!$B$3 -> 1.7 Series - Archway 1700, Gateway 1700, Columbia II, Savannah II, Deco II, HEI170, HES170, FW2800 | G124: ASTM E3053 | H124: ='SBI 1.7 Archway'!$B$4 -> Requires a more thorough review | I124: ='SBI 1.7 Archway'!$B$6 -> Pending - Major | J124: No Determination List | K124: =SUBSTITUTE('SBI 1.7 Archway'!$I$6,"Basis: ","") -> MD, IR, NR
D125: 124 | E125: ='VC Dauntless NC'!$B$2 -> HHT/Hearth and Home Technologies | F125: ='VC Dauntless NC'!$B$3 -> Vermont Castings Dauntless FlexBurn Model | G125: ASTM E3053 | H125: ='VC Dauntless NC'!$B$4 -> Disapproved | I125: ='VC Dauntless NC'!$B$6 -> Disapproved | J125: Disapproved List | K125: =SUBSTITUTE('VC Dauntless NC'!$I$6,"Basis: ","") -> MD, ES1, IR
D126: 125 | E126: ='Woodstock 205 Fireview'!$B$2 -> Woodstock Soapstone | F126: ='Woodstock 205 Fireview'!$B$3 -> 205 Fireview Catalytic | G126: ASTM E3053 | H126: ='Woodstock 205 Fireview'!$B$4 -> 0 | I126: ='Woodstock 205 Fireview'!$B$6 -> Pending - Major | J126: No Determination List | K126: =SUBSTITUTE('Woodstock 205 Fireview'!$I$6,"Basis: ","") -> IR, NR
D127: 126 | E127: ='Woodstock 209a Progress Hybrid'!$B$2 -> Woodstock Soapstone | F127: ='Woodstock 209a Progress Hybrid'!$B$3 -> Model 209a Progress Hybrid | G127: ASTM E3053 | H127: ='Woodstock 209a Progress Hybrid'!$B$4 -> 0 | I127: ='Woodstock 209a Progress Hybrid'!$B$6 -> Pending - Major | J127: No Determination List | K127: =SUBSTITUTE('Woodstock 209a Progress Hybrid'!$I$6,"Basis: ","") -> 
D128: 127 | E128: ='VC Intrepid CAT'!$B$2 -> HHT/Hearth and Home Technologies | F128: ='VC Intrepid CAT'!$B$3 -> Intrepid Flexburn 2115 CAT | G128: EPA M28R | H128: ='VC Intrepid CAT'!$B$4 -> Disapproved | I128: ='VC Intrepid CAT'!$B$6 -> Pending - Major | J128: No Determination List | K128: =SUBSTITUTE('VC Intrepid CAT'!$I$6,"Basis: ","") -> ES1, IDU, IR, NR
D129: 128 | E129: ='SBI 1.7 Blackcomb'!$B$2 -> Stove Builders International | F129: ='SBI 1.7 Blackcomb'!$B$3 -> 1.7 Series - Blackcomb II, Harmony 1.7, Solution 1.7, Osburn 1700, Inspire 1700, Escape 1500, Escape 1500-I, Solution 1.7-I, Destination 1.7-I, Osburn 1700-I, Matrix 1700-I, Inspire 1700-I | G129: ASTM E3053 | H129: ='SBI 1.7 Blackcomb'!$B$4 -> Requires a more thorough review | I129: ='SBI 1.7 Blackcomb'!$B$6 -> Pending - Major | J129: No Determination List | K129: =SUBSTITUTE('SBI 1.7 Blackcomb'!$I$6,"Basis: ","") -> MD, IR, NR
D130: 129 | E130: ='Woodstock Palladian'!$B$2 -> Woodstock Soapstone Company | F130: ='Woodstock Palladian'!$B$3 -> 202 Palladian, 204 Keystone | G130: ASTM E3053 | H130: ='Woodstock Palladian'!$B$4 -> Requires a more thorough review | I130: ='Woodstock Palladian'!$B$6 -> Pending - Major | J130: No Determination List | K130: =SUBSTITUTE('Woodstock Palladian'!$I$6,"Basis: ","") -> IR, NR
D131: 130 | E131: ='Woodstock 210a Ideal Steel Hyd'!$B$2 -> Woodstock Soapstone | F131: ='Woodstock 210a Ideal Steel Hyd'!$B$3 -> Model 210a Ideal Steel Hybrid | G131: ASTM E3053 | H131: ='Woodstock 210a Ideal Steel Hyd'!$B$4 -> 0 | I131: ='Woodstock 210a Ideal Steel Hyd'!$B$6 -> Disapproved | J131: No Determination List | K131: =SUBSTITUTE('Woodstock 210a Ideal Steel Hyd'!$I$6,"Basis: ","") -> 
D132: 131 | E132: ='Woodstock Ideal Steel'!$B$2 -> Woodstock Soapstone Company | F132: ='Woodstock Ideal Steel'!$B$3 -> 210 Ideal Steel | G132: ASTM E3053 | H132: ='Woodstock Ideal Steel'!$B$4 -> Disapproved | I132: ='Woodstock Ideal Steel'!$B$6 -> Disapproved | J132: Disapproved List | K132: =SUBSTITUTE('Woodstock Ideal Steel'!$I$6,"Basis: ","") -> ESA, ES1, IR, NR
D133: 132 | E133: ='Wolf Napoleon EP3C'!$B$2 -> Wolf Steel | F133: ='Wolf Napoleon EP3C'!$B$3 -> Napoleon EPI3C, Napoleon EPI3T, Napoleon EPI3TN | G133: Not reported | H133: ='Wolf Napoleon EP3C'!$B$4 -> Disapproved | I133: ='Wolf Napoleon EP3C'!$B$6 -> Disapproved | J133: Disapproved List | K133: =SUBSTITUTE('Wolf Napoleon EP3C'!$I$6,"Basis: ","") -> No test report
D134: 133 | E134: ='Energy Distribution Invicta'!$B$2 -> Energy Distribution | F134: ='Energy Distribution Invicta'!$B$3 -> Invicta Gaya Ardoise | G134: EPA M28R | H134: ='Energy Distribution Invicta'!$B$4 -> 0 | I134: ='Energy Distribution Invicta'!$B$6 -> 0 | J134: Approved List - Pending | K134: =SUBSTITUTE('Energy Distribution Invicta'!$I$6,"Basis: ","") -> 
D135: 134 | E135: ='Enerco WS110'!$B$2 -> Enerco | F135: ='Enerco WS110'!$B$3 -> WS110 | G135: ASTM E3053 | H135: ='Enerco WS110'!$B$4 -> 0 | I135: ='Enerco WS110'!$B$6 -> 0 | J135: No Determination List | K135: =SUBSTITUTE('Enerco WS110'!$I$6,"Basis: ","") -> No test report
D136: 135 | E136: ='Mansfield 8013'!$B$2 -> HearthStone | F136: ='Mansfield 8013'!$B$3 -> Manfield 8013 | G136: EPA M28R | H136: ='Mansfield 8013'!$B$4 -> 0 | I136: ='Mansfield 8013'!$B$6 -> 0 | J136: No Determination List | K136: =SUBSTITUTE('Mansfield 8013'!$I$6,"Basis: ","") -> 
D137: 136 | E137: ='Answer NexGen Hybrid-Fyre'!$B$2 -> Travis Industries | F137: ='Answer NexGen Hybrid-Fyre'!$B$3 -> Answer NexGen Hybrid-Fyre | G137: =IF(#REF!=1,'Answer NexGen Hybrid-Fyre'!$B$9,IF(#REF!=2,'Answer NexGen Hybrid-Fyre'!$M$9,'Answer NexGen Hybrid-Fyre'!$AB$9)) ->  | H137: ='Answer NexGen Hybrid-Fyre'!$B$4 -> 0 | I137: ='Answer NexGen Hybrid-Fyre'!$B$6 -> 0 | J137: =IF(#REF!=1,'Answer NexGen Hybrid-Fyre'!$B$7,IF(#REF!=2,'Answer NexGen Hybrid-Fyre'!$M$7,'Answer NexGen Hybrid-Fyre'!$AB$7)) ->  | K137: =SUBSTITUTE('Answer NexGen Hybrid-Fyre'!$I$6,"Basis: ","") -> 
D138: 137 | E138: ='212N Navajo Hybrid Wood Coal'!$B$2 -> Woodstock Soapstone | F138: ='212N Navajo Hybrid Wood Coal'!$B$3 -> 212N Navajo Hybrid Wood Coal | G138: =IF(#REF!=1,'212N Navajo Hybrid Wood Coal'!$B$9,IF(#REF!=2,'212N Navajo Hybrid Wood Coal'!$M$9,'212N Navajo Hybrid Wood Coal'!$AB$9)) ->  | H138: ='212N Navajo Hybrid Wood Coal'!$B$4 -> 0 | I138: ='212N Navajo Hybrid Wood Coal'!$B$6 -> 0 | J138: =IF(#REF!=1,'212N Navajo Hybrid Wood Coal'!$B$7,IF(#REF!=2,'212N Navajo Hybrid Wood Coal'!$M$7,'212N Navajo Hybrid Wood Coal'!$AB$7)) ->  | K138: =SUBSTITUTE('212N Navajo Hybrid Wood Coal'!$I$6,"Basis: ","") -> 
D139: 138 | E139: ='US Stove TH-100'!$B$2 -> United States Stove Company | F139: ='US Stove TH-100'!$B$3 -> TH-100, US500E, AW520E, VG520, SW500 | G139: =IF(#REF!=1,'US Stove TH-100'!$B$9,IF(#REF!=2,'US Stove TH-100'!$M$9,'US Stove TH-100'!$AB$9)) ->  | H139: ='US Stove TH-100'!$B$4 -> 0 | I139: ='US Stove TH-100'!$B$6 -> 0 | J139: =IF(#REF!=1,'US Stove TH-100'!$B$7,IF(#REF!=2,'US Stove TH-100'!$M$7,'US Stove TH-100'!$AB$7)) ->  | K139: =SUBSTITUTE('US Stove TH-100'!$I$6,"Basis: ","") -> 
D140: 139 | E140: =#REF! ->  | F140: =#REF! ->  | G140: =IF(#REF!=1,#REF!,IF(#REF!=2,#REF!,#REF!)) ->  | H140: =#REF! ->  | I140: =#REF! ->  | J140: =IF(#REF!=1,#REF!,IF(#REF!=2,#REF!,#REF!)) ->  | K140: =SUBSTITUTE(#REF!,"Basis: ","") -> 

Sheet FPI-F2450
A1: Summary of Review
A2: Manufacturer | B2: FPI / Regency Fireplace Products
A3: Model | B3: F2450 | F3: Control approach | I3: Non-Catalytic
A4: Prelim review recomm. | B4: Disapproved | I4: B4 = "Disapproved"
A5: Red flags | B5: 8 | C5: Orange flags | E5: 11 | F5: Yellow flags | H5: 4
A6: Final Determination | B6: Disapproved | F6: Date: 9/1/2020 | I6: Basis: ESA, ES1, IR, NR
A7: AK List Status | B7: Disapproved List
A8: Testing Information | B8: Determination | I8: Notes
A9: Test method | B9: ASTM E3053 | I9: ATM
A10: Test Lab | B10: PFS-TECO | I10: performed at PFS TECO lab
A11: Third-party certifier | B11: PFS-TECO
A12: Report certified | B12: PFS-TECO
A13: Test Report Elements | B13: Determination | I13: Notes
A14: Wght Avg PM emissions (g/hr) | B14: 2.26 | D14: PM Highest 1-hr (g/hr) | G14: 9.84 | I14: 2.3
A15: Wght Avg HHV Efficiency (%) | B15: 73.3 | I15: 78
A16: Wght Avg CO (g/hr) | B16: =IFERROR(G16*60,"Not reported") -> 111 | D16: Wght Avg CO (g/min) | G16: 1.85
A17: Max heat output (Btu/hr) | B17: 53563 | I17: 75000
A18: Manufacturers Instructions to lab | B18: Not reported
A19: Firebox vol. test report | B19: 2.24 | I19: 2.3
A20: Firebox dimensions | B20: Not reported | D20: Longest dim. (in) | F20: 18 | G20: Max log length
A21: Firebox calculations | B21: Not reported
A22: Efficiency calculations | B22: Reported
A23: Burn rate calculations | B23: Reported
A24: Raw data sheets | B24: Reported
A25: Conditioning completed by | B25: Lab | I25: cannot determine when conditioning occurred. date on data sheet is testing day.
A26: Conditioning data | B26: Reported | I26: 1) Did not report dates and when fuel added per method. 2) Only 6 out of 50 hours at medium burn rate (1.17 kg/hr, +/-0.5 kg/hr) based on med burn from test report.
A27: Lab technician notes | B27: Not reported
A28: Doc. of run appropriateness | B28: Reported
A29: Doc. of run validity | B29: Reported
A30: Doc. of run anomolies | B30: Reported
A31: Doc. of run burn rates | B31: Reported
A32: Photos of the fuel loaded | B32: Reported
A33: Test Run Data | B33: Determination | I33: Notes
A34: Run # | C34: 1 | D34: 2 | E34: 3
A35: Run Category | C35: Startup & High | D35: Low | E35: Medium
A36: Burn rate (kg/hr) | C36: 4.38 | D36: 1.01 | E36: 1.17 | I36: TM doesn't require kg/hr - basis but
A37: PM emissions by run (g/hr) | C37: 5.78 | D37: 1.81 | E37: 0.96 | I37: essentially the same heat output. Why
A38: PM 1-hr filter pull (g/hr) | C38: 9.84 | D38: 2.92 | E38: 5.65 | I38: wasn't a higher air setting used.
A39: Filter data | C39: NR | D39: NR | E39: NR | I39: H: 1.975" open
A40: Train precision (%) | C40: 2.4 | D40: 0.4 | E40: -0.3 | I40: M: 0.447" open
A41: Negative weights | C41: NR | D41: NR | E41: NR | I41: L: .0322" open
A42: Negs handled appropriately | B42: No
A43: Heat output by run (Btu/hr) | C43: 53563 | D43: 14179 | E43: 16405
A44: CO by run (g/hr) | C44: 215 | D44: 88 | E44: 82
A45: HHV efficiency (%) | C45: 71.2 | D45: 73.9 | E45: 73.7
A46: Lowest burn rate tested | B46: Cannot be determined
A47: All run data | B47: Not reported | I47: missing data to confirm SU/H completed correctly before second day testing
A48: Appliance Fueling | B48: Determination | I48: Notes
A49: Fuel species | B49: Maple
A50: Log length (in) | C50: 17 | D50: 17 | E50: 17 | I50: 18"
A51: Direction of longest dimension | B51: East-West
A52: Log direction for testing | B52: North-South
A53: Squared (ASTM test only) | B53: More than 50%
A54: Debarked (ASTM test only) | B54: More than 50%
A55: Load density (lb/ft3) | C55: 9.54 | D55: 11.59 | E55: 11.55
A56: Fuel moisture content load (%wb) | C56: 20.7 | D56: 22 | E56: 22.5 | I56: B avg moisture 21.7
A57: Fuel piece configuration | B57: Within specified limit
A58: Owners Manual Req. | B58: Determination | I58: Notes
A59: Stack height | B59: Included
A60: Location recommendation | B60: Included
A61: Guidance on proper draft | B61: Included
A62: Fuel loading & reloading | B62: Not included
A63: Fuel selection recomm. | B63: Included
A64: Improper fuels warnings | B64: Included
A65: Fire starting procedures | B65: Not included
A66: Proper use of air controls | B66: Included
A67: Proper operation low | B67: Not included
A68: Ash removal procedures | B68: Included
A69: Replacement parts | B69: Included
A70: Federal warning (C or NC) | B70: Included
A71: Warranty rights | B71: Included
A72: Catalytst operation | B72: Included
A73: Cat maintenance procedures | B73: Included
A74: Determining catalyst det. or failure | B74: Included
A75: Reporting | B75: Determination | I75: Notes
A76: Summary tables complete | B76: All reported
A77: All run data submitted | B77: All reported
A78: Test report complete | B78: Partially reported major
A79: Owner manual complete | B79: Partially reported major
A80: Test dates | B80: 2/27-28/2019 | I80: received 2/21/19
A81: 30 Day notice submitted to EPA | B81: Cannot be determined
A82: Tested on the proposed date | B82: Cannot be determined
A83: Tested in consecutive days | B83: Yes
A84: 60 Day report to EPA | B84: Cannot be determined | I84: written on 5/7/2019
A85: EPA additional Review Elements | B85: Determination | I85: Notes
A86: Test location
A87: date lab received the unit
A88: date first day of conditioning
A89: date first day of testing
A90: first hour PM emissions reported for all runs
A91: first hour PM emissions reported in grams per hour
A92: first hour PM emissions zero or negative
A93: first hour PM emissions measured with front and back filter | B93: not reported
A94: Zero CO emission reported
A95: Any incomplete runs
A96: Preburn data reported (SU/High-3053, preburn M28R)
A97: filter changes during test run
A98: filter plugged during test run | B98: yes
A99: What type of filter used
A100: Back and front filter weighed together (3053 only)
A101: Negative probe weight >5% of PM
A102: Negative probe value
A103: Negative room air values
A104: Ambient background filter data
A105: Proportional sampling
A106: Leak check - pre-test leak check reported
A107: Leak check - any filter change
A108: Leak check - post leak check reported
A109: Dilution tunnel schematic meets ASTM 2515 requirements
A110: Firebox measurements confirmed with schematic
A111: number of conditioning hours reported in summary
A112: number of conditioning hours with data
A113: number of hours at correct conditioning conditions
A114: used lowest air settings for low burn (ASTM 3053) or Cat 1(M28R)
A115: Air setting data | B115: Cat 1/Low | C115: Cat 2/Med | D115: Cat 3 | E115: Cat 4/High | F115: FC | G115: CV
A117: Total number of runs
A118: run averaging done correctly
A119: which SU/H run used for calculating emissions
A120: Fuel data for all SU/H runs (ASTM 3053)
A121: Multiple fuel lengths used | B121: not reported
A122: Specific gravity of fuel used (ASTM 3053 only) | E122: Value
A123: M28 fuel loaded longest dimension
A124: Calibration data

Sheet FPI-I2450M
A1: Summary of Review | L1: Summary of Review | W1: Summary of Review
A2: Manufacturer | B2: FPI / Regency Fireplace Products | I2: 2021-03-31 | L2: Manufacturer | M2: FPI / Regency Fireplace Products | T2: 2021-03-31 | W2: Manufacturer | X2: FPI / Regency Fireplace Products | AE2: 2021-03-31
A3: Model | B3: I2450M, HI2450M | F3: Control approach | I3: Non-Catalytic | L3: Model | M3: I2450M, HI2450M | Q3: Control approach | T3: Non-Catalytic | W3: Model | X3: I2450M, HI2450M | AB3: Control approach | AE3: Non-Catalytic
A4: Prelim review recomm. | B4: Disapproved | L4: Prelim review recomm. | M4: Disapproved | W4: Prelim review recomm. | X4: Disapproved
A5: Red flags | B5: 8 | C5: Orange flags | E5: 10 | F5: Yellow flags | H5: 4 | L5: Red flags | M5: 8 | N5: Orange flags | P5: 10 | Q5: Yellow flags | S5: 4 | W5: Red flags | X5: 8 | Y5: Orange flags | AA5: 10 | AB5: Yellow flags | AD5: 4
A6: Final Determination | B6: Pending - Major | F6: Date: 9/1/2020 | I6: Basis: IR, MD, NR | L6: Final Determination | M6: Pending - Major | Q6: Date: 9/1/2020 | T6: Basis: IR, MD, NR | W6: Final Determination | X6: Pending - Major | AB6: Date: 9/1/2020 | AE6: Basis: IR, MD, NR
A7: AK List Status | B7: No Determination List | L7: AK List Status | W7: AK List Status | X7: No Determination List
A8: Testing Information | B8: Determination | I8: Notes | L8: Testing Information | M8: Determination | T8: Notes | W8: Testing Information | X8: Determination | AE8: Notes
A9: Test method | B9: ASTM E3053 | I9: ATM approval letter included in updated report on pg 218 | L9: Test method | M9: ASTM E3053 | T9: ATM must be approved by ADEC (18 AAC 50.077(c)(3)(A)(ii). | W9: Test method | X9: ASTM E3053 | AE9: ATM must be approved by ADEC (18 AAC 50.077(c)(3)(A)(ii).
A10: Test Lab | B10: PFS-TECO | I10: performed at PFS TECO facility | L10: Test Lab | M10: PFS-TECO | T10: performed at PFS TECO facility | W10: Test Lab | X10: PFS-TECO | AE10: performed at PFS TECO facility
A11: Third-party certifier | B11: PFS-TECO | L11: Third-party certifier | M11: PFS-TECO | W11: Third-party certifier | X11: PFS-TECO
A12: Report certified | B12: PFS-TECO | L12: Report certified | M12: PFS-TECO | W12: Report certified | X12: PFS-TECO
A13: Test Report Elements | B13: Determination | I13: Notes | L13: Test Report Elements | M13: Determination | T13: Notes | W13: Test Report Elements | X13: Determination | AE13: Notes
A14: Wght Avg PM emissions (g/hr) | B14: 1.38 | D14: PM Highest 1-hr (g/hr) | G14: 5.31 | L14: Wght Avg PM emissions (g/hr) | M14: 1.38 | O14: PM Highest 1-hr (g/hr) | R14: 5.31 | W14: Wght Avg PM emissions (g/hr) | X14: 1.38 | Z14: PM Highest 1-hr (g/hr) | AC14: 5.31
A15: Wght Avg HHV Efficiency (%) | B15: 67 | I15: 0.72 | L15: Wght Avg HHV Efficiency (%) | M15: 67 | T15: 0.72 | W15: Wght Avg HHV Efficiency (%) | X15: 67 | AE15: 0.72
A16: Wght Avg CO (g/hr) | B16: =IFERROR(G16*60,"Not reported") -> 85.8 | D16: Wght Avg CO (g/min) | G16: 1.43 | L16: Wght Avg CO (g/hr) | M16: =IFERROR(R16*60,"Not reported") -> 85.8 | O16: Wght Avg CO (g/min) | R16: 1.43 | W16: Wght Avg CO (g/hr) | X16: =IFERROR(AC16*60,"Not reported") -> 85.8 | Z16: Wght Avg CO (g/min) | AC16: 1.43
A17: Max heat output (Btu/hr) | B17: 34612 | I17: 75000 | L17: Max heat output (Btu/hr) | M17: 34612 | T17: 75000 | W17: Max heat output (Btu/hr) | X17: 34612 | AE17: 75000
A18: Manufacturers Instructions to lab | B18: Not reported | I18: included in updated report on pg 177 | L18: Manufacturers Instructions to lab | M18: Partially reported | T18: Manufacturer instructions incomplete, how did lab determine information requring manufacturer direction? | W18: Manufacturers Instructions to lab | X18: Partially reported | AE18: Manufacturer instructions incomplete, how did lab determine information requring manufacturer direction?
A19: Firebox vol. test report | B19: 2.24 | I19: 2.3 | L19: Firebox vol. test report | M19: 2.24 | T19: 2.3 | W19: Firebox vol. test report | X19: 2.24 | AE19: 2.3
A20: Firebox dimensions | B20: Not reported | D20: Longest dim. (in) | F20: 18 | G20: Max log length | L20: Firebox dimensions | M20: Partially reported | O20: Longest dim. (in) | Q20: 20.133 | R20: Firebox dimension | T20: Missing front view measurements only side provided | W20: Firebox dimensions | X20: Partially reported | Z20: Longest dim. (in) | AB20: 20.133 | AC20: Firebox dimension | AE20: Missing front view measurements only side provided
A21: Firebox calculations | B21: Not reported | I21: Firebox diagram on pg 176 of updated report though no actual calculations. | L21: Firebox calculations | M21: Not reported | T21: Actual Calculations not included in diagram. | W21: Firebox calculations | X21: Not reported | AE21: Actual Calculations not included in diagram.
A22: Efficiency calculations | B22: Reported | L22: Efficiency calculations | M22: Reported | W22: Efficiency calculations | X22: Reported
A23: Burn rate calculations | B23: Reported | L23: Burn rate calculations | M23: Reported | W23: Burn rate calculations | X23: Reported
A24: Raw data sheets | B24: Reported | I24: Raw data sheets on pages 250-261 | L24: Raw data sheets | M24: Reported | T24: Raw data sheets on pages 250-261 | W24: Raw data sheets | X24: Reported | AE24: Raw data sheets on pages 250-261
A25: Conditioning completed by | B25: Lab | I25: Reported aging took place 3/20-4/1/2019 but appliance receipt date for lab after aging on 4/4/2019. | L25: Conditioning completed by | M25: Lab | T25: Reported aging took place 3/20-4/1/2019 but appliance receipt date for lab after aging on 4/4/2019. | W25: Conditioning completed by | X25: Lab | AE25: Reported aging took place 3/20-4/1/2019 but appliance receipt date for lab after aging on 4/4/2019.
A26: Conditioning data | B26: Partially reported | I26: 1) Did not report aging dates and did not report fuel information per the method. 2) Only 7 out of 50 hours at medium burn rate (1.25 kg/hr, +/-0.5 kg/hr) based on med burn from test report. other info | L26: Conditioning data | M26: Partially reported | T26: 1) Did not report aging dates and did not report fuel information per the method. 2) Only 7 out of 50 hours at medium burn rate (1.25 kg/hr, +/-0.5 kg/hr) based on med burn from test report. other info | W26: Conditioning data | X26: Partially reported | AE26: 1) Did not report aging dates and did not report fuel information per the method. 2) Only 7 out of 50 hours at medium burn rate (1.25 kg/hr, +/-0.5 kg/hr) based on med burn from test report. other info
A27: Lab technician notes | B27: Not reported | I27: Included in updated report on pgs 47, 103, and 173 | L27: Lab technician notes | M27: Reported | W27: Lab technician notes | X27: Reported
A28: Doc. of run appropriateness | B28: Reported | L28: Doc. of run appropriateness | M28: Reported | W28: Doc. of run appropriateness | X28: Reported
A29: Doc. of run validity | B29: Reported | L29: Doc. of run validity | M29: Reported | W29: Doc. of run validity | X29: Reported
A30: Doc. of run anomolies | B30: Reported | I30: 4 days of testing for a 2-day test - not discussed | L30: Doc. of run anomolies | M30: Reported | T30: 4 days of testing for a 2-day test - not discussed | W30: Doc. of run anomolies | X30: Reported | AE30: 4 days of testing for a 2-day test - not discussed
A31: Doc. of run burn rates | B31: Reported | L31: Doc. of run burn rates | M31: Reported | W31: Doc. of run burn rates | X31: Reported
A32: Photos of the fuel loaded | B32: Reported | L32: Photos of the fuel loaded | M32: Reported | W32: Photos of the fuel loaded | X32: Reported
A33: Test Run Data | B33: Determination | I33: Notes | L33: Test Run Data | M33: Determination | T33: Notes | W33: Test Run Data | X33: Determination | AE33: Notes
A34: Run # | C34: 2 | D34: 4 | E34: 1 | I34: Run # 3 added to updated report pg 107 | L34: Run # | N34: 2 | O34: 4 | P34: 1 | Q34: 3 | W34: Run # | Y34: 2 | Z34: 4 | AA34: 1 | AB34: 3
A35: Run Category | C35: Low | D35: Medium | E35: Startup & High | I35: TM doesn't require kg/hr - basis but essentially the same heat output. Why wasn't a higher air setting used. | L35: Run Category | N35: Low | O35: Medium | P35: Startup & High | Q35: medium | T35: TM doesn't require kg/hr - basis but essentially the same heat output. Why wasn't a higher air setting used. | W35: Run Category | Y35: Low | Z35: Medium | AA35: Startup & High | AB35: medium | AE35: TM doesn't require kg/hr - basis but essentially the same heat output. Why wasn't a higher air setting used.
A36: Burn rate (kg/hr) | C36: 1.1 | D36: 1.25 | E36: 2.74 | I36: H: max" open | L36: Burn rate (kg/hr) | N36: 1.1 | O36: 1.25 | P36: 2.74 | Q36: 3.11 | T36: H: max" open | W36: Burn rate (kg/hr) | Y36: 1.1 | Z36: 1.25 | AA36: 2.74 | AB36: 3.11 | AE36: H: max" open
A37: PM emissions by run (g/hr) | C37: 0.78 | D37: 0.89 | E37: 3.58 | I37: M: 0.5" open | L37: PM emissions by run (g/hr) | N37: 0.78 | O37: 0.89 | P37: 3.58 | Q37: -108.95 | T37: M: 0.5" open | W37: PM emissions by run (g/hr) | Y37: 0.78 | Z37: 0.89 | AA37: 3.58 | AB37: -108.95 | AE37: M: 0.5" open
A38: PM 1-hr filter pull (g/hr) | C38: 3.77 | D38: 3.48 | E38: 5.31 | I38: L: .min" open | L38: PM 1-hr filter pull (g/hr) | N38: 3.77 | O38: 3.48 | P38: 5.31 | Q38: -87.1 | T38: L: .min" open | W38: PM 1-hr filter pull (g/hr) | Y38: 3.77 | Z38: 3.48 | AA38: 5.31 | AB38: -87.1 | AE38: L: .min" open
A39: Filter data | C39: yes | D39: yes | E39: yes | I39: need instructions to understand variation | L39: Filter data | N39: yes | O39: yes | P39: yes | Q39: yes | T39: need instructions to understand variation | W39: Filter data | Y39: yes | Z39: yes | AA39: yes | AB39: yes | AE39: need instructions to understand variation
A40: Train precision (%) | C40: 5.6 | D40: 7 | E40: 4 | L40: Train precision (%) | N40: 5.6 | O40: 7 | P40: 4 | Q40: >7.5 | W40: Train precision (%) | Y40: 5.6 | Z40: 7 | AA40: 4 | AB40: >7.5
A41: Negative weights | C41: no | D41: no | E41: no | L41: Negative weights | N41: no | O41: no | P41: no | Q41: Yes | W41: Negative weights | Y41: no | Z41: no | AA41: no | AB41: Yes
A42: Negs handled appropriately | B42: Yes | L42: Negs handled appropriately | M42: Yes | W42: Negs handled appropriately | X42: Yes
A43: Heat output by run (Btu/hr) | C43: 14169 | D43: 15567 | E43: 34612 | L43: Heat output by run (Btu/hr) | N43: 14169 | O43: 15567 | P43: 34612 | Q43: 39507 | W43: Heat output by run (Btu/hr) | Y43: 14169 | Z43: 15567 | AA43: 34612 | AB43: 39507 | AE43: data from run 3 was removed from test updated report
A44: CO by run (g/hr) | C44: 86 | D44: 81 | E44: 81 | L44: CO by run (g/hr) | N44: 86 | O44: 81 | P44: 81 | Q44: 321.99 | W44: CO by run (g/hr) | Y44: 86 | Z44: 81 | AA44: 81 | AB44: 321.99
A45: HHV efficiency (%) | C45: 68.2 | D45: 66.4 | E45: 66 | L45: HHV efficiency (%) | N45: 68.2 | O45: 66.4 | P45: 66 | Q45: 63.7 | W45: HHV efficiency (%) | Y45: 68.2 | Z45: 66.4 | AA45: 66 | AB45: 63.7
A46: Lowest burn rate tested | B46: Cannot be determined | L46: Lowest burn rate tested | M46: Cannot be determined | W46: Lowest burn rate tested | X46: Cannot be determined
A47: All run data | B47: Reported | L47: All run data | M47: Reported | W47: All run data | X47: Reported
A48: Appliance Fueling | B48: Determination | I48: Notes | L48: Appliance Fueling | M48: Determination | T48: Notes | W48: Appliance Fueling | X48: Determination | AE48: Notes
A49: Fuel species | B49: Maple | L49: Fuel species | M49: Maple | W49: Fuel species | X49: Maple
A50: Log length (in) | C50: 17 | D50: 17 | E50: 17 | I50: 5.31 | L50: Log length (in) | N50: 17 | O50: 17 | P50: 17 | T50: 5.31 | W50: Log length (in) | Y50: 17 | Z50: 17 | AA50: 17 | AE50: 5.31
A51: Direction of longest dimension | B51: East-West | L51: Direction of longest dimension | M51: East-West | W51: Direction of longest dimension | X51: East-West
A52: Log direction for testing | B52: North-South | I52: manufacturer states "Hearth Area is approximately square, logs loaded north/south in accordance with manufacturer’s instructions." | L52: Log direction for testing | M52: North-South | W52: Log direction for testing | X52: North-South
A53: Squared (ASTM test only) | B53: More than 50% | I53: manufacturer states "there are only a handful of “square”pieces used throughout the test series, much less than 50%" | L53: Squared (ASTM test only) | M53: More than 50% | T53: EPA has stated Squared wood is not acceptable for testing with ASTM 3053. Unless a letter is provided from EPA stating that it is acceptable to use squared wood for ASTM 3053 testing. | W53: Squared (ASTM test only) | X53: More than 50% | AE53: EPA has stated Squared wood is not acceptable for testing with ASTM 3053. Unless a letter is provided from EPA stating that it is acceptable to use squared wood for ASTM 3053 testing.
A54: Debarked (ASTM test only) | B54: More than 50% | I54: manufacturer states "it is very common for well-seasoned to shed its bark when re-split prior to testing (larger pieces split down into smaller pieces to meet fuel piece criteria). This is particularly true, in our experience, when working with wood that is split out of larger (20”+ rounds) which is our primary fuel source." | L54: Debarked (ASTM test only) | M54: More than 50% | W54: Debarked (ASTM test only) | X54: More than 50%
A55: Load density (lb/ft3) | C55: 11.52 | D55: 11.77 | E55: 10.08 | L55: Load density (lb/ft3) | N55: 11.52 | O55: 11.77 | P55: 10.08 | W55: Load density (lb/ft3) | Y55: 11.52 | Z55: 11.77 | AA55: 10.08
A56: Fuel moisture content load (%wb) | C56: 21.5 | D56: 22.3 | E56: 22.4 | I56: C avg moisture 22.1 | L56: Fuel moisture content load (%wb) | N56: 21.5 | O56: 22.3 | P56: 22.4 | T56: C avg moisture 22.1 | W56: Fuel moisture content load (%wb) | Y56: 21.5 | Z56: 22.3 | AA56: 22.4 | AE56: C avg moisture 22.1
A57: Fuel piece configuration | B57: Within specified limit | L57: Fuel piece configuration | M57: Within specified limit | W57: Fuel piece configuration | X57: Within specified limit
A58: Owners Manual Req. | B58: Determination | I58: Notes | L58: Owners Manual Req. | M58: Determination | T58: Notes | W58: Owners Manual Req. | X58: Determination | AE58: Notes
A59: Stack height | B59: Included | L59: Stack height | M59: Included | W59: Stack height | X59: Included
A60: Location recommendation | B60: Included | L60: Location recommendation | M60: Included | W60: Location recommendation | X60: Included
A61: Guidance on proper draft | B61: Included | L61: Guidance on proper draft | M61: Included | W61: Guidance on proper draft | X61: Included
A62: Fuel loading & reloading | B62: Not included | I62: referred to pg 198 of updated report | L62: Fuel loading & reloading | M62: Included | W62: Fuel loading & reloading | X62: Included
A63: Fuel selection recomm. | B63: Included | L63: Fuel selection recomm. | M63: Included | W63: Fuel selection recomm. | X63: Included
A64: Improper fuels warnings | B64: Included | L64: Improper fuels warnings | M64: Included | W64: Improper fuels warnings | X64: Included
A65: Fire starting procedures | B65: Included | L65: Fire starting procedures | M65: Included | W65: Fire starting procedures | X65: Included
A66: Proper use of air controls | B66: Included | L66: Proper use of air controls | M66: Included | W66: Proper use of air controls | X66: Included
A67: Proper operation low | B67: Not included | I67: referred to pg 198 of updated report | L67: Proper operation low | M67: Included | W67: Proper operation low | X67: Included
A68: Ash removal procedures | B68: Included | L68: Ash removal procedures | M68: Included | W68: Ash removal procedures | X68: Included
A69: Replacement parts | B69: Included | L69: Replacement parts | M69: Included | W69: Replacement parts | X69: Included
A70: Federal warning (C or NC) | B70: Not included | I70: modified from EPA terminology, intent modified. - reviewer referred to pg 180 of updated report | L70: Federal warning (C or NC) | M70: Insufficient data | T70: Statement from 50.536(g)(3) as required is not used. | W70: Federal warning (C or NC) | X70: Insufficient data | AE70: Statement from 50.536(g)(3) as required is not used.
A71: Warranty rights | B71: Included | L71: Warranty rights | M71: Included | W71: Warranty rights | X71: Included
A72: Catalytst operation | I72: NA | L72: Catalytst operation | T72: NA | W72: Catalytst operation | AE72: NA
A73: Cat maintenance procedures | I73: NA | L73: Cat maintenance procedures | T73: NA | W73: Cat maintenance procedures | AE73: NA
A74: Determining catalyst det. or failure | I74: NA | L74: Determining catalyst det. or failure | T74: NA | W74: Determining catalyst det. or failure | AE74: NA
A75: Reporting | B75: Determination | I75: Notes | L75: Reporting | M75: Determination | T75: Notes | W75: Reporting | X75: Determination | AE75: Notes
A76: Summary tables complete | B76: All reported | L76: Summary tables complete | M76: All reported | W76: Summary tables complete | X76: All reported
A77: All run data submitted | B77: All reported | L77: All run data submitted | M77: All reported | W77: All run data submitted | X77: All reported
A78: Test report complete | B78: Partially reported major | L78: Test report complete | M78: Partially reported major | W78: Test report complete | X78: Partially reported major
A79: Owner manual complete | B79: Partially reported major | L79: Owner manual complete | M79: All reported | W79: Owner manual complete | X79: All reported
A80: Test dates | B80: 4/8-9/19 & 4/11/19 - no explaination for the break in testing. | I80: received 4/4/19 - updated report submission explains run 3 was conducted on 4/10 meaning no gap in testing. | L80: Test dates | M80: 4/8-9/19 & 4/11/19 - no explaination for the break in testing. | T80: received 4/4/19 - | W80: Test dates | X80: 4/8-9/19 & 4/11/19 - no explaination for the break in testing. | AE80: received 4/4/19 -
A81: 30 Day notice submitted to EPA | B81: Cannot be determined | I81: included in updated report on pg 215 | L81: 30 Day notice submitted to EPA | M81: Yes | T81: proposed week of April 1, 2019 | W81: 30 Day notice submitted to EPA | X81: Yes | AE81: proposed week of April 1, 2019
A82: Tested on the proposed date | B82: Cannot be determined | L82: Tested on the proposed date | M82: No | T82: Scheduling change email from PFS to EPA included in updated report. | W82: Tested on the proposed date | X82: No | AE82: Scheduling change email from PFS to EPA included in updated report.
A83: Tested in consecutive days | B83: No | L83: Tested in consecutive days | M83: Yes | W83: Tested in consecutive days | X83: Yes
A84: 60 Day report to EPA | B84: Cannot be determined | I84: included in updated report pg 223 | L84: 60 Day report to EPA | M84: Yes | W84: 60 Day report to EPA | X84: Yes
A85: EPA additional Review Elements | B85: Determination | I85: Notes | L85: EPA additional Review Elements | M85: Determination | T85: Notes | W85: EPA additional Review Elements | X85: Determination | AE85: Notes
A86: Test location | L86: Test location | W86: Test location | X86: Lab
A87: date lab received the unit | L87: date lab received the unit | W87: date lab received the unit | X87: 2019-04-04
A88: date first day of conditioning | L88: date first day of conditioning | W88: date first day of conditioning | X88: 2019-03-20
A89: date first day of testing | L89: date first day of testing | W89: date first day of testing | X89: 2019-04-08
A90: first hour PM emissions reported for all runs | L90: first hour PM emissions reported for all runs | W90: first hour PM emissions reported for all runs | X90: no
A91: first hour PM emissions reported in grams per hour | L91: first hour PM emissions reported in grams per hour | W91: first hour PM emissions reported in grams per hour | X91: yes
A92: first hour PM emissions zero or negative | L92: first hour PM emissions zero or negative | W92: first hour PM emissions zero or negative | X92: yes
A93: first hour PM emissions measured with front and back filter | L93: first hour PM emissions measured with front and back filter | W93: first hour PM emissions measured with front and back filter | X93: no | AE93: Front
A94: Zero CO emission reported | L94: Zero CO emission reported | W94: Zero CO emission reported | X94: no
A95: Any incomplete runs | L95: Any incomplete runs | W95: Any incomplete runs | X95: yes | AE95: Run 3
A96: Preburn data reported (SU/High-3053, preburn M28R) | L96: Preburn data reported (SU/High-3053, preburn M28R) | W96: Preburn data reported (SU/High-3053, preburn M28R) | X96: yes
A97: filter changes during test run | L97: filter changes during test run | W97: filter changes during test run | X97: no
A98: filter plugged during test run | L98: filter plugged during test run | W98: filter plugged during test run | X98: yes | AE98: Run 3
A99: What type of filter used | L99: What type of filter used | W99: What type of filter used | X99: Emfab
A100: Back and front filter weighed together (3053 only) | L100: Back and front filter weighed together (3053 only) | W100: Back and front filter weighed together (3053 only) | X100: yes
A101: Negative probe weight >5% of PM | L101: Negative probe weight >5% of PM | W101: Negative probe weight >5% of PM | X101: no negatives
A102: Negative probe value | L102: Negative probe value | W102: Negative probe value | X102: no negatives
A103: Negative room air values | L103: Negative room air values | W103: Negative room air values | X103: no negatives
A104: Ambient background filter data | L104: Ambient background filter data | W104: Ambient background filter data | X104: no negatives
A105: Proportional sampling | L105: Proportional sampling | W105: Proportional sampling | X105: yes with allowable deviations
A106: Leak check - pre-test leak check reported | L106: Leak check - pre-test leak check reported | W106: Leak check - pre-test leak check reported | X106: not reported
A107: Leak check - any filter change | L107: Leak check - any filter change | W107: Leak check - any filter change | X107: not reported
A108: Leak check - post leak check reported | L108: Leak check - post leak check reported | W108: Leak check - post leak check reported | X108: yes with allowable deviations
A109: Dilution tunnel schematic meets ASTM 2515 requirements | L109: Dilution tunnel schematic meets ASTM 2515 requirements | W109: Dilution tunnel schematic meets ASTM 2515 requirements | X109: no
A110: Firebox measurements confirmed with schematic | L110: Firebox measurements confirmed with schematic | W110: Firebox measurements confirmed with schematic | X110: no
A111: number of conditioning hours reported in summary | L111: number of conditioning hours reported in summary | W111: number of conditioning hours reported in summary | X111: 50
A112: number of conditioning hours with data | L112: number of conditioning hours with data | W112: number of conditioning hours with data | X112: 50
A113: number of hours at correct conditioning conditions | L113: number of hours at correct conditioning conditions | W113: number of hours at correct conditioning conditions | X113: 7 | AE113: see cell AM26
A114: used lowest air settings for low burn (ASTM 3053) or Cat 1(M28R) | L114: used lowest air settings for low burn (ASTM 3053) or Cat 1(M28R) | W114: used lowest air settings for low burn (ASTM 3053) or Cat 1(M28R) | X114: not reported
A115: Air setting data | B115: Cat 1/Low | C115: Cat 2/Med | D115: Cat 3 | E115: Cat 4/High | F115: FC | G115: CV | L115: Air setting data | M115: Cat 1/Low | N115: Cat 2/Med | O115: Cat 3 | P115: Cat 4/High | Q115: FC | R115: CV | W115: Air setting data | X115: Cat 1/Low | Y115: Cat 2/Med | Z115: Cat 3 | AA115: Cat 4/High | AB115: FC | AC115: CV
X116: Low | Y116: Med | AA116: High
A117: Total number of runs | L117: Total number of runs | W117: Total number of runs | X117: 4
A118: run averaging done correctly | L118: run averaging done correctly | W118: run averaging done correctly
A119: which SU/H run used for calculating emissions | L119: which SU/H run used for calculating emissions | W119: which SU/H run used for calculating emissions | X119: first run
A120: Fuel data for all SU/H runs (ASTM 3053) | L120: Fuel data for all SU/H runs (ASTM 3053) | W120: Fuel data for all SU/H runs (ASTM 3053) | X120: no
A121: Multiple fuel lengths used | L121: Multiple fuel lengths used | W121: Multiple fuel lengths used | X121: no
A122: Specific gravity of fuel used (ASTM 3053 only) | E122: Value | L122: Specific gravity of fuel used (ASTM 3053 only) | P122: Value | W122: Specific gravity of fuel used (ASTM 3053 only) | X122: yes | AA122: Value | AC122: 0.6
A123: M28 fuel loaded longest dimension | L123: M28 fuel loaded longest dimension | W123: M28 fuel loaded longest dimension | X123: not reported
A124: Calibration data | L124: Calibration data | W124: Calibration data | X124: yes | AE124: Some outside 6 month requirement

Sheet FPI-F2500
A1: Summary of Review | L1: Summary of Review | W1: Summary of Review
A2: Manufacturer | B2: FPI / Regency Fireplace Products | I2: 2021-03-31 | L2: Manufacturer | M2: FPI / Regency Fireplace Products | T2: 2021-03-31 | W2: Manufacturer | X2: FPI / Regency Fireplace Products | AE2: 2021-03-31
A3: Model | B3: F2500 | F3: Control approach | I3: Catalytic | L3: Model | M3: F2500 | Q3: Control approach | T3: Catalytic | W3: Model | X3: F2500 | AB3: Control approach | AE3: Catalytic
A4: Prelim review recomm. | B4: Disapproved | L4: Prelim review recomm. | M4: Disapproved | W4: Prelim review recomm. | X4: Disapproved | AE4: Models match EPA database listing
A5: Red flags | B5: 7 | C5: Orange flags | E5: 12 | F5: Yellow flags | H5: 8 | L5: Red flags | M5: 7 | N5: Orange flags | P5: 12 | Q5: Yellow flags | S5: 8 | W5: Red flags | X5: 7 | Y5: Orange flags | AA5: 12 | AB5: Yellow flags | AD5: 8
A6: Final Determination | B6: Pending - Major | F6: Date: 9/1/2020 | I6: Basis: IR, IDU | L6: Final Determination | M6: Pending - Major | Q6: Date: 9/1/2020 | T6: Basis: IR, IDU | W6: Final Determination | X6: Pending - Major | AB6: Date: 9/1/2020 | AE6: Basis: IR, IDU
A7: AK List Status | B7: No Determination List | L7: AK List Status | W7: AK List Status | X7: Approved List - Pending
A8: Testing Information | B8: Determination | I8: Notes | L8: Testing Information | M8: Determination | T8: Notes | W8: Testing Information | X8: Determination | AE8: Notes
A9: Test method | B9: ASTM E3053 | I9: ATM - ATM approval letter added to updated report pg 252 | L9: Test method | M9: ASTM E3053 | T9: ATM must be approved by ADEC (18 AAC 50.077(c)(3)(A)(ii). | W9: Test method | X9: ASTM E3053 | AE9: ATM must be approved by ADEC (18 AAC 50.077(c)(3)(A)(ii).
A10: Test Lab | B10: PFS-TECO | I10: performed at PFS facility | L10: Test Lab | M10: PFS-TECO | T10: performed at PFS facility | W10: Test Lab | X10: PFS-TECO | AE10: performed at PFS facility
A11: Third-party certifier | B11: PFS-TECO | L11: Third-party certifier | M11: PFS-TECO | W11: Third-party certifier | X11: PFS-TECO
A12: Report certified | B12: PFS-TECO | L12: Report certified | M12: PFS-TECO | W12: Report certified | X12: PFS-TECO
A13: Test Report Elements | B13: Determination | I13: Notes | L13: Test Report Elements | M13: Determination | T13: Notes | W13: Test Report Elements | X13: Determination | AE13: Notes
A14: Wght Avg PM emissions (g/hr) | B14: 1 | D14: PM Highest 1-hr (g/hr) | G14: 5.14 | I14: 1 | L14: Wght Avg PM emissions (g/hr) | M14: 1 | O14: PM Highest 1-hr (g/hr) | R14: 5.14 | T14: 1 | W14: Wght Avg PM emissions (g/hr) | X14: 1 | Z14: PM Highest 1-hr (g/hr) | AC14: 5.14 | AE14: 1
A15: Wght Avg HHV Efficiency (%) | B15: 76 | I15: 81 | L15: Wght Avg HHV Efficiency (%) | M15: 76 | T15: 81 | W15: Wght Avg HHV Efficiency (%) | X15: 76 | AE15: 81
A16: Wght Avg CO (g/hr) | B16: =IFERROR(G16*60,"Not reported") -> 28.8 | D16: Wght Avg CO (g/min) | G16: 0.48 | L16: Wght Avg CO (g/hr) | M16: =IFERROR(R16*60,"Not reported") -> 28.8 | O16: Wght Avg CO (g/min) | R16: 0.48 | W16: Wght Avg CO (g/hr) | X16: =IFERROR(AC16*60,"Not reported") -> 28.8 | Z16: Wght Avg CO (g/min) | AC16: 0.48
A17: Max heat output (Btu/hr) | B17: 50439 | I17: 78000 | L17: Max heat output (Btu/hr) | M17: 50439 | T17: 78000 | W17: Max heat output (Btu/hr) | X17: 50439 | AE17: 78000
A18: Manufacturers Instructions to lab | B18: Not reported | I18: instructions have been added to updated report pg 209 | L18: Manufacturers Instructions to lab | M18: Reported | W18: Manufacturers Instructions to lab | X18: Reported | AE18: pg. 209, some contradiction w/owners manual as instructions make no mention of loading with bypass open
A19: Firebox vol. test report | B19: 2.24 | I19: 2.3 | L19: Firebox vol. test report | M19: 2.24 | T19: 2.3 | W19: Firebox vol. test report | X19: 2.24 | AE19: 2.3
A20: Firebox dimensions | B20: Not reported | D20: Longest dim. (in) | F20: 18 | G20: Max log length | L20: Firebox dimensions | M20: Reported | O20: Longest dim. (in) | Q20: 18.5 | R20: Firebox dimension | W20: Firebox dimensions | X20: Reported | Z20: Longest dim. (in) | AB20: 18.5 | AC20: Firebox dimension
A21: Firebox calculations | B21: Not reported | I21: Firebox calc and diagram added to updated report pg 251 | L21: Firebox calculations | M21: Reported/matched | T21: 2.24 ft3 | W21: Firebox calculations | X21: Reported/matched | AE21: 2.24 ft3
A22: Efficiency calculations | B22: Reported | L22: Efficiency calculations | M22: Reported | W22: Efficiency calculations | X22: Reported
A23: Burn rate calculations | B23: Reported | I23: burn rates are not reported consistently | L23: Burn rate calculations | M23: Reported | T23: burn rates are not reported consistently | W23: Burn rate calculations | X23: Partially reported | AE23: burn rates are not reported consistently
A24: Raw data sheets | B24: Not reported | I24: Individual Test run data and results have been added to the Non-CBI report, beginning on pages 24, 50, and 116 for runs 1, 2, 3, respectively. | L24: Raw data sheets | M24: Reported | W24: Raw data sheets | X24: Reported
A25: Conditioning completed by | B25: Lab | I25: Reported aging took place 6/1-18/2018 but appliance receipt date for lab after aging on 6/21/2018. - Updated report pg 5 included differing language than original report reviewed stating FPI lab staff conducted preburn. | L25: Conditioning completed by | M25: Manufacturer | W25: Conditioning completed by | X25: Manufacturer | AE25: pg 4 of report states 50 hrs of conditioning was conducted by "FPI lab staff"
A26: Conditioning data | B26: Partially reported | I26: 1) Did not report aging dates and did not report fuel information per the method. 2) Only 6 out of 50 hours at medium burn rate (1.16 kg/hr, +/-0.5 kg/hr) based on med burn from test report. other info - Included in updated report pg 23 | L26: Conditioning data | M26: Reported | T26: Conditioning data denotes SJB as Tech who performed conditioning. Sebastian J Button who is a PFS employee. This contradicts above reported information regarding the manufacturers completion of conditioning. | W26: Conditioning data | X26: Reported | AE26: Conditioning data denotes SJB as Tech who performed conditioning. Sebastian J Button who is a PFS employee. This contradicts above reported information regarding the manufacturers completion of conditioning.
A27: Lab technician notes | B27: Not reported | I27: Added to updated report on page 48,114,174 | L27: Lab technician notes | M27: Reported | W27: Lab technician notes | X27: Reported | AE27: Lab notes from each run note that the bypass closed with no mention of reopening during loading in contradiction with owners manual.
A28: Doc. of run appropriateness | B28: Reported | I28: did not discuss why SU/H was run completed as a third test day rather than using the SU/H test runs for day 1 or 2. | L28: Doc. of run appropriateness | M28: Reported | T28: did not discuss why SU/H was run completed as a third test day rather than using the SU/H test runs for day 1 or 2. | W28: Doc. of run appropriateness | X28: Partially reported | AE28: did not discuss why SU/H was run completed as a third test day rather than using the SU/H test runs for day 1 or 2.
A29: Doc. of run validity | B29: Reported | I29: did not report run outside of method precision | L29: Doc. of run validity | M29: Reported | T29: did not report run outside of method precision, even if other criteria was used this should have been reported in the summary narative. | W29: Doc. of run validity | X29: Partially reported | AE29: did not report run outside of method precision, even if other criteria was used this should have been reported in the summary narative.
A30: Doc. of run anomolies | B30: Reported | I30: did not report anomolies, data suggest they exist | L30: Doc. of run anomolies | M30: Reported | T30: did not report anomolies, data suggest they exist | W30: Doc. of run anomolies | X30: Partially reported | AE30: did not report anomolies, data suggest they exist
A31: Doc. of run burn rates | B31: Reported | I31: different burn rates used for the same run | L31: Doc. of run burn rates | M31: Reported | T31: different burn rates used for the same run | W31: Doc. of run burn rates | X31: Partially reported | AE31: different burn rates used for the same run
A32: Photos of the fuel loaded | B32: Not reported | I32: manufacturer refers reviewer to pg 182-208 of updated report | L32: Photos of the fuel loaded | M32: Partially reported | T32: photos added to updated report are not labeled, thus correlation with run # is not possible. | W32: Photos of the fuel loaded | X32: Partially reported | AE32: photos added to updated report are not from actual test as they are labeled as "Typical" loads.
A33: Test Run Data | B33: Determination | I33: Notes | L33: Test Run Data | M33: Determination | T33: Notes | W33: Test Run Data | X33: Determination | AE33: Notes
A34: Run # | C34: 1 | D34: 2 | E34: 3 | L34: Run # | N34: 1 | O34: 2 | P34: 3 | W34: Run # | Y34: 1 | Z34: 2 | AA34: 3
A35: Run Category | C35: Startup & High | D35: Low | E35: Medium | I35: TM doesn't require kg/hr - basis but | L35: Run Category | N35: Startup & High | O35: Low | P35: Medium | T35: TM doesn't require kg/hr - basis but | W35: Run Category | Y35: Startup & High | Z35: Low | AA35: Medium | AE35: TM doesn't require kg/hr - basis but
A36: Burn rate (kg/hr) | C36: 3.5 | D36: 1.04 | E36: 1.16 | I36: essentially the same heat output. Why | L36: Burn rate (kg/hr) | N36: 3.5 | O36: 1.04 | P36: 1.16 | T36: essentially the same heat output. Why | W36: Burn rate (kg/hr) | Y36: 3.5 | Z36: 1.04 | AA36: 1.16 | AE36: essentially the same heat output. Why
A37: PM emissions by run (g/hr) | C37: 2.82 | D37: 0.67 | E37: 0.5 | I37: wasn't a higher air setting used. | L37: PM emissions by run (g/hr) | N37: 2.82 | O37: 0.67 | P37: 0.5 | T37: wasn't a higher air setting used. | W37: PM emissions by run (g/hr) | Y37: 2.82 | Z37: 0.67 | AA37: 0.5 | AE37: wasn't a higher air setting used.
A38: PM 1-hr filter pull (g/hr) | C38: 5.14 | D38: 4.54 | E38: 1.37 | I38: H: 2.114" open | L38: PM 1-hr filter pull (g/hr) | N38: 5.14 | O38: 4.54 | P38: 1.37 | T38: H: 2.114" open | W38: PM 1-hr filter pull (g/hr) | Y38: 5.14 | Z38: 4.54 | AA38: 1.37 | AE38: H: 2.114" open
A39: Filter data | C39: NR | D39: NR | E39: NR | I39: M: 1.244" open | L39: Filter data | N39: yes | O39: yes | P39: yes | T39: M: 1.244" open | W39: Filter data | Y39: yes | Z39: yes | AA39: yes | AE39: M: 1.244" open
A40: Train precision (%) | C40: 0.8 | D40: 0.7 | E40: -8 | I40: L: 0.707" open | L40: Train precision (%) | N40: 0.8 | O40: 0.7 | P40: -8 | T40: L: 0.707" open | W40: Train precision (%) | Y40: 0.8 | Z40: 0.7 | AA40: -8 | AE40: L: 0.707" open
A41: Negative weights | C41: CBD | D41: CBD | E41: CBD | L41: Negative weights | N41: no | O41: no | P41: no | W41: Negative weights | Y41: no | Z41: no | AA41: no
A42: Negs handled appropriately | B42: No | L42: Negs handled appropriately | M42: Yes | W42: Negs handled appropriately | X42: Yes
A43: Heat output by run (Btu/hr) | C43: 50349 | D43: 14944 | E43: 16746 | L43: Heat output by run (Btu/hr) | N43: 50349 | O43: 14944 | P43: 16746 | W43: Heat output by run (Btu/hr) | Y43: 50349 | Z43: 14944 | AA43: 16746
A44: CO by run (g/hr) | C44: 25.2 | D44: 45 | E44: 17.4 | L44: CO by run (g/hr) | N44: 25.2 | O44: 45 | P44: 17.4 | W44: CO by run (g/hr) | Y44: 25.2 | Z44: 45 | AA44: 17.4
A45: HHV efficiency (%) | C45: 74.3 | D45: 76.3 | E45: 76.6 | L45: HHV efficiency (%) | N45: 74.3 | O45: 76.3 | P45: 76.6 | W45: HHV efficiency (%) | Y45: 74.3 | Z45: 76.3 | AA45: 76.6
A46: Lowest burn rate tested | B46: Cannot be determined | L46: Lowest burn rate tested | M46: Cannot be determined | W46: Lowest burn rate tested | X46: Cannot be determined
A47: All run data | B47: Not reported | I47: missing data to confirm SU/H completed correctly before two testing days | L47: All run data | M47: Not reported | T47: missing data to confirm SU/H completed correctly before two testing days | W47: All run data | X47: Not reported | AE47: missing data to confirm SU/H completed correctly before two testing days
A48: Appliance Fueling | B48: Determination | I48: Notes | L48: Appliance Fueling | M48: Determination | T48: Notes | W48: Appliance Fueling | X48: Determination | AE48: Notes
A49: Fuel species | B49: Maple | L49: Fuel species | M49: Maple | W49: Fuel species | X49: Maple
A50: Log length (in) | C50: 16 | D50: 16 | E50: 16 | I50: Catalytic | L50: Log length (in) | N50: 16 | O50: 16 | P50: 16 | T50: Catalytic | W50: Log length (in) | Y50: 16 | Z50: 16 | AA50: 16 | AE50: Catalytic
A51: Direction of longest dimension | B51: Cannot be determined | I51: Reviewer is referred to suppled Firebox drawing. | L51: Direction of longest dimension | M51: North-South | W51: Direction of longest dimension | X51: North-South
A52: Log direction for testing | B52: Not reported | L52: Log direction for testing | M52: North-South | W52: Log direction for testing | X52: North-South
A53: Squared (ASTM test only) | B53: Cannot be determined | I53: reviewer is referred to supplied photos | L53: Squared (ASTM test only) | M53: Less than 50% | T53: Based on photos supplied, no run # reported. | W53: Squared (ASTM test only) | X53: Less than 50% | AE53: Based on photos supplied, no run # reported.
A54: Debarked (ASTM test only) | B54: Cannot be determined | I54: reviewer is referred to supplied photos | L54: Debarked (ASTM test only) | M54: More than 50% | W54: Debarked (ASTM test only) | X54: More than 50%
A55: Load density (lb/ft3) | C55: 9.8 | D55: 11.73 | E55: 11.67 | L55: Load density (lb/ft3) | N55: 9.8 | O55: 11.73 | P55: 11.67 | W55: Load density (lb/ft3) | Y55: 9.8 | Z55: 11.73 | AA55: 11.67
A56: Fuel moisture content load (%wb) | C56: 20.2 | D56: 20.2 | E56: 21.6 | I56: B avg moisture content 20.7% | L56: Fuel moisture content load (%wb) | N56: 20.2 | O56: 20.2 | P56: 21.6 | T56: B avg moisture content 20.7% | W56: Fuel moisture content load (%wb) | Y56: 20.2 | Z56: 20.2 | AA56: 21.6 | AE56: B avg moisture content 20.7%
A57: Fuel piece configuration | B57: Within specified limit | L57: Fuel piece configuration | M57: Within specified limit | W57: Fuel piece configuration | X57: Within specified limit
A58: Owners Manual Req. | B58: Determination | I58: Notes | L58: Owners Manual Req. | M58: Determination | T58: Notes | W58: Owners Manual Req. | X58: Determination | AE58: Notes
A59: Stack height | B59: Included | L59: Stack height | M59: Included | W59: Stack height | X59: Included
A60: Location recommendation | B60: Included | L60: Location recommendation | M60: Included | W60: Location recommendation | X60: Included
A61: Guidance on proper draft | B61: Included | L61: Guidance on proper draft | M61: Included | W61: Guidance on proper draft | X61: Included
A62: Fuel loading & reloading | B62: Not included | I62: reviewer is referred to pg 231 of updated report | L62: Fuel loading & reloading | M62: Included | W62: Fuel loading & reloading | X62: Included
A63: Fuel selection recomm. | B63: Included | L63: Fuel selection recomm. | M63: Included | W63: Fuel selection recomm. | X63: Included
A64: Improper fuels warnings | B64: Included | L64: Improper fuels warnings | M64: Included | W64: Improper fuels warnings | X64: Included
A65: Fire starting procedures | B65: Not included | I65: reviewer is referred to pg 231 of updated report | L65: Fire starting procedures | M65: Included | W65: Fire starting procedures | X65: Included
A66: Proper use of air controls | B66: Included | L66: Proper use of air controls | M66: Included | W66: Proper use of air controls | X66: Included
A67: Proper operation low | B67: Not included | I67: reviewer is referred to pg 231 of updated report | L67: Proper operation low | M67: Included | W67: Proper operation low | X67: Included
A68: Ash removal procedures | B68: Included | L68: Ash removal procedures | M68: Included | W68: Ash removal procedures | X68: Included
A69: Replacement parts | B69: Included | L69: Replacement parts | M69: Included | W69: Replacement parts | X69: Included
A70: Federal warning (C or NC) | B70: Included | L70: Federal warning (C or NC) | M70: Included | W70: Federal warning (C or NC) | X70: Included
A71: Warranty rights | B71: Included | L71: Warranty rights | M71: Included | W71: Warranty rights | X71: Included
A72: Catalytst operation | B72: Included | L72: Catalytst operation | M72: Included | W72: Catalytst operation | X72: Included
A73: Cat maintenance procedures | B73: Included | L73: Cat maintenance procedures | M73: Included | W73: Cat maintenance procedures | X73: Included
A74: Determining catalyst det. or failure | B74: Included | L74: Determining catalyst det. or failure | M74: Included | W74: Determining catalyst det. or failure | X74: Included
A75: Reporting | B75: Determination | I75: Notes | L75: Reporting | M75: Determination | T75: Notes | W75: Reporting | X75: Determination | AE75: Notes
A76: Summary tables complete | B76: Partially reported | L76: Summary tables complete | M76: Partially reported | T76: see notes above | W76: Summary tables complete | X76: Partially reported | AE76: flags in 28,29,30,31,46
A77: All run data submitted | B77: All reported | L77: All run data submitted | M77: All reported | W77: All run data submitted | X77: Partially reported | AE77: flag in 47 & 96
A78: Test report complete | B78: Partially reported major | L78: Test report complete | M78: Partially reported major | W78: Test report complete | X78: Partially reported major | AE78: flags in 23,47,54
A79: Owner manual complete | L79: Owner manual complete | W79: Owner manual complete | X79: All reported
A80: Test dates | B80: 6/25-27/2018 | I80: no explaination for extra day of testing - manufacturer says 3 tests were conducted in three days. | L80: Test dates | M80: 6/25-27/2018 | W80: Test dates | X80: 6/25-27/2018
A81: 30 Day notice submitted to EPA | B81: Cannot be determined | L81: 30 Day notice submitted to EPA | M81: Yes | T81: week of June 25th | W81: 30 Day notice submitted to EPA | X81: Yes | AE81: week of June 25th
A82: Tested on the proposed date | B82: Cannot be determined | L82: Tested on the proposed date | M82: Yes | W82: Tested on the proposed date | X82: Yes
A83: Tested in consecutive days | B83: Yes | L83: Tested in consecutive days | M83: Yes | W83: Tested in consecutive days | X83: Yes
A84: 60 Day report to EPA | B84: Cannot be determined | I84: Supplied on pg 260 if updated report | L84: 60 Day report to EPA | M84: Yes | W84: 60 Day report to EPA | X84: Yes
A85: EPA additional Review Elements | B85: Determination | I85: Notes | L85: EPA additional Review Elements | M85: Determination | T85: Notes | W85: EPA additional Review Elements | X85: Determination | AE85: Notes
A86: Test location | L86: Test location | W86: Test location | X86: Lab | AE86: PFS-TECO Portland Laboratory, 11785 SE HWY 212 - Suite 305, Clackamas, OR 97015
A87: date lab received the unit | L87: date lab received the unit | W87: date lab received the unit | X87: 2018-06-21
A88: date first day of conditioning | L88: date first day of conditioning | W88: date first day of conditioning | X88: 2018-06-01 | AE88: 6/1-6/18
A89: date first day of testing | L89: date first day of testing | W89: date first day of testing | X89: 2018-06-25
A90: first hour PM emissions reported for all runs | L90: first hour PM emissions reported for all runs | W90: first hour PM emissions reported for all runs | X90: yes
A91: first hour PM emissions reported in grams per hour | L91: first hour PM emissions reported in grams per hour | W91: first hour PM emissions reported in grams per hour | X91: yes
A92: first hour PM emissions zero or negative | L92: first hour PM emissions zero or negative | W92: first hour PM emissions zero or negative | X92: no
A93: first hour PM emissions measured with front and back filter | L93: first hour PM emissions measured with front and back filter | W93: first hour PM emissions measured with front and back filter | X93: no | AE93: Front
A94: Zero CO emission reported | L94: Zero CO emission reported | W94: Zero CO emission reported | X94: no
A95: Any incomplete runs | L95: Any incomplete runs | W95: Any incomplete runs | X95: no
A96: Preburn data reported (SU/High-3053, preburn M28R) | L96: Preburn data reported (SU/High-3053, preburn M28R) | W96: Preburn data reported (SU/High-3053, preburn M28R) | X96: no
A97: filter changes during test run | L97: filter changes during test run | W97: filter changes during test run | X97: no
A98: filter plugged during test run | L98: filter plugged during test run | W98: filter plugged during test run | X98: no
A99: What type of filter used | L99: What type of filter used | W99: What type of filter used | X99: other | AE99: Pall Type TX40
A100: Back and front filter weighed together (3053 only) | L100: Back and front filter weighed together (3053 only) | W100: Back and front filter weighed together (3053 only) | X100: yes
A101: Negative probe weight >5% of PM | L101: Negative probe weight >5% of PM | W101: Negative probe weight >5% of PM | X101: no negative values
A102: Negative probe value | L102: Negative probe value | W102: Negative probe value | X102: no negative values
A103: Negative room air values | L103: Negative room air values | W103: Negative room air values | X103: no negative values
A104: Ambient background filter data | L104: Ambient background filter data | W104: Ambient background filter data | X104: no negative values
A105: Proportional sampling | L105: Proportional sampling | W105: Proportional sampling | X105: yes with allowable deviations
A106: Leak check - pre-test leak check reported | L106: Leak check - pre-test leak check reported | W106: Leak check - pre-test leak check reported | X106: not reported
A107: Leak check - any filter change | L107: Leak check - any filter change | W107: Leak check - any filter change
A108: Leak check - post leak check reported | L108: Leak check - post leak check reported | W108: Leak check - post leak check reported | X108: Meets Specification
A109: Dilution tunnel schematic meets ASTM 2515 requirements | L109: Dilution tunnel schematic meets ASTM 2515 requirements | W109: Dilution tunnel schematic meets ASTM 2515 requirements | X109: Meets Specification
A110: Firebox measurements confirmed with schematic | L110: Firebox measurements confirmed with schematic | W110: Firebox measurements confirmed with schematic | X110: no
A111: number of conditioning hours reported in summary | L111: number of conditioning hours reported in summary | W111: number of conditioning hours reported in summary | X111: 50
A112: number of conditioning hours with data | L112: number of conditioning hours with data | W112: number of conditioning hours with data | X112: 50
A113: number of hours at correct conditioning conditions | L113: number of hours at correct conditioning conditions | W113: number of hours at correct conditioning conditions | X113: Cannot be determined | AE113: hours where fuel is loaded does not provide residual fuel weights, therefore med burn requirement cannot be confirmed.
A114: used lowest air settings for low burn (ASTM 3053) or Cat 1(M28R) | L114: used lowest air settings for low burn (ASTM 3053) or Cat 1(M28R) | W114: used lowest air settings for low burn (ASTM 3053) or Cat 1(M28R) | X114: no | AE114: .707" from fully closed
A115: Air setting data | B115: Cat 1/Low | C115: Cat 2/Med | D115: Cat 3 | E115: Cat 4/High | F115: FC | G115: CV | L115: Air setting data | M115: Cat 1/Low | N115: Cat 2/Med | O115: Cat 3 | P115: Cat 4/High | Q115: FC | R115: CV | W115: Air setting data | X115: Cat 1/Low | Y115: Cat 2/Med | Z115: Cat 3 | AA115: Cat 4/High | AB115: FC | AC115: CV
X116: .707" from fully closed | Y116: 1..244" from fully closed | AA116: 2.114" from fully closed
A117: Total number of runs | L117: Total number of runs | W117: Total number of runs | X117: 5
A118: run averaging done correctly | L118: run averaging done correctly | W118: run averaging done correctly
A119: which SU/H run used for calculating emissions | L119: which SU/H run used for calculating emissions | W119: which SU/H run used for calculating emissions | X119: first run
A120: Fuel data for all SU/H runs (ASTM 3053) | L120: Fuel data for all SU/H runs (ASTM 3053) | W120: Fuel data for all SU/H runs (ASTM 3053) | X120: no
A121: Multiple fuel lengths used | L121: Multiple fuel lengths used | W121: Multiple fuel lengths used | X121: no
A122: Specific gravity of fuel used (ASTM 3053 only) | E122: Value | L122: Specific gravity of fuel used (ASTM 3053 only) | P122: Value | W122: Specific gravity of fuel used (ASTM 3053 only) | X122: yes | AA122: Value | AC122: 0.6
A123: M28 fuel loaded longest dimension | L123: M28 fuel loaded longest dimension | W123: M28 fuel loaded longest dimension
A124: Calibration data | L124: Calibration data | W124: Calibration data | X124: not reported | AE124: Submitted report did not include appendix C - Equipment Calibration Records

Sheet FPI-I2500
A1: Summary of Review | L1: Summary of Review | W1: Summary of Review
A2: Manufacturer | B2: FPI / Regency Fireplace Products | I2: 2021-03-31 | L2: Manufacturer | M2: FPI / Regency Fireplace Products | T2: 2021-03-31 | W2: Manufacturer | X2: FPI / Regency Fireplace Products | AE2: 2021-03-31
A3: Model | B3: I2500 | F3: Control approach | I3: Catalytic | L3: Model | M3: I2500 | Q3: Control approach | T3: Catalytic | W3: Model | X3: I2500 | AB3: Control approach | AE3: Catalytic
A4: Prelim review recomm. | B4: Disapproved | L4: Prelim review recomm. | M4: Disapproved | W4: Prelim review recomm. | X4: Disapproved
A5: Red flags | B5: 7 | C5: Orange flags | E5: 8 | F5: Yellow flags | H5: 4 | L5: Red flags | M5: 7 | N5: Orange flags | P5: 8 | Q5: Yellow flags | S5: 4 | W5: Red flags | X5: 7 | Y5: Orange flags | AA5: 8 | AB5: Yellow flags | AD5: 4
A6: Final Determination | B6: Pending - Major | F6: Date: 9/1/2020 | I6: Basis: IR, NR | L6: Final Determination | M6: Pending - Major | Q6: Date: 9/1/2020 | T6: Basis: IR, NR | W6: Final Determination | X6: Pending - Major | AB6: Date: 9/1/2020 | AE6: Basis: IR, NR
A7: AK List Status | B7: No Determination List | L7: AK List Status | W7: AK List Status | X7: No Determination List
A8: Testing Information | B8: Determination | I8: Notes | L8: Testing Information | M8: Determination | T8: Notes | W8: Testing Information | X8: Determination | AE8: Notes
A9: Test method | B9: ASTM E3053 | I9: ATM - ATM approval letter added to updated report pg 165 | L9: Test method | M9: ASTM E3053 | T9: ATM must be approved by ADEC (18 AAC 50.077(c)(3)(A)(ii). | W9: Test method | X9: ASTM E3053 | AE9: ATM must be approved by ADEC (18 AAC 50.077(c)(3)(A)(ii).
A10: Test Lab | B10: PFS-TECO | I10: performed at PFS facility | L10: Test Lab | M10: PFS-TECO | T10: performed at PFS facility | W10: Test Lab | X10: PFS-TECO | AE10: performed at PFS facility
A11: Third-party certifier | B11: PFS-TECO | L11: Third-party certifier | M11: PFS-TECO | W11: Third-party certifier | X11: PFS-TECO
A12: Report certified | B12: PFS-TECO | L12: Report certified | M12: PFS-TECO | W12: Report certified | X12: PFS-TECO
A13: Test Report Elements | B13: Determination | I13: Notes | L13: Test Report Elements | M13: Determination | T13: Notes | W13: Test Report Elements | X13: Determination | AE13: Notes
A14: Wght Avg PM emissions (g/hr) | B14: 1 | D14: PM Highest 1-hr (g/hr) | G14: 4.27 | I14: 1 | L14: Wght Avg PM emissions (g/hr) | M14: 1 | O14: PM Highest 1-hr (g/hr) | R14: 4.27 | T14: 1 | W14: Wght Avg PM emissions (g/hr) | X14: 1 | Z14: PM Highest 1-hr (g/hr) | AC14: 4.27 | AE14: 1
A15: Wght Avg HHV Efficiency (%) | B15: 76.4 | I15: 82 | L15: Wght Avg HHV Efficiency (%) | M15: 76.4 | T15: 82 | W15: Wght Avg HHV Efficiency (%) | X15: 76.4 | AE15: 82
A16: Wght Avg CO (g/hr) | B16: =IFERROR(G16*60,"Not reported") -> 20.4 | D16: Wght Avg CO (g/min) | G16: 0.34 | L16: Wght Avg CO (g/hr) | M16: =IFERROR(R16*60,"Not reported") -> 20.4 | O16: Wght Avg CO (g/min) | R16: 0.34 | W16: Wght Avg CO (g/hr) | X16: =IFERROR(AC16*60,"Not reported") -> 20.4 | Z16: Wght Avg CO (g/min) | AC16: 0.34
A17: Max heat output (Btu/hr) | B17: 42995 | I17: 78000 | L17: Max heat output (Btu/hr) | M17: 42995 | T17: 78000 | W17: Max heat output (Btu/hr) | X17: 42995 | AE17: 78000
A18: Manufacturers Instructions to lab | B18: Not reported | I18: instructions have been added to updated report pg 169 | L18: Manufacturers Instructions to lab | M18: Reported | W18: Manufacturers Instructions to lab | X18: Reported
A19: Firebox vol. test report | B19: 2.24 | I19: 2.3 | L19: Firebox vol. test report | M19: 2.24 | T19: 2.3 | W19: Firebox vol. test report | X19: 2.24 | AE19: 2.3
A20: Firebox dimensions | B20: Not reported | D20: Longest dim. (in) | F20: 18 | G20: Max log length | L20: Firebox dimensions | M20: Partially reported | O20: Longest dim. (in) | Q20: 20.133 | R20: Max log length | T20: Diagram does not include width measurement. | W20: Firebox dimensions | X20: Partially reported | Z20: Longest dim. (in) | AB20: 20.133 | AC20: Max log length | AE20: Diagram does not include width measurement.
A21: Firebox calculations | B21: Not reported | I21: diagram added to updated report pg 168 | L21: Firebox calculations | M21: Not reported | T21: addition includes firebox diagram but no actual calculations. | W21: Firebox calculations | X21: Not reported | AE21: addition includes firebox diagram but no actual calculations.
A22: Efficiency calculations | B22: Reported | L22: Efficiency calculations | M22: Reported | W22: Efficiency calculations | X22: Reported
A23: Burn rate calculations | B23: Reported | L23: Burn rate calculations | M23: Reported | W23: Burn rate calculations | X23: Reported
A24: Raw data sheets | B24: Reported | L24: Raw data sheets | M24: Reported | W24: Raw data sheets | X24: Reported
A25: Conditioning completed by | B25: Lab | I25: Reported aging took place 9/10-21/2018 but appliance lab receipt date is 10/25/2018, which is after aging dates. | L25: Conditioning completed by | M25: Lab | T25: Reported aging took place 9/10-21/2018 but appliance lab receipt date is 10/25/2018, which is after aging dates. | W25: Conditioning completed by | X25: Lab | AE25: Reported aging took place 9/10-21/2018 but appliance lab receipt date is 10/25/2018, which is after aging dates.
A26: Conditioning data | B26: Partially reported | I26: 1) Did not report aging dates and did not report fuel information per the method. 2) Only 8 out of 50 hours at medium burn rate (1.4 kg/hr, +/-0.5 kg/hr) based on med burn from test report. other info | L26: Conditioning data | M26: Partially reported | T26: 1) Did not report aging dates and did not report fuel information per the method. 2) Only 8 out of 50 hours at medium burn rate (1.4 kg/hr, +/-0.5 kg/hr) based on med burn from test report. other info | W26: Conditioning data | X26: Partially reported | AE26: 1) Did not report aging dates and did not report fuel information per the method. 2) Only 8 out of 50 hours at medium burn rate (1.4 kg/hr, +/-0.5 kg/hr) based on med burn from test report. other info
A27: Lab technician notes | B27: Not reported | I27: added to updated report pgs 48, 109, and 162 | L27: Lab technician notes | M27: Reported | W27: Lab technician notes | X27: Reported
A28: Doc. of run appropriateness | B28: Reported | I28: did not discuss why SU/H was run completed as a third test day rather than using the SU/H test runs for day 1 or 2. | L28: Doc. of run appropriateness | M28: Reported | T28: did not discuss why SU/H was run completed as a third test day rather than using the SU/H test runs for day 1 or 2. | W28: Doc. of run appropriateness | X28: Reported | AE28: did not discuss why SU/H was run completed as a third test day rather than using the SU/H test runs for day 1 or 2.
A29: Doc. of run validity | B29: Reported | I29: DID NOT report 8.5% train precision R3 | L29: Doc. of run validity | M29: Reported | T29: DID NOT report 8.5% train precision R3 | W29: Doc. of run validity | X29: Reported | AE29: DID NOT report 8.5% train precision R3
A30: Doc. of run anomolies | B30: Reported | I30: did not report negative values | L30: Doc. of run anomolies | M30: Reported | T30: did not report negative values | W30: Doc. of run anomolies | X30: Reported | AE30: did not report negative values
A31: Doc. of run burn rates | B31: Reported | L31: Doc. of run burn rates | M31: Reported | W31: Doc. of run burn rates | X31: Reported
A32: Photos of the fuel loaded | B32: Reported | L32: Photos of the fuel loaded | M32: Reported | W32: Photos of the fuel loaded | X32: Reported
A33: Test Run Data | B33: Determination | I33: Notes | L33: Test Run Data | M33: Determination | T33: Notes | W33: Test Run Data | X33: Determination | AE33: Notes
A34: Run # | C34: 1 | D34: 2 | E34: 3 | L34: Run # | N34: 1 | O34: 2 | P34: 3 | W34: Run # | Y34: 1 | Z34: 2 | AA34: 3
A35: Run Category | C35: Startup & High | D35: Low | E35: Medium | I35: TM doesn't require kg/hr - basis but essentially the same heat output. Why wasn't a higher air setting used. | L35: Run Category | N35: Startup & High | O35: Low | P35: Medium | T35: TM doesn't require kg/hr - basis but essentially the same heat output. Why wasn't a higher air setting used. | W35: Run Category | Y35: Startup & High | Z35: Low | AA35: Medium | AE35: TM doesn't require kg/hr - basis but essentially the same heat output. Why wasn't a higher air setting used.
A36: Burn rate (kg/hr) | C36: 3.01 | D36: 1.18 | E36: 1.4 | I36: H: 2.75" open | L36: Burn rate (kg/hr) | N36: 3.01 | O36: 1.18 | P36: 1.4 | T36: H: 2.75" open | W36: Burn rate (kg/hr) | Y36: 3.01 | Z36: 1.18 | AA36: 1.4 | AE36: H: 2.75" open
A37: PM emissions by run (g/hr) | C37: 1.94 | D37: 0.9 | E37: 0.62 | I37: M: 1.156" open | L37: PM emissions by run (g/hr) | N37: 1.94 | O37: 0.9 | P37: 0.62 | T37: M: 1.156" open | W37: PM emissions by run (g/hr) | Y37: 1.94 | Z37: 0.9 | AA37: 0.62 | AE37: M: 1.156" open
A38: PM 1-hr filter pull (g/hr) | C38: 4.04 | D38: 4.27 | E38: 2.01 | I38: L: closed | L38: PM 1-hr filter pull (g/hr) | N38: 4.04 | O38: 4.27 | P38: 2.01 | T38: L: closed | W38: PM 1-hr filter pull (g/hr) | Y38: 4.04 | Z38: 4.27 | AA38: 2.01 | AE38: L: closed
A39: Filter data | C39: NR | D39: NR | E39: NR | I39: added to updated report on pgs 47, 108, and 161 | L39: Filter data | N39: yes | O39: yes | P39: yes | W39: Filter data | Y39: yes | Z39: yes | AA39: yes
A40: Train precision (%) | C40: 3.3 | D40: -0.2 | E40: -8.5 | L40: Train precision (%) | N40: 3.3 | O40: -0.2 | P40: -8.5 | T40: did not report 8.5% train precision R3 | W40: Train precision (%) | Y40: 3.3 | Z40: -0.2 | AA40: -8.5 | AE40: did not report -8.5% train precision R3
A41: Negative weights | C41: CBD | D41: CBD | E41: CBD | I41: did not report 8.5% train precision R3 | L41: Negative weights | N41: no | O41: no | P41: no | W41: Negative weights | Y41: no | Z41: no | AA41: no
A42: Negs handled appropriately | B42: No | L42: Negs handled appropriately | M42: Yes | W42: Negs handled appropriately | X42: Yes
A43: Heat output by run (Btu/hr) | C43: 42995 | D43: 17178 | E43: 20227 | L43: Heat output by run (Btu/hr) | N43: 42995 | O43: 17178 | P43: 20227 | W43: Heat output by run (Btu/hr) | Y43: 42995 | Z43: 17178 | AA43: 20227
A44: CO by run (g/hr) | C44: 17 | D44: 31 | E44: 12 | L44: CO by run (g/hr) | N44: 17 | O44: 31 | P44: 12 | W44: CO by run (g/hr) | Y44: 17 | Z44: 31 | AA44: 12
A45: HHV efficiency (%) | C45: 73.8 | D45: 77.2 | E45: 76.9 | L45: HHV efficiency (%) | N45: 73.8 | O45: 77.2 | P45: 76.9 | W45: HHV efficiency (%) | Y45: 73.8 | Z45: 77.2 | AA45: 76.9
A46: Lowest burn rate tested | B46: Reported | L46: Lowest burn rate tested | M46: Reported | W46: Lowest burn rate tested | X46: Reported
A47: All run data | B47: Not reported | I47: missing data to confirm SU/H completed correctly before first two days of testing. | L47: All run data | M47: Not reported | T47: missing data to confirm SU/H completed correctly before first two days of testing. | W47: All run data | X47: Not reported | AE47: missing data to confirm SU/H completed correctly before first two days of testing.
A48: Appliance Fueling | B48: Determination | I48: Notes | L48: Appliance Fueling | M48: Determination | T48: Notes | W48: Appliance Fueling | X48: Determination | AE48: Notes
A49: Fuel species | B49: Maple | L49: Fuel species | M49: Maple | W49: Fuel species | X49: Maple
A50: Log length (in) | C50: 16 | D50: 16 | E50: 16 | I50: 18 | L50: Log length (in) | N50: 16 | O50: 16 | P50: 16 | T50: 18 | W50: Log length (in) | Y50: 16 | Z50: 16 | AA50: 16 | AE50: 18
A51: Direction of longest dimension | B51: East-West | L51: Direction of longest dimension | M51: East-West | W51: Direction of longest dimension | X51: East-West
A52: Log direction for testing | B52: North-South | L52: Log direction for testing | M52: North-South | W52: Log direction for testing | X52: North-South
A53: Squared (ASTM test only) | B53: More than 50% | L53: Squared (ASTM test only) | M53: More than 50% | T53: EPA has stated Squared wood is not acceptable for testing with ASTM 3053. Unless a letter is provided from EPA stating that it is acceptable to use squared wood for ASTM 3053 testing. | W53: Squared (ASTM test only) | X53: More than 50% | AE53: EPA has stated Squared wood is not acceptable for testing with ASTM 3053. Unless a letter is provided from EPA stating that it is acceptable to use squared wood for ASTM 3053 testing.
A54: Debarked (ASTM test only) | B54: More than 50% | L54: Debarked (ASTM test only) | M54: More than 50% | W54: Debarked (ASTM test only) | X54: More than 50%
A55: Load density (lb/ft3) | C55: 9.74 | D55: 11.86 | E55: 11.57 | L55: Load density (lb/ft3) | N55: 9.74 | O55: 11.86 | P55: 11.57 | W55: Load density (lb/ft3) | Y55: 9.74 | Z55: 11.86 | AA55: 11.57
A56: Fuel moisture content load (%wb) | C56: 21.3 | D56: 23.5 | E56: 22.5 | I56: C avg moisture content 22.4% | L56: Fuel moisture content load (%wb) | N56: 21.3 | O56: 23.5 | P56: 22.5 | T56: C avg moisture content 22.4% | W56: Fuel moisture content load (%wb) | Y56: 21.3 | Z56: 23.5 | AA56: 22.5 | AE56: C avg moisture content 22.4%
A57: Fuel piece configuration | B57: Within specified limit | L57: Fuel piece configuration | M57: Within specified limit | W57: Fuel piece configuration | X57: Within specified limit
A58: Owners Manual Req. | B58: Determination | I58: Notes | L58: Owners Manual Req. | M58: Determination | T58: Notes | W58: Owners Manual Req. | X58: Determination | AE58: Notes
A59: Stack height | B59: Included | L59: Stack height | M59: Included | W59: Stack height | X59: Included
A60: Location recommendation | B60: Included | L60: Location recommendation | M60: Included | W60: Location recommendation | X60: Included
A61: Guidance on proper draft | B61: Included | L61: Guidance on proper draft | M61: Included | W61: Guidance on proper draft | X61: Included
A62: Fuel loading & reloading | B62: Not included | I62: reviewer referred to pg 187 of updated report | L62: Fuel loading & reloading | M62: Included | W62: Fuel loading & reloading | X62: Included
A63: Fuel selection recomm. | B63: Included | L63: Fuel selection recomm. | M63: Included | W63: Fuel selection recomm. | X63: Included
A64: Improper fuels warnings | B64: Included | L64: Improper fuels warnings | M64: Included | W64: Improper fuels warnings | X64: Included
A65: Fire starting procedures | B65: Not included | I65: reviewer referred to pg 187 of updated report | L65: Fire starting procedures | M65: Included | W65: Fire starting procedures | X65: Included
A66: Proper use of air controls | B66: Included | L66: Proper use of air controls | M66: Included | W66: Proper use of air controls | X66: Included
A67: Proper operation low | B67: Not included | I67: reviewer referred to pg 187 of updated report | L67: Proper operation low | M67: Included | W67: Proper operation low | X67: Included
A68: Ash removal procedures | B68: Included | L68: Ash removal procedures | M68: Included | W68: Ash removal procedures | X68: Included
A69: Replacement parts | B69: Included | L69: Replacement parts | M69: Included | W69: Replacement parts | X69: Included
A70: Federal warning (C or NC) | B70: Included | L70: Federal warning (C or NC) | M70: Included | W70: Federal warning (C or NC) | X70: Included
A71: Warranty rights | B71: Included | L71: Warranty rights | M71: Included | W71: Warranty rights | X71: Included
A72: Catalytst operation | B72: Included | L72: Catalytst operation | M72: Included | W72: Catalytst operation | X72: Included
A73: Cat maintenance procedures | B73: Included | L73: Cat maintenance procedures | M73: Included | W73: Cat maintenance procedures | X73: Included
A74: Determining catalyst det. or failure | B74: Included | L74: Determining catalyst det. or failure | M74: Included | W74: Determining catalyst det. or failure | X74: Included
A75: Reporting | B75: Determination | I75: Notes | L75: Reporting | M75: Determination | T75: Notes | W75: Reporting | X75: Determination | AE75: Notes
A76: Summary tables complete | B76: All reported | L76: Summary tables complete | M76: All reported | W76: Summary tables complete | X76: All reported
A77: All run data submitted | B77: All reported | L77: All run data submitted | M77: All reported | W77: All run data submitted | X77: All reported
A78: Test report complete | B78: Partially reported major | L78: Test report complete | M78: Partially reported major | W78: Test report complete | X78: Partially reported major
A79: Owner manual complete | B79: Partially reported major | L79: Owner manual complete | M79: Partially reported major | W79: Owner manual complete | X79: Partially reported major
A80: Test dates | B80: 10/29-31/2018 | I80: received 10/25/2018 | L80: Test dates | M80: 10/29-31/2018 | T80: received 10/25/2018 | W80: Test dates | X80: 10/29-31/2018 | AE80: received 10/25/2018
A81: 30 Day notice submitted to EPA | B81: Cannot be determined | I81: included on page 208 of updated report. | L81: 30 Day notice submitted to EPA | M81: Yes | T81: week of October 29 | W81: 30 Day notice submitted to EPA | X81: Yes | AE81: week of October 29
A82: Tested on the proposed date | B82: Cannot be determined | L82: Tested on the proposed date | M82: Yes | W82: Tested on the proposed date | X82: Yes
A83: Tested in consecutive days | B83: Yes | I83: why 3 days, testing should be done in 2. - manufacturer states "3 testsperformed over 3 days, there is no issue here." | L83: Tested in consecutive days | M83: Yes | T83: why 3 days, testing should be done in 2. | W83: Tested in consecutive days | X83: Yes | AE83: why 3 days, testing should be done in 2.
A84: 60 Day report to EPA | B84: Cannot be determined | I84: report date 11/19/2018 - included in updated report on pg 213 | L84: 60 Day report to EPA | M84: Yes | T84: report date 11/19/2018 | W84: 60 Day report to EPA | X84: Yes | AE84: report date 11/19/2018
A85: EPA additional Review Elements | B85: Determination | I85: Notes | L85: EPA additional Review Elements | M85: Determination | T85: Notes | W85: EPA additional Review Elements | X85: Determination | AE85: Notes
A86: Test location | L86: Test location | W86: Test location | X86: Lab
A87: date lab received the unit | L87: date lab received the unit | W87: date lab received the unit | X87: 2018-10-25
A88: date first day of conditioning | L88: date first day of conditioning | W88: date first day of conditioning | X88: 2018-09-10
A89: date first day of testing | L89: date first day of testing | W89: date first day of testing | X89: 2018-10-29
A90: first hour PM emissions reported for all runs | L90: first hour PM emissions reported for all runs | W90: first hour PM emissions reported for all runs | X90: yes
A91: first hour PM emissions reported in grams per hour | L91: first hour PM emissions reported in grams per hour | W91: first hour PM emissions reported in grams per hour | X91: yes
A92: first hour PM emissions zero or negative | L92: first hour PM emissions zero or negative | W92: first hour PM emissions zero or negative | X92: no
A93: first hour PM emissions measured with front and back filter | L93: first hour PM emissions measured with front and back filter | W93: first hour PM emissions measured with front and back filter | X93: no | AE93: Front
A94: Zero CO emission reported | L94: Zero CO emission reported | W94: Zero CO emission reported | X94: no
A95: Any incomplete runs | L95: Any incomplete runs | W95: Any incomplete runs | X95: no
A96: Preburn data reported (SU/High-3053, preburn M28R) | L96: Preburn data reported (SU/High-3053, preburn M28R) | W96: Preburn data reported (SU/High-3053, preburn M28R) | X96: no
A97: filter changes during test run | L97: filter changes during test run | W97: filter changes during test run | X97: no
A98: filter plugged during test run | L98: filter plugged during test run | W98: filter plugged during test run | X98: no
A99: What type of filter used | L99: What type of filter used | W99: What type of filter used | X99: Emfab
A100: Back and front filter weighed together (3053 only) | L100: Back and front filter weighed together (3053 only) | W100: Back and front filter weighed together (3053 only) | X100: yes
A101: Negative probe weight >5% of PM | L101: Negative probe weight >5% of PM | W101: Negative probe weight >5% of PM | X101: no negatives
A102: Negative probe value | L102: Negative probe value | W102: Negative probe value | X102: no negatives
A103: Negative room air values | L103: Negative room air values | W103: Negative room air values | X103: no negatives
A104: Ambient background filter data | L104: Ambient background filter data | W104: Ambient background filter data | X104: no negatives
A105: Proportional sampling | L105: Proportional sampling | W105: Proportional sampling | X105: yes with allowable deviations
A106: Leak check - pre-test leak check reported | L106: Leak check - pre-test leak check reported | W106: Leak check - pre-test leak check reported | X106: not reported
A107: Leak check - any filter change | L107: Leak check - any filter change | W107: Leak check - any filter change | X107: not reported
A108: Leak check - post leak check reported | L108: Leak check - post leak check reported | W108: Leak check - post leak check reported | X108: yes with allowable deviations
A109: Dilution tunnel schematic meets ASTM 2515 requirements | L109: Dilution tunnel schematic meets ASTM 2515 requirements | W109: Dilution tunnel schematic meets ASTM 2515 requirements | X109: not reported
A110: Firebox measurements confirmed with schematic | L110: Firebox measurements confirmed with schematic | W110: Firebox measurements confirmed with schematic | X110: no | AE110: Schematic does not match calculation
A111: number of conditioning hours reported in summary | L111: number of conditioning hours reported in summary | W111: number of conditioning hours reported in summary | X111: 50
A112: number of conditioning hours with data | L112: number of conditioning hours with data | W112: number of conditioning hours with data | X112: 50
A113: number of hours at correct conditioning conditions | L113: number of hours at correct conditioning conditions | W113: number of hours at correct conditioning conditions | X113: 8
A114: used lowest air settings for low burn (ASTM 3053) or Cat 1(M28R) | L114: used lowest air settings for low burn (ASTM 3053) or Cat 1(M28R) | W114: used lowest air settings for low burn (ASTM 3053) or Cat 1(M28R) | X114: yes
A115: Air setting data | B115: Cat 1/Low | C115: Cat 2/Med | D115: Cat 3 | E115: Cat 4/High | F115: FC | G115: CV | L115: Air setting data | W115: Air setting data | X115: Cat 1/Low | Y115: Cat 2/Med | Z115: Cat 3 | AA115: Cat 4/High | AB115: FC | AC115: CV
X116: Fully closed | Y116: 1.156" from fully open | AA116: 2.75 from fully closed
A117: Total number of runs | L117: Total number of runs | W117: Total number of runs | X117: 3
A118: run averaging done correctly | L118: run averaging done correctly | W118: run averaging done correctly
A119: which SU/H run used for calculating emissions | L119: which SU/H run used for calculating emissions | W119: which SU/H run used for calculating emissions | X119: first run
A120: Fuel data for all SU/H runs (ASTM 3053) | L120: Fuel data for all SU/H runs (ASTM 3053) | W120: Fuel data for all SU/H runs (ASTM 3053) | X120: no
A121: Multiple fuel lengths used | L121: Multiple fuel lengths used | W121: Multiple fuel lengths used | X121: no
A122: Specific gravity of fuel used (ASTM 3053 only) | E122: Value | L122: Specific gravity of fuel used (ASTM 3053 only) | W122: Specific gravity of fuel used (ASTM 3053 only) | X122: yes | AA122: Value | AC122: 0.6
A123: M28 fuel loaded longest dimension | L123: M28 fuel loaded longest dimension | W123: M28 fuel loaded longest dimension
A124: Calibration data | L124: Calibration data | W124: Calibration data | X124: yes | AE124: Some outside 6 month requirement

Sheet FPI-CI2700
A1: Summary of Review
A2: Manufacturer | B2: FPI / Regency Fireplace Products
A3: Model | B3: CI2700, HI500 | F3: Control approach | I3: Catalytic
A4: Prelim review recomm. | B4: Disapproved
A5: Red flags | B5: 7 | C5: Orange flags | E5: 11 | F5: Yellow flags | H5: 5
A6: Final Determination | B6: Disapproved | F6: Date: 9/1/2020 | I6: Basis: ES1, IR, MD, NR
A7: AK List Status | B7: Disapproved List
A8: Testing Information | B8: Determination | I8: Notes
A9: Test method | B9: ASTM E3053 | I9: ATM
A10: Test Lab | B10: PFS-TECO | I10: performed at PFS facility
A11: Third-party certifier | B11: PFS-TECO
A12: Report certified | B12: PFS-TECO
A13: Test Report Elements | B13: Determination | I13: Notes
A14: Wght Avg PM emissions (g/hr) | B14: 1.3 | D14: PM Highest 1-hr (g/hr) | G14: 6.47 | I14: 1.3
A15: Wght Avg HHV Efficiency (%) | B15: 74 | I15: 79
A16: Wght Avg CO (g/hr) | B16: =IFERROR(G16*60,"Not reported") -> 72 | D16: Wght Avg CO (g/min) | G16: 1.2
A17: Max heat output (Btu/hr) | B17: 29511 | I17: 78000
A18: Manufacturers Instructions to lab | B18: Not reported
A19: Firebox vol. test report | B19: 1.83 | I19: 2.6
A20: Firebox dimensions | B20: Not reported | D20: Longest dim. (in) | F20: 22 | G20: Max log length
A21: Firebox calculations | B21: Not reported
A22: Efficiency calculations | B22: Reported
A23: Burn rate calculations | B23: Reported
A24: Raw data sheets | B24: Not reported
A25: Conditioning completed by | B25: Lab | I25: Reported aging took place 11/12-18/2018 but report states didn't receive unit until 1/24/2019.
A26: Conditioning data | B26: Partially reported | I26: 1) Did not report dates and when fuel added per method. 2) Only 5 hours out of 50 hours at medium burn rate (1.31 kg/hr, +/-0.5 kg/hr) based on med burn from test report.
A27: Lab technician notes | B27: Not reported
A28: Doc. of run appropriateness | B28: Reported | I28: did not discuss why SU/H runs done as a separate day of testing rather than using day 1 or 2 SU/H test runs.
A29: Doc. of run validity | B29: Reported
A30: Doc. of run anomolies | B30: Reported | I30: Did not report issues with train precision, run #3
A31: Doc. of run burn rates | B31: Reported
A32: Photos of the fuel loaded | B32: Reported
A33: Test Run Data | B33: Determination | I33: Notes
A34: Run # | C34: 1 | D34: 2 | E34: 3
A35: Run Category | C35: Startup & High | D35: Low | E35: Medium | I35: TM doesn't require kg/hr - basis but
A36: Burn rate (kg/hr) | C36: 2.17 | D36: 0.57 | E36: 1.31 | I36: essentially the same heat output. Why
A37: PM emissions by run (g/hr) | C37: 3.28 | D37: 0.54 | E37: 1.17 | I37: wasn't a higher air setting used.
A38: PM 1-hr filter pull (g/hr) | C38: 6.47 | D38: 4.4 | E38: 4.27 | I38: H: 3.682" open
A39: Filter data | C39: yes | D39: yes | E39: yes | I39: M: 0.942" open
A40: Train precision (%) | C40: -1.6 | D40: -0.3 | E40: 11 | I40: L: 0.547" open
A41: Negative weights | C41: no | D41: no | E41: no | I41: did not report 11% precision R3
A42: Negs handled appropriately | B42: Yes
A43: Heat output by run (Btu/hr) | C43: 29511 | D43: 8292 | E43: 17857
A44: CO by run (g/hr) | C44: 45 | D44: 51 | E44: 106
A45: HHV efficiency (%) | C45: 70.5 | D45: 76.9 | E45: 72.1
A46: Lowest burn rate tested | B46: Cannot be determined | I46: .078" open, not sure this is lowest setting
A47: All run data | B47: Not reported | I47: missing data to confirm SU/H completed correctly before two testing days
A48: Appliance Fueling | B48: Determination | I48: Notes
A49: Fuel species | B49: Maple
A50: Log length (in) | C50: 17 | D50: 17 | E50: 17 | I50: 22
A51: Direction of longest dimension | B51: Cannot be determined
A52: Log direction for testing | B52: East-West
A53: Squared (ASTM test only) | B53: Less than 50%
A54: Debarked (ASTM test only) | B54: More than 50%
A55: Load density (lb/ft3) | C55: 10.18 | D55: 11.88 | E55: 11.52
A56: Fuel moisture content load (%wb) | C56: 21.6 | D56: 21.5 | E56: 22 | I56: B Avg moisture content 21.7%
A57: Fuel piece configuration | B57: Within specified limit
A58: Owners Manual Req. | B58: Determination | I58: Notes
A59: Stack height | B59: Included
A60: Location recommendation | B60: Included
A61: Guidance on proper draft | B61: Included
A62: Fuel loading & reloading | B62: Not included
A63: Fuel selection recomm. | B63: Included
A64: Improper fuels warnings | B64: Included
A65: Fire starting procedures | B65: Not included
A66: Proper use of air controls | B66: Included
A67: Proper operation low | B67: Not included
A68: Ash removal procedures | B68: Included
A69: Replacement parts | B69: Included
A70: Federal warning (C or NC) | B70: Included
A71: Warranty rights | B71: Included
A72: Catalytst operation | B72: Included
A73: Cat maintenance procedures | B73: Included
A74: Determining catalyst det. or failure | B74: Included
A75: Reporting | B75: Determination | I75: Notes
A76: Summary tables complete | B76: All reported
A77: All run data submitted | B77: All reported
A78: Test report complete | B78: Partially reported major
A79: Owner manual complete | B79: Partially reported major
A80: Test dates | B80: tested 1/28-30/2019 | I80: received 1/24/19 but aging was done before receipt. Why three days of testing, Why wasn't day 1 SU/H used for another run.
A81: 30 Day notice submitted to EPA | B81: Cannot be determined
A82: Tested on the proposed date | B82: Cannot be determined
A83: Tested in consecutive days | B83: Yes | I83: tested in 3 days, norm is 2.
A84: 60 Day report to EPA | B84: Cannot be determined | I84: report date 2/5/2019
A85: EPA additional Review Elements | B85: Determination | I85: Notes
A86: Test location
A87: date lab received the unit
A88: date first day of conditioning
A89: date first day of testing
A90: first hour PM emissions reported for all runs
A91: first hour PM emissions reported in grams per hour
A92: first hour PM emissions zero or negative
A93: first hour PM emissions measured with front and back filter
A94: Zero CO emission reported
A95: Any incomplete runs
A96: Preburn data reported (SU/High-3053, preburn M28R)
A97: filter changes during test run
A98: filter plugged during test run
A99: What type of filter used
A100: Back and front filter weighed together (3053 only)
A101: Negative probe weight >5% of PM
A102: Negative probe value
A103: Negative room air values
A104: Ambient background filter data
A105: Proportional sampling
A106: Leak check - pre-test leak check reported
A107: Leak check - any filter change
A108: Leak check - post leak check reported
A109: Dilution tunnel schematic meets ASTM 2515 requirements
A110: Firebox measurements confirmed with schematic
A111: number of conditioning hours reported in summary
A112: number of conditioning hours with data
A113: number of hours at correct conditioning conditions
A114: used lowest air settings for low burn (ASTM 3053) or Cat 1(M28R)
A115: Air setting data | B115: Cat 1/Low | C115: Cat 2/Med | D115: Cat 3 | E115: Cat 4/High | F115: FC | G115: CV
A117: Total number of runs
A118: run averaging done correctly
A119: which SU/H run used for calculating emissions
A120: Fuel data for all SU/H runs (ASTM 3053)
A121: Multiple fuel lengths used
A122: Specific gravity of fuel used (ASTM 3053 only) | E122: Value
A123: M28 fuel loaded longest dimension
A124: Calibration data

Sheet FPI-F3500
A1: Summary of Review | L1: Summary of Review | W1: Summary of Review
A2: Manufacturer | B2: FPI / Regency Fireplace Products | I2: 2021-03-31 | L2: Manufacturer | M2: FPI / Regency Fireplace Products | T2: 2021-03-31 | W2: Manufacturer | X2: FPI / Regency Fireplace Products | AE2: 2021-03-31
A3: Model | B3: F3500 | F3: Control approach | I3: Catalytic | L3: Model | M3: F3500 | Q3: Control approach | T3: Catalytic | W3: Model | X3: F3500 | AB3: Control approach | AE3: Catalytic
A4: Prelim review recomm. | B4: Disapproved | L4: Prelim review recomm. | M4: Disapproved | W4: Prelim review recomm. | X4: Disapproved
A5: Red flags | B5: 13 | C5: Orange flags | E5: 10 | F5: Yellow flags | H5: 3 | L5: Red flags | M5: 13 | N5: Orange flags | P5: 10 | Q5: Yellow flags | S5: 3 | W5: Red flags | X5: 13 | Y5: Orange flags | AA5: 10 | AB5: Yellow flags | AD5: 3
A6: Final Determination | B6: Pending - Major | F6: Date: 9/1/2020 | I6: Basis: IDU, IR, NR | L6: Final Determination | M6: Pending - Major | Q6: Date: 9/1/2020 | T6: Basis: IDU, IR, NR | W6: Final Determination | X6: Pending - Major | AB6: Date: 9/1/2020 | AE6: Basis: IDU, IR, NR
A7: AK List Status | B7: No Determination List | L7: AK List Status | W7: AK List Status | X7: No Determination List
A8: Testing Information | B8: Determination | I8: Notes | L8: Testing Information | M8: Determination | T8: Notes | W8: Testing Information | X8: Determination | AE8: Notes
A9: Test method | B9: ASTM E3053 | I9: ATM approval letter added to updated report on pg 107 | L9: Test method | M9: ASTM E3053 | T9: ATM must be approved by ADEC (18 AAC 50.077(c)(3)(A)(ii). | W9: Test method | X9: ASTM E3053 | AE9: ATM must be approved by ADEC (18 AAC 50.077(c)(3)(A)(ii).
A10: Test Lab | B10: PFS-TECO | I10: performed at PFS facility - Does this | L10: Test Lab | M10: PFS-TECO | T10: performed at PFS facility - Does this | W10: Test Lab | X10: PFS-TECO | AE10: performed at PFS facility - Does this
A11: Third-party certifier | B11: PFS-TECO | I11: unit vary from one tested via M28? | L11: Third-party certifier | M11: PFS-TECO | T11: unit vary from one tested via M28? | W11: Third-party certifier | X11: PFS-TECO | AE11: unit vary from one tested via M28?
A12: Report certified | B12: PFS-TECO | L12: Report certified | M12: PFS-TECO | W12: Report certified | X12: PFS-TECO
A13: Test Report Elements | B13: Determination | I13: Notes | L13: Test Report Elements | M13: Determination | T13: Notes | W13: Test Report Elements | X13: Determination | AE13: Notes
A14: Wght Avg PM emissions (g/hr) | B14: 0.9 | D14: PM Highest 1-hr (g/hr) | G14: 4.88 | I14: 0.9 | L14: Wght Avg PM emissions (g/hr) | M14: 0.9 | O14: PM Highest 1-hr (g/hr) | R14: 4.88 | T14: 0.9 | W14: Wght Avg PM emissions (g/hr) | X14: 0.9 | Z14: PM Highest 1-hr (g/hr) | AC14: 4.88 | AE14: 0.9
A15: Wght Avg HHV Efficiency (%) | B15: 81 | I15: 87 | L15: Wght Avg HHV Efficiency (%) | M15: 81 | T15: 87 | W15: Wght Avg HHV Efficiency (%) | X15: 81 | AE15: 87
A16: Wght Avg CO (g/hr) | B16: =IFERROR(G16*60,"Not reported") -> 23.4 | D16: Wght Avg CO (g/min) | G16: 0.39 | L16: Wght Avg CO (g/hr) | M16: =IFERROR(R16*60,"Not reported") -> 23.4 | O16: Wght Avg CO (g/min) | R16: 0.39 | W16: Wght Avg CO (g/hr) | X16: =IFERROR(AC16*60,"Not reported") -> 23.4 | Z16: Wght Avg CO (g/min) | AC16: 0.39
A17: Max heat output (Btu/hr) | B17: 36174 | I17: 75000 | L17: Max heat output (Btu/hr) | M17: 36174 | T17: 75000 | W17: Max heat output (Btu/hr) | X17: 36174 | AE17: 75000
A18: Manufacturers Instructions to lab | B18: Not reported | I18: Instructions included in updated report pg 111 | L18: Manufacturers Instructions to lab | M18: Reported | W18: Manufacturers Instructions to lab | X18: Reported
A19: Firebox vol. test report | B19: 3.04 | I19: 3 | L19: Firebox vol. test report | M19: 3.04 | T19: 3 | W19: Firebox vol. test report | X19: 3.04 | AE19: 3
A20: Firebox dimensions | B20: Not reported | D20: Longest dim. (in) | F20: 20 | G20: Max log length | L20: Firebox dimensions | M20: Reported | O20: Longest dim. (in) | Q20: 21.467 | R20: Firebox dimension | T20: 3.041 ft3 | W20: Firebox dimensions | X20: Reported | Z20: Longest dim. (in) | AB20: 21.467 | AC20: Firebox dimension | AE20: 3.041 ft3
A21: Firebox calculations | B21: Not reported | I21: Firebox diagram included on pg 110 of updated report | L21: Firebox calculations | M21: Reported/not matched | T21: did not include calculations only diagram showing measurments. | W21: Firebox calculations | X21: Reported/not matched | AE21: did not include calculations only diagram showing measurments.
A22: Efficiency calculations | B22: Reported | L22: Efficiency calculations | M22: Reported | W22: Efficiency calculations | X22: Reported
A23: Burn rate calculations | B23: Reported | L23: Burn rate calculations | M23: Reported | W23: Burn rate calculations | X23: Reported
A24: Raw data sheets | B24: Not reported | I24: included in updated report on pgs 24, 53, and 84 | L24: Raw data sheets | M24: Reported | W24: Raw data sheets | X24: Reported
A25: Conditioning completed by | B25: Lab | I25: Reported aging took place 11/5-9/2018 but appliance receipt date for lab is 12/6/2018. | L25: Conditioning completed by | M25: Lab | T25: Reported aging took place 11/5-9/2018 but appliance receipt date for lab is 12/6/2018. | W25: Conditioning completed by | X25: Lab | AE25: Reported aging took place 11/5-9/2018 but appliance receipt date for lab is 12/6/2018.
A26: Conditioning data | B26: Partially reported | I26: 1) Did not report aging dates and did not report fuel information per the method. 2) Only 11 out of 10 hours at medium burn rate (1.39 kg/hr, +/-0.5 kg/hr) based on med burn from test report. other info | L26: Conditioning data | M26: Partially reported | T26: 1) Did not report aging dates and did not report fuel information per the method. 2) Only 11 out of 10 hours at medium burn rate (1.39 kg/hr, +/-0.5 kg/hr) based on med burn from test report. other info | W26: Conditioning data | X26: Partially reported | AE26: 1) Did not report aging dates and did not report fuel information per the method. 2) Only 11 out of 50 hours at medium burn rate (1.39 kg/hr, +/-0.5 kg/hr) based on med burn from test report. other info
A27: Lab technician notes | B27: Not reported | I27: included in update report pgs 50, 81, and 104 | L27: Lab technician notes | M27: Reported | W27: Lab technician notes | X27: Reported
A28: Doc. of run appropriateness | B28: Not reported | I28: did not discuss why SU/H was run completed as a third test day rather than using the SU/H test runs for day 1 or 2. | L28: Doc. of run appropriateness | M28: Not reported | T28: did not discuss why SU/H was run completed as a third test day rather than using the SU/H test runs for day 1 or 2. | W28: Doc. of run appropriateness | X28: Not reported | AE28: did not discuss why SU/H was run completed as a third test day rather than using the SU/H test runs for day 1 or 2.
A29: Doc. of run validity | B29: Reported | L29: Doc. of run validity | M29: Reported | W29: Doc. of run validity | X29: Reported
A30: Doc. of run anomolies | B30: Not reported | I30: included in updated report pg 9 | L30: Doc. of run anomolies | M30: Reported | W30: Doc. of run anomolies | X30: Reported
A31: Doc. of run burn rates | B31: Not reported | I31: located on pg 9 of updated report | L31: Doc. of run burn rates | M31: Reported | W31: Doc. of run burn rates | X31: Reported
A32: Photos of the fuel loaded | B32: Not reported | I32: photos included on pages 51, 82, and 105 of updated report | L32: Photos of the fuel loaded | M32: Reported | W32: Photos of the fuel loaded | X32: Reported
A33: Test Run Data | B33: Determination | I33: Notes | L33: Test Run Data | M33: Determination | T33: Notes | W33: Test Run Data | X33: Determination | AE33: Notes
A34: Run # | C34: 1 | D34: 2 | E34: 3 | L34: Run # | N34: 1 | O34: 2 | P34: 3 | W34: Run # | Y34: 1 | Z34: 2 | AA34: 3
A35: Run Category | C35: Startup & High | D35: Low | E35: Medium | I35: TM doesn't require kg/hr - basis but essentially the same heat output. Why wasn't a higher air setting used. | L35: Run Category | N35: Startup & High | O35: Low | P35: Medium | T35: TM doesn't require kg/hr - basis but essentially the same heat output. Why wasn't a higher air setting used. | W35: Run Category | Y35: Startup & High | Z35: Low | AA35: Medium | AE35: TM doesn't require kg/hr - basis but essentially the same heat output. Why wasn't a higher air setting used.
A36: Burn rate (kg/hr) | C36: 3.39 | D36: 0.67 | E36: 1.39 | I36: H: 2.688" open | L36: Burn rate (kg/hr) | N36: 3.39 | O36: 0.67 | P36: 1.39 | T36: H: 2.688" open | W36: Burn rate (kg/hr) | Y36: 3.39 | Z36: 0.67 | AA36: 1.39 | AE36: H: 2.688" open
A37: PM emissions by run (g/hr) | C37: 2.74 | D37: 0.21 | E37: 0.69 | I37: M: 1.547" open | L37: PM emissions by run (g/hr) | N37: 2.74 | O37: 0.21 | P37: 0.69 | T37: M: 1.547" open | W37: PM emissions by run (g/hr) | Y37: 2.74 | Z37: 0.21 | AA37: 0.69 | AE37: M: 1.547" open
A38: PM 1-hr filter pull (g/hr) | C38: 4.88 | D38: 1.93 | E38: 2.92 | I38: L: closed | L38: PM 1-hr filter pull (g/hr) | N38: 4.88 | O38: 1.93 | P38: 2.92 | T38: L: closed | W38: PM 1-hr filter pull (g/hr) | Y38: 4.88 | Z38: 1.93 | AA38: 2.92 | AE38: L: closed
A39: Filter data | C39: NR | D39: NR | E39: NR | I39: included on pgs 49, 80, and 103 of updated report | L39: Filter data | N39: yes | O39: yes | P39: yes | W39: Filter data | Y39: yes | Z39: yes | AA39: yes
A40: Train precision (%) | C40: -1.6 | D40: 3.3 | E40: 2.5 | L40: Train precision (%) | N40: -1.6 | O40: 3.3 | P40: 2.5 | W40: Train precision (%) | Y40: -1.6 | Z40: 3.3 | AA40: 2.5
A41: Negative weights | C41: CBD | D41: CBD | E41: CBD | L41: Negative weights | N41: no | O41: Yes | P41: no | W41: Negative weights | Y41: no | Z41: Yes | AA41: no
A42: Negs handled appropriately | B42: No | I42: manufacturer states "Negative filter weights handled properly in accordance with ASTM E2515, filter residue transfer to o-rings can sometimes cause negative filter weights." | L42: Negs handled appropriately | M42: No | T42: ADEC is awaiting EPA determination on this issue | W42: Negs handled appropriately | X42: No
A43: Heat output by run (Btu/hr) | C43: 36174 | D43: 10704 | E43: 20844 | L43: Heat output by run (Btu/hr) | N43: 36174 | O43: 10704 | P43: 20844 | W43: Heat output by run (Btu/hr) | Y43: 36174 | Z43: 10704 | AA43: 20844
A44: CO by run (g/hr) | C44: 5 | D44: 11 | E44: 45 | L44: CO by run (g/hr) | N44: 5 | O44: 11 | P44: 45 | W44: CO by run (g/hr) | Y44: 5 | Z44: 11 | AA44: 45
A45: HHV efficiency (%) | C45: 77.9 | D45: 84.1 | E45: 79.4 | L45: HHV efficiency (%) | N45: 77.9 | O45: 84.1 | P45: 79.4 | W45: HHV efficiency (%) | Y45: 77.9 | Z45: 84.1 | AA45: 79.4
A46: Lowest burn rate tested | B46: Cannot be determined | L46: Lowest burn rate tested | M46: Cannot be determined | W46: Lowest burn rate tested | X46: Cannot be determined
A47: All run data | B47: Not reported | I47: missing data to confirm SU/H completed correctly before two testing days | L47: All run data | M47: Not reported | T47: missing data to confirm SU/H completed correctly before two testing days | W47: All run data | X47: Not reported | AE47: missing data to confirm SU/H completed correctly before two testing days
A48: Appliance Fueling | B48: Determination | I48: Notes | L48: Appliance Fueling | M48: Determination | T48: Notes | W48: Appliance Fueling | X48: Determination | AE48: Notes
A49: Fuel species | B49: Maple | L49: Fuel species | M49: Maple | W49: Fuel species | X49: Maple
A50: Log length (in) | C50: 17 | D50: 17 | E50: 17 | I50: 20 | L50: Log length (in) | N50: 17 | O50: 17 | P50: 17 | T50: 20 | W50: Log length (in) | Y50: 17 | Z50: 17 | AA50: 17 | AE50: 20
A51: Direction of longest dimension | B51: East-West | L51: Direction of longest dimension | M51: East-West | W51: Direction of longest dimension | X51: East-West
A52: Log direction for testing | B52: North-South | I52: Manufacturer states "Hearth Area is approximately square, logs loaded north/south in accordance with manufacturer’s instructions." | L52: Log direction for testing | M52: North-South | W52: Log direction for testing | X52: North-South
A53: Squared (ASTM test only) | B53: More than 50% | I53: manufacturer states "there are no square piecesin any fuel load" | L53: Squared (ASTM test only) | M53: Less than 50% | W53: Squared (ASTM test only) | X53: Less than 50%
A54: Debarked (ASTM test only) | B54: More than 50% | I54: Manufacturer states " it is very common for well-seasoned to shed its bark when re-split prior to testing (larger pieces split down into smaller pieces to meet fuel piece criteria). This is particularly true, in our experience, when working with wood that is split out of larger (20”+ rounds) which is our primary fuel source." | L54: Debarked (ASTM test only) | M54: More than 50% | W54: Debarked (ASTM test only) | X54: More than 50%
A55: Load density (lb/ft3) | C55: 9.78 | D55: 11.61 | E55: 11.53 | L55: Load density (lb/ft3) | N55: 9.78 | O55: 11.61 | P55: 11.53 | W55: Load density (lb/ft3) | Y55: 9.78 | Z55: 11.61 | AA55: 11.53
A56: Fuel moisture content load (%wb) | C56: 22.6 | D56: 23.2 | E56: 21.3 | I56: C avg moisture 22.4% | L56: Fuel moisture content load (%wb) | N56: 22.6 | O56: 23.2 | P56: 21.3 | T56: C avg moisture 22.4% | W56: Fuel moisture content load (%wb) | Y56: 22.6 | Z56: 23.2 | AA56: 21.3 | AE56: C avg moisture 22.4%
A57: Fuel piece configuration | B57: Within specified limit | L57: Fuel piece configuration | M57: Within specified limit | W57: Fuel piece configuration | X57: Within specified limit
A58: Owners Manual Req. | B58: Determination | I58: Notes | L58: Owners Manual Req. | M58: Determination | T58: Notes | W58: Owners Manual Req. | X58: Determination | AE58: Notes
A59: Stack height | B59: Included | L59: Stack height | M59: Included | W59: Stack height | X59: Included
A60: Location recommendation | B60: Included | L60: Location recommendation | M60: Included | W60: Location recommendation | X60: Included
A61: Guidance on proper draft | B61: Included | L61: Guidance on proper draft | M61: Included | W61: Guidance on proper draft | X61: Included
A62: Fuel loading & reloading | B62: Not included | I62: reviewer is referred to pg 135-136 of updated report | L62: Fuel loading & reloading | M62: Included | W62: Fuel loading & reloading | X62: Included
A63: Fuel selection recomm. | B63: Included | L63: Fuel selection recomm. | M63: Included | W63: Fuel selection recomm. | X63: Included
A64: Improper fuels warnings | B64: Included | L64: Improper fuels warnings | M64: Included | W64: Improper fuels warnings | X64: Included
A65: Fire starting procedures | B65: Not included | I65: reviewer is referred to pg 135-136 of updated report | L65: Fire starting procedures | M65: Included | W65: Fire starting procedures | X65: Included
A66: Proper use of air controls | B66: Included | L66: Proper use of air controls | M66: Included | W66: Proper use of air controls | X66: Included
A67: Proper operation low | B67: Not included | I67: reviewer is referred to pg 135-136 of updated report | L67: Proper operation low | M67: Included | W67: Proper operation low | X67: Included
A68: Ash removal procedures | B68: Included | L68: Ash removal procedures | M68: Included | W68: Ash removal procedures | X68: Included
A69: Replacement parts | B69: Included | L69: Replacement parts | M69: Included | W69: Replacement parts | X69: Included
A70: Federal warning (C or NC) | B70: Included | L70: Federal warning (C or NC) | M70: Included | W70: Federal warning (C or NC) | X70: Included
A71: Warranty rights | B71: Included | L71: Warranty rights | M71: Included | W71: Warranty rights | X71: Included
A72: Catalytst operation | B72: Included | L72: Catalytst operation | M72: Included | W72: Catalytst operation | X72: Included
A73: Cat maintenance procedures | B73: Included | L73: Cat maintenance procedures | M73: Included | W73: Cat maintenance procedures | X73: Included
A74: Determining catalyst det. or failure | B74: Included | L74: Determining catalyst det. or failure | M74: Included | W74: Determining catalyst det. or failure | X74: Included
A75: Reporting | B75: Determination | I75: Notes | L75: Reporting | M75: Determination | T75: Notes | W75: Reporting | X75: Determination | AE75: Notes
A76: Summary tables complete | B76: All reported | L76: Summary tables complete | M76: All reported | W76: Summary tables complete | X76: All reported
A77: All run data submitted | B77: All reported | L77: All run data submitted | M77: All reported | W77: All run data submitted | X77: All reported
A78: Test report complete | B78: Partially reported major | L78: Test report complete | M78: Partially reported major | W78: Test report complete | X78: Partially reported major
A79: Owner manual complete | L79: Owner manual complete | W79: Owner manual complete
A80: Test dates | B80: 12/10-12/2018 | I80: what testing occurred on 12/10 | L80: Test dates | M80: 12/10-12/2018 | T80: what testing occurred on 12/10 | W80: Test dates | X80: 12/10-12/2018 | AE80: what testing occurred on 12/10
A81: 30 Day notice submitted to EPA | B81: Cannot be determined | I81: included in updated report pg 157 "week of December 3rd" | L81: 30 Day notice submitted to EPA | M81: Yes | W81: 30 Day notice submitted to EPA | X81: Yes
A82: Tested on the proposed date | B82: Cannot be determined | L82: Tested on the proposed date | M82: No | T82: Email included in updated report pg 163 from PFS to Sanchez swapping testing dates | W82: Tested on the proposed date | X82: No | AE82: Email included in updated report pg 163 from PFS to Sanchez swapping testing dates
A83: Tested in consecutive days | B83: Yes | I83: 3 days of testing - 2 is the norm. - manufcaturer states "3 testsperformed over 3 days, there is no issue here." | L83: Tested in consecutive days | M83: Yes | T83: 3 days of testing - 2 is the norm. | W83: Tested in consecutive days | X83: Yes | AE83: 3 days of testing - 2 is the norm.
A84: 60 Day report to EPA | B84: Cannot be determined | I84: included on pg 164 | L84: 60 Day report to EPA | M84: Yes | W84: 60 Day report to EPA | X84: Yes
A85: EPA additional Review Elements | B85: Determination | I85: Notes | L85: EPA additional Review Elements | M85: Determination | T85: Notes | W85: EPA additional Review Elements | X85: Determination | AE85: Notes
A86: Test location | L86: Test location | W86: Test location | X86: Lab
A87: date lab received the unit | L87: date lab received the unit | W87: date lab received the unit | X87: 2018-12-06
A88: date first day of conditioning | L88: date first day of conditioning | W88: date first day of conditioning | X88: 2018-11-05
A89: date first day of testing | L89: date first day of testing | W89: date first day of testing | X89: 2018-12-10
A90: first hour PM emissions reported for all runs | L90: first hour PM emissions reported for all runs | W90: first hour PM emissions reported for all runs | X90: yes
A91: first hour PM emissions reported in grams per hour | L91: first hour PM emissions reported in grams per hour | W91: first hour PM emissions reported in grams per hour | X91: yes
A92: first hour PM emissions zero or negative | L92: first hour PM emissions zero or negative | W92: first hour PM emissions zero or negative | X92: no
A93: first hour PM emissions measured with front and back filter | L93: first hour PM emissions measured with front and back filter | W93: first hour PM emissions measured with front and back filter | X93: no | AE93: Front
A94: Zero CO emission reported | L94: Zero CO emission reported | W94: Zero CO emission reported | X94: no
A95: Any incomplete runs | L95: Any incomplete runs | W95: Any incomplete runs | X95: no
A96: Preburn data reported (SU/High-3053, preburn M28R) | L96: Preburn data reported (SU/High-3053, preburn M28R) | W96: Preburn data reported (SU/High-3053, preburn M28R) | X96: no
A97: filter changes during test run | L97: filter changes during test run | W97: filter changes during test run | X97: no
A98: filter plugged during test run | L98: filter plugged during test run | W98: filter plugged during test run | X98: no
A99: What type of filter used | L99: What type of filter used | W99: What type of filter used | X99: Emfab
A100: Back and front filter weighed together (3053 only) | L100: Back and front filter weighed together (3053 only) | W100: Back and front filter weighed together (3053 only) | X100: yes
A101: Negative probe weight >5% of PM | L101: Negative probe weight >5% of PM | W101: Negative probe weight >5% of PM | X101: no negatives
A102: Negative probe value | L102: Negative probe value | W102: Negative probe value | X102: no negatives
A103: Negative room air values | L103: Negative room air values | W103: Negative room air values | X103: no negatives
A104: Ambient background filter data | L104: Ambient background filter data | W104: Ambient background filter data | X104: no negatives
A105: Proportional sampling | L105: Proportional sampling | W105: Proportional sampling | X105: yes with allowable deviations
A106: Leak check - pre-test leak check reported | L106: Leak check - pre-test leak check reported | W106: Leak check - pre-test leak check reported | X106: not reported
A107: Leak check - any filter change | L107: Leak check - any filter change | W107: Leak check - any filter change | X107: not reported
A108: Leak check - post leak check reported | L108: Leak check - post leak check reported | W108: Leak check - post leak check reported | X108: yes with allowable deviations
A109: Dilution tunnel schematic meets ASTM 2515 requirements | L109: Dilution tunnel schematic meets ASTM 2515 requirements | W109: Dilution tunnel schematic meets ASTM 2515 requirements | X109: not reported
A110: Firebox measurements confirmed with schematic | L110: Firebox measurements confirmed with schematic | W110: Firebox measurements confirmed with schematic | X110: no | AE110: see cell AM21
A111: number of conditioning hours reported in summary | L111: number of conditioning hours reported in summary | W111: number of conditioning hours reported in summary | X111: 50
A112: number of conditioning hours with data | L112: number of conditioning hours with data | W112: number of conditioning hours with data | X112: 50
A113: number of hours at correct conditioning conditions | L113: number of hours at correct conditioning conditions | W113: number of hours at correct conditioning conditions | X113: 11
A114: used lowest air settings for low burn (ASTM 3053) or Cat 1(M28R) | L114: used lowest air settings for low burn (ASTM 3053) or Cat 1(M28R) | W114: used lowest air settings for low burn (ASTM 3053) or Cat 1(M28R) | X114: yes
A115: Air setting data | B115: Cat 1/Low | C115: Cat 2/Med | D115: Cat 3 | E115: Cat 4/High | F115: FC | G115: CV | L115: Air setting data | M115: Cat 1/Low | N115: Cat 2/Med | O115: Cat 3 | P115: Cat 4/High | Q115: FC | R115: CV | W115: Air setting data | X115: Cat 1/Low | Y115: Cat 2/Med | Z115: Cat 3 | AA115: Cat 4/High | AB115: FC | AC115: CV
A117: Total number of runs | L117: Total number of runs | W117: Total number of runs | X117: 3
A118: run averaging done correctly | L118: run averaging done correctly | W118: run averaging done correctly
A119: which SU/H run used for calculating emissions | L119: which SU/H run used for calculating emissions | W119: which SU/H run used for calculating emissions | X119: first run
A120: Fuel data for all SU/H runs (ASTM 3053) | L120: Fuel data for all SU/H runs (ASTM 3053) | W120: Fuel data for all SU/H runs (ASTM 3053) | X120: no
A121: Multiple fuel lengths used | L121: Multiple fuel lengths used | W121: Multiple fuel lengths used | X121: no
A122: Specific gravity of fuel used (ASTM 3053 only) | E122: Value | L122: Specific gravity of fuel used (ASTM 3053 only) | P122: Value | W122: Specific gravity of fuel used (ASTM 3053 only) | X122: yes | AA122: Value | AC122: 0.6
A123: M28 fuel loaded longest dimension | L123: M28 fuel loaded longest dimension | W123: M28 fuel loaded longest dimension
A124: Calibration data | L124: Calibration data | W124: Calibration data | X124: yes

Sheet FPI-F5200
A1: Summary of Review
A2: Manufacturer | B2: FPI / Regency Fireplace Products
A3: Model | B3: F5200 | F3: Control approach | I3: Catalytic
A4: Prelim review recomm. | B4: Disapproved
A5: Red flags | B5: 10 | C5: Orange flags | E5: 13 | F5: Yellow flags | H5: 6
A6: Final Determination | B6: Disapproved | F6: Date: 9/1/2020 | I6: Basis: ES1, IR, NR
A7: AK List Status | B7: Disapproved List
A8: Testing Information | B8: Determination | I8: Notes
A9: Test method | B9: ASTM E3053 | I9: ATM
A10: Test Lab | B10: PFS-TECO | I10: performed at PFS facility
A11: Third-party certifier | B11: PFS-TECO
A12: Report certified | B12: PFS-TECO
A13: Test Report Elements | B13: Determination | I13: Notes
A14: Wght Avg PM emissions (g/hr) | B14: 0.9 | D14: PM Highest 1-hr (g/hr) | G14: 6.55 | I14: 0.9
A15: Wght Avg HHV Efficiency (%) | B15: 80 | I15: 86
A16: Wght Avg CO (g/hr) | B16: =IFERROR(G16*60,"Not reported") -> 31.8 | D16: Wght Avg CO (g/min) | G16: 0.53
A17: Max heat output (Btu/hr) | B17: 47081 | I17: 80000
A18: Manufacturers Instructions to lab | B18: Not reported
A19: Firebox vol. test report | B19: 4.42 | I19: 4.4
A20: Firebox dimensions | B20: Not reported | D20: Longest dim. (in) | F20: 22 | G20: Max log length
A21: Firebox calculations | B21: Not reported
A22: Efficiency calculations | B22: Reported
A23: Burn rate calculations | B23: Reported
A24: Raw data sheets | B24: Reported | I24: Raw data sheets reported
A25: Conditioning completed by | B25: Lab | I25: Reported aging took place 4/2018 but appliance receipt date for lab is 10/252018.
A26: Conditioning data | B26: Partially reported | I26: 1) Did not report aging dates and did not report fuel information per the method. 2) Only 21 out of 10 hours at medium burn rate (1.39 kg/hr, +/-0.5 kg/hr) based on med burn from test report.
A27: Lab technician notes | B27: Not reported
A28: Doc. of run appropriateness | B28: Reported
A29: Doc. of run validity | B29: Partially reported | I29: did not report proportionality
A30: Doc. of run anomolies | B30: Partially reported | I30: no anomolies reported but data suggests may exist
A31: Doc. of run burn rates | B31: Reported
A32: Photos of the fuel loaded | B32: Reported
A33: Test Run Data | B33: Determination | I33: Notes
A34: Run # | C34: 1 | D34: 2 | E34: 3
A35: Run Category | C35: Startup & High | D35: Low | E35: Medium | I35: TM doesn't require kg/hr - basis but
A36: Burn rate (kg/hr) | C36: 3.21 | D36: 1.07 | E36: 1.35 | I36: no information on measurements for
A37: PM emissions by run (g/hr) | C37: 2.58 | D37: 0.4 | E37: 0.56 | I37: air setting
A38: PM 1-hr filter pull (g/hr) | C38: 6.55 | D38: 2 | E38: 2.24
A39: Filter data | C39: NR | D39: NR | E39: NR
A40: Train precision (%) | C40: 2.4 | D40: 1.6 | E40: 3.6
A41: Negative weights | C41: CBD | D41: CBD | E41: CBD
A42: Negs handled appropriately | B42: No
A43: Heat output by run (Btu/hr) | C43: 47081 | D43: 16648 | E43: 20501
A44: CO by run (g/hr) | C44: 68 | D44: 6 | E44: 21
A45: HHV efficiency (%) | C45: 75 | D45: 82 | E45: 80
A46: Lowest burn rate tested | B46: Cannot be determined | I46: Did not report settings
A47: All run data | B47: Not reported | I47: missing data to confirm SU/H completed correctly before second day testing
A48: Appliance Fueling | B48: Determination | I48: Notes
A49: Fuel species | B49: Maple
A50: Log length (in) | C50: 20 | D50: 20 | E50: 20 | I50: 22
A51: Direction of longest dimension | B51: East-West
A52: Log direction for testing | B52: North-South
A53: Squared (ASTM test only) | B53: All
A54: Debarked (ASTM test only) | B54: More than 50%
A55: Load density (lb/ft3) | C55: 10.4 | D55: 11.98 | E55: 11.75
A56: Fuel moisture content load (%wb) | C56: 23.1 | D56: 21.8 | E56: 22.7 | I56: C avg moisture 22.5%
A57: Fuel piece configuration | B57: Within specified limit
A58: Owners Manual Req. | B58: Determination | I58: Notes
A59: Stack height | B59: Included
A60: Location recommendation | B60: Included
A61: Guidance on proper draft | B61: Included
A62: Fuel loading & reloading | B62: Not included
A63: Fuel selection recomm. | B63: Included
A64: Improper fuels warnings | B64: Included
A65: Fire starting procedures | B65: Not included
A66: Proper use of air controls | B66: Included
A67: Proper operation low | B67: Not included
A68: Ash removal procedures | B68: Included
A69: Replacement parts | B69: Included
A70: Federal warning (C or NC) | B70: Included
A71: Warranty rights | B71: Included
A72: Catalytst operation | B72: Included
A73: Cat maintenance procedures | B73: Included
A74: Determining catalyst det. or failure | B74: Included
A75: Reporting | B75: Determination | I75: Notes
A76: Summary tables complete | B76: All reported
A77: All run data submitted | B77: All reported
A78: Test report complete | B78: Partially reported major
A79: Owner manual complete | B79: Partially reported major
A80: Test dates | B80: 4/23-26/19 | I80: received 2/21/19, no reason for delay in report
A81: 30 Day notice submitted to EPA | B81: Cannot be determined
A82: Tested on the proposed date | B82: Cannot be determined
A83: Tested in consecutive days | B83: No
A84: 60 Day report to EPA | B84: Cannot be determined | I84: report date 5.2.19
A85: EPA additional Review Elements | B85: Determination | I85: Notes
A86: Test location
A87: date lab received the unit
A88: date first day of conditioning
A89: date first day of testing
A90: first hour PM emissions reported for all runs
A91: first hour PM emissions reported in grams per hour
A92: first hour PM emissions zero or negative
A93: first hour PM emissions measured with front and back filter
A94: Zero CO emission reported
A95: Any incomplete runs
A96: Preburn data reported (SU/High-3053, preburn M28R)
A97: filter changes during test run
A98: filter plugged during test run
A99: What type of filter used
A100: Back and front filter weighed together (3053 only)
A101: Negative probe weight >5% of PM
A102: Negative probe value
A103: Negative room air values
A104: Ambient background filter data
A105: Proportional sampling
A106: Leak check - pre-test leak check reported
A107: Leak check - any filter change
A108: Leak check - post leak check reported
A109: Dilution tunnel schematic meets ASTM 2515 requirements
A110: Firebox measurements confirmed with schematic
A111: number of conditioning hours reported in summary
A112: number of conditioning hours with data
A113: number of hours at correct conditioning conditions
A114: used lowest air settings for low burn (ASTM 3053) or Cat 1(M28R)
A115: Air setting data | B115: Cat 1/Low | C115: Cat 2/Med | D115: Cat 3 | E115: Cat 4/High | F115: FC | G115: CV
A117: Total number of runs
A118: run averaging done correctly
A119: which SU/H run used for calculating emissions
A120: Fuel data for all SU/H runs (ASTM 3053)
A121: Multiple fuel lengths used
A122: Specific gravity of fuel used (ASTM 3053 only) | E122: Value
A123: M28 fuel loaded longest dimension
A124: Calibration data

Sheet FPI-I1150
A1: Summary of Review | L1: Summary of Review
A2: Manufacturer | B2: FPI / Fireplace Products International Limited | I2: 2021-03-31 | L2: Manufacturer | M2: FPI / Fireplace Products International Limited | T2: 2021-03-31
A3: Model | B3: F1150, I1150 | F3: Control approach | I3: Non-Catalytic | L3: Model | M3: F1150, I1150 | Q3: Control approach | T3: Non-Catalytic
A4: Prelim review recomm. | B4: Requires a more thorough review | L4: Prelim review recomm. | M4: Requires a more thorough review
A5: Red flags | B5: 6 | C5: Orange flags | E5: 8 | F5: Yellow flags | H5: 8 | L5: Red flags | M5: 6 | N5: Orange flags | P5: 8 | Q5: Yellow flags | S5: 8
A6: Final Determination | B6: Pending - Major | F6: Date: 9/1/2020 | I6: Basis: IR, NR | L6: Final Determination | M6: Pending - Major | Q6: Date: 9/1/2020 | T6: Basis: IR, NR
A7: AK List Status | B7: No Determination List | L7: AK List Status
A8: Testing Information | B8: Determination | I8: Notes | L8: Testing Information | M8: Determination | T8: Notes
A9: Test method | B9: ASTM E3053 | I9: ATM letter include in updated report pg 158. | L9: Test method | M9: ASTM E3053 | T9: ATM must be approved by ADEC (18 AAC 50.077(c)(3)(A)(ii).
A10: Test Lab | B10: PFS-TECO | I10: performed at PFS lab | L10: Test Lab | M10: PFS-TECO | T10: performed at PFS lab
A11: Third-party certifier | B11: PFS-TECO | L11: Third-party certifier | M11: PFS-TECO
A12: Report certified | B12: PFS-TECO | L12: Report certified | M12: PFS-TECO
A13: Test Report Elements | B13: Determination | I13: Notes | L13: Test Report Elements | M13: Determination | T13: Notes
A14: Wght Avg PM emissions (g/hr) | B14: 1.71 | D14: PM Highest 1-hr (g/hr) | G14: 4.45 | I14: 1.7 | L14: Wght Avg PM emissions (g/hr) | M14: 1.71 | O14: PM Highest 1-hr (g/hr) | R14: 4.45 | T14: 1.7
A15: Wght Avg HHV Efficiency (%) | B15: 70.3 | I15: 75 | L15: Wght Avg HHV Efficiency (%) | M15: 70.3 | T15: 75
A16: Wght Avg CO (g/hr) | B16: =IFERROR(G16*60,"Not reported") -> 84 | D16: Wght Avg CO (g/min) | G16: 1.4 | L16: Wght Avg CO (g/hr) | M16: =IFERROR(R16*60,"Not reported") -> 84 | O16: Wght Avg CO (g/min) | R16: 1.4
A17: Max heat output (Btu/hr) | B17: 39101 | I17: 55000 | L17: Max heat output (Btu/hr) | M17: 39101 | T17: 55000
A18: Manufacturers Instructions to lab | B18: Not reported | I18: Manufacturer added instructions to updated report pg. 112 | L18: Manufacturers Instructions to lab | M18: Reported
A19: Firebox vol. test report | B19: 0.98 | I19: 1.3 | L19: Firebox vol. test report | M19: 0.98 | T19: 1.3
A20: Firebox dimensions | B20: Not reported | D20: Longest dim. (in) | F20: 18 | G20: Max log length | L20: Firebox dimensions | M20: Not reported | O20: Longest dim. (in) | Q20: 18 | R20: Max log length
A21: Firebox calculations | B21: Not reported | I21: Manufacturer submitted firebox diagram on pg 114 of updated report. | L21: Firebox calculations | M21: Reported/not matched | T21: .98 ft3, diagram supplied but no calculation for actuals used in calc
A22: Efficiency calculations | B22: Reported | L22: Efficiency calculations | M22: Reported
A23: Burn rate calculations | B23: Reported | L23: Burn rate calculations | M23: Reported
A24: Raw data sheets | B24: Reported | L24: Raw data sheets | M24: Reported
A25: Conditioning completed by | B25: Lab | I25: cannot determine when aging occurred. | L25: Conditioning completed by | M25: Lab | T25: cannot determine when aging occurred.
A26: Conditioning data | B26: Partially reported | I26: 1) Did not report dates, and fuel loading information per the method. 2) Only 10 hours of 50 hours at medium burn rate (1.19 kg/hr, +/-0.5 kg/hr) based on med burn from test report. other info | L26: Conditioning data | M26: Partially reported | T26: 1) Did not report dates, and fuel loading information per the method. 2) Only 10 hours of 50 hours at medium burn rate (1.19 kg/hr, +/-0.5 kg/hr) based on med burn from test report. other info
A27: Lab technician notes | B27: Reported | L27: Lab technician notes | M27: Reported
A28: Doc. of run appropriateness | B28: Reported | L28: Doc. of run appropriateness | M28: Reported
A29: Doc. of run validity | B29: Reported | I29: did not report negative values | L29: Doc. of run validity | M29: Reported | T29: did not report negative values
A30: Doc. of run anomolies | B30: Reported | L30: Doc. of run anomolies | M30: Reported
A31: Doc. of run burn rates | B31: Reported | L31: Doc. of run burn rates | M31: Reported
A32: Photos of the fuel loaded | B32: Partially reported | I32: insufficient to determine loading data | L32: Photos of the fuel loaded | M32: Partially reported | T32: insufficient to determine loading data- photos on pgs - 42,79,110
A33: Test Run Data | B33: Determination | I33: Notes | L33: Test Run Data | M33: Determination | T33: Notes
A34: Run # | C34: 1 | D34: 2 | E34: 3 | I34: took 3 days to complete 2 day test | L34: Run # | N34: 1 | O34: 2 | P34: 3 | T34: took 3 days to complete 2 day test
A35: Run Category | C35: Startup & High | D35: Low | E35: Medium | I35: only ran SU/H on day 1, why? | L35: Run Category | N35: Startup & High | O35: Low | P35: Medium | T35: only ran SU/H on day 1, why?
A36: Burn rate (kg/hr) | C36: 2.86 | D36: 0.94 | E36: 1.19 | I36: no information on measurements for air setting - Manufacturer states "Air setting drawings areshown in the drawings section of the CBI report, due to differencesin the designof the air slideopening between the test appliance (a prototype) and production models, rather than specify dimensions, the settings are only describes as shown in these drawings. " | L36: Burn rate (kg/hr) | N36: 2.86 | O36: 0.94 | P36: 1.19
A37: PM emissions by run (g/hr) | C37: 3.92 | D37: 0.92 | E37: 1.39 | L37: PM emissions by run (g/hr) | N37: 3.92 | O37: 0.92 | P37: 1.39
A38: PM 1-hr filter pull (g/hr) | C38: 4.45 | D38: 2.55 | E38: 3.64 | L38: PM 1-hr filter pull (g/hr) | N38: 4.45 | O38: 2.55 | P38: 3.64
A39: Filter data | C39: yes | D39: yes | E39: yes | L39: Filter data | N39: yes | O39: yes | P39: yes
A40: Train precision (%) | C40: 6.2 | D40: 0.4 | E40: 6.3 | L40: Train precision (%) | N40: 6.2 | O40: 0.4 | P40: 6.3
A41: Negative weights | C41: yes | D41: no | E41: no | L41: Negative weights | N41: yes | O41: no | P41: no
A42: Negs handled appropriately | B42: Yes | L42: Negs handled appropriately | M42: Yes
A43: Heat output by run (Btu/hr) | C43: 39101 | D43: 12777 | E43: 15942 | L43: Heat output by run (Btu/hr) | N43: 39101 | O43: 12777 | P43: 15942
A44: CO by run (g/hr) | C44: 122 | D44: 56 | E44: 73 | L44: CO by run (g/hr) | N44: 122 | O44: 56 | P44: 73
A45: HHV efficiency (%) | C45: 67.9 | D45: 71.3 | E45: 70.5 | L45: HHV efficiency (%) | N45: 67.9 | O45: 71.3 | P45: 70.5
A46: Lowest burn rate tested | B46: Not reported | I46: Manufacturer states "it would be inaccurate to say the prototype model was tested “fully closed”but it is accurateto state this is the minimum achievable setting on a productionmodel." | L46: Lowest burn rate tested | M46: Not reported | T46: ADEC is awaiting EPA determination in this issue
A47: All run data | B47: Not reported | I47: missing data to confirm SU/H completed correctly before second day testing - Manufacturer states "SU/High test run as a stand-alone test, there is norequirement to run a low or medium after it." | L47: All run data | M47: Not reported | T47: All data is required to be reported.
A48: Appliance Fueling | B48: Determination | I48: Notes | L48: Appliance Fueling | M48: Determination | T48: Notes
A49: Fuel species | B49: Maple | L49: Fuel species | M49: Maple
A50: Log length (in) | C50: 17 | D50: 17 | E50: 17 | I50: 18 | L50: Log length (in) | N50: 17 | O50: 17 | P50: 17 | T50: 18
A51: Direction of longest dimension | B51: Cannot be determined | L51: Direction of longest dimension | M51: East-West
A52: Log direction for testing | B52: East-West | L52: Log direction for testing | M52: East-West
A53: Squared (ASTM test only) | B53: More than 50% | I53: Manufacturer states "See fuel photos, there are only I handful of “square”pieces used throughout the test series, much less than 50%." | L53: Squared (ASTM test only) | M53: More than 50% | T53: EPA has stated Squared wood is not acceptable for testing with ASTM 3053. Unless a letter is provided from EPA stating that it is acceptable to use squared wood for ASTM 3053 testing.
A54: Debarked (ASTM test only) | B54: More than 50% | I54: Manufacturer states " it is very common for well-seasoned to shed its bark when re-split prior to testing (larger pieces split down into smaller pieces to meet fuel piece criteria). This is particularly true, in our experience, when working with wood that is split out of larger (20”+ rounds) which is our primary fuel source." | L54: Debarked (ASTM test only) | M54: More than 50%
A55: Load density (lb/ft3) | C55: 9.57 | D55: 11.96 | E55: 11.81 | L55: Load density (lb/ft3) | N55: 9.57 | O55: 11.96 | P55: 11.81
A56: Fuel moisture content load (%wb) | C56: 22.1 | D56: 21.5 | E56: 20.7 | I56: B avg moisture content 21.4% | L56: Fuel moisture content load (%wb) | N56: 22.1 | O56: 21.5 | P56: 20.7 | T56: B avg moisture content 21.4%
A57: Fuel piece configuration | B57: Within specified limit | L57: Fuel piece configuration | M57: Within specified limit
A58: Owners Manual Req. | B58: Determination | I58: Notes | L58: Owners Manual Req. | M58: Determination | T58: Notes
A59: Stack height | B59: Included | L59: Stack height | M59: Included
A60: Location recommendation | B60: Included | L60: Location recommendation | M60: Included
A61: Guidance on proper draft | B61: Included | L61: Guidance on proper draft | M61: Included
A62: Fuel loading & reloading | B62: Not included | I62: Manufacturer refers reviewer to pg 135 of updated report | L62: Fuel loading & reloading | M62: Included
A63: Fuel selection recomm. | B63: Included | L63: Fuel selection recomm. | M63: Included
A64: Improper fuels warnings | B64: Included | L64: Improper fuels warnings | M64: Included
A65: Fire starting procedures | B65: Not included | I65: Manufacturer refers reviewer to pg 135 of updated report | L65: Fire starting procedures | M65: Included
A66: Proper use of air controls | B66: Included | L66: Proper use of air controls | M66: Included
A67: Proper operation low | B67: Not included | I67: Manufacturer refers reviewer to pg 135 of updated report | L67: Proper operation low | M67: Included
A68: Ash removal procedures | B68: Included | L68: Ash removal procedures | M68: Included
A69: Replacement parts | B69: Included | L69: Replacement parts | M69: Included
A70: Federal warning (C or NC) | B70: Included | L70: Federal warning (C or NC) | M70: Included
A71: Warranty rights | B71: Included | L71: Warranty rights | M71: Included
A72: Catalytst operation | B72: Included | L72: Catalytst operation | M72: Included
A73: Cat maintenance procedures | B73: Included | L73: Cat maintenance procedures | M73: Included
A74: Determining catalyst det. or failure | B74: Included | L74: Determining catalyst det. or failure | M74: Included
A75: Reporting | B75: Determination | I75: Notes | L75: Reporting | M75: Determination | T75: Notes
A76: Summary tables complete | B76: All reported | L76: Summary tables complete | M76: All reported
A77: All run data submitted | B77: All reported | L77: All run data submitted | M77: All reported
A78: Test report complete | B78: Partially reported major | L78: Test report complete | M78: Partially reported major
A79: Owner manual complete | B79: Partially reported major | L79: Owner manual complete | M79: Partially reported major
A80: Test dates | B80: 7/22-24/2019 | I80: received 7/18/2019 (Thursday), 3 days testing | L80: Test dates | M80: 7/22-24/2019 | T80: received 7/18/2019 (Thursday), 3 days testing
A81: 30 Day notice submitted to EPA | B81: Cannot be determined | I81: manufacture added notice to updated report on pg 156 | L81: 30 Day notice submitted to EPA | M81: Yes | T81: 2 day test - July 22-25
A82: Tested on the proposed date | B82: Cannot be determined | L82: Tested on the proposed date | M82: Yes
A83: Tested in consecutive days | B83: Yes | I83: did not explain why no run after 1st SU/H | L83: Tested in consecutive days | M83: Yes | T83: did not explain why no run after 1st SU/H
A84: 60 Day report to EPA | B84: Cannot be determined | I84: report date 8/14/2019 - email to ePA was attached to updated report. | L84: 60 Day report to EPA | M84: Yes | T84: report date 8/14/2019
A85: EPA additional Review Elements | B85: Determination | I85: Notes | L85: EPA additional Review Elements | M85: Determination | T85: Notes
A86: Test location | L86: Test location
A87: date lab received the unit | L87: date lab received the unit
A88: date first day of conditioning | L88: date first day of conditioning
A89: date first day of testing | L89: date first day of testing
A90: first hour PM emissions reported for all runs | L90: first hour PM emissions reported for all runs
A91: first hour PM emissions reported in grams per hour | L91: first hour PM emissions reported in grams per hour
A92: first hour PM emissions zero or negative | L92: first hour PM emissions zero or negative
A93: first hour PM emissions measured with front and back filter | L93: first hour PM emissions measured with front and back filter
A94: Zero CO emission reported | L94: Zero CO emission reported
A95: Any incomplete runs | L95: Any incomplete runs
A96: Preburn data reported (SU/High-3053, preburn M28R) | L96: Preburn data reported (SU/High-3053, preburn M28R)
A97: filter changes during test run | L97: filter changes during test run
A98: filter plugged during test run | L98: filter plugged during test run
A99: What type of filter used | L99: What type of filter used
A100: Back and front filter weighed together (3053 only) | L100: Back and front filter weighed together (3053 only)
A101: Negative probe weight >5% of PM | L101: Negative probe weight >5% of PM
A102: Negative probe value | L102: Negative probe value
A103: Negative room air values | L103: Negative room air values
A104: Ambient background filter data | L104: Ambient background filter data
A105: Proportional sampling | L105: Proportional sampling
A106: Leak check - pre-test leak check reported | L106: Leak check - pre-test leak check reported
A107: Leak check - any filter change | L107: Leak check - any filter change
A108: Leak check - post leak check reported | L108: Leak check - post leak check reported
A109: Dilution tunnel schematic meets ASTM 2515 requirements | L109: Dilution tunnel schematic meets ASTM 2515 requirements
A110: Firebox measurements confirmed with schematic | L110: Firebox measurements confirmed with schematic
A111: number of conditioning hours reported in summary | L111: number of conditioning hours reported in summary
A112: number of conditioning hours with data | L112: number of conditioning hours with data
A113: number of hours at correct conditioning conditions | L113: number of hours at correct conditioning conditions
A114: used lowest air settings for low burn (ASTM 3053) or Cat 1(M28R) | L114: used lowest air settings for low burn (ASTM 3053) or Cat 1(M28R)
A115: Air setting data | B115: Cat 1/Low | C115: Cat 2/Med | D115: Cat 3 | E115: Cat 4/High | F115: FC | G115: CV | L115: Air setting data | M115: Cat 1/Low | N115: Cat 2/Med | O115: Cat 3 | P115: Cat 4/High | Q115: FC | R115: CV
A117: Total number of runs | L117: Total number of runs
A118: run averaging done correctly | L118: run averaging done correctly
A119: which SU/H run used for calculating emissions | L119: which SU/H run used for calculating emissions
A120: Fuel data for all SU/H runs (ASTM 3053) | L120: Fuel data for all SU/H runs (ASTM 3053)
A121: Multiple fuel lengths used | L121: Multiple fuel lengths used
A122: Specific gravity of fuel used (ASTM 3053 only) | E122: Value | L122: Specific gravity of fuel used (ASTM 3053 only) | P122: Value
A123: M28 fuel loaded longest dimension | L123: M28 fuel loaded longest dimension
A124: Calibration data | L124: Calibration data

Sheet Kuma-K180
A1: Summary of Review | L1: Summary of Review
A2: Manufacturer | B2: Kuma Stove and Iron Works | L2: Manufacturer | M2: Kuma Stove and Iron Works
A3: Model | B3: K-180 Series, Aspen LE, Tamarack LE, Abderdeen LE, Alpine LE | F3: Control approach | I3: Hybrid | L3: Model | M3: K-180 Series, Aspen LE, Tamarack LE, Abderdeen LE, Alpine LE | Q3: Control approach | T3: Hybrid
A4: Prelim review recomm. | B4: Disapproved | L4: Prelim review recomm. | M4: Disapproved
A5: Red flags | B5: 15 | C5: Orange flags | E5: 5 | F5: Yellow flags | H5: 6 | L5: Red flags | M5: 15 | N5: Orange flags | P5: 5 | Q5: Yellow flags | S5: 6
A6: Final Determination | B6: Disapproved | F6: Date: 9/1/2020 | I6: Basis: ES1, IR, NR | L6: Final Determination | M6: Disapproved | Q6: Date: 9/1/2020 | T6: Basis: ES1, IR, NR
A7: AK List Status | B7: Disapproved List | L7: AK List Status
A8: Testing Information | B8: Determination | I8: Notes | L8: Testing Information | M8: Determination | T8: Notes
A9: Test method | B9: ASTM E3053 | I9: ATM | L9: Test method | M9: ASTM E3053 | T9: ATM
A10: Test Lab | B10: OMNI | I10: CONSULTANTS LAB | L10: Test Lab | M10: OMNI | T10: CONSULTANTS LAB
A11: Third-party certifier | B11: OMNI | L11: Third-party certifier | M11: OMNI
A12: Report certified | B12: Not reported | L12: Report certified | M12: Not reported
A13: Test Report Elements | B13: Determination | I13: Notes | L13: Test Report Elements | M13: Determination | T13: Notes
A14: Wght Avg PM emissions (g/hr) | B14: 0.72 | D14: PM Highest 1-hr (g/hr) | G14: 29.62 | I14: 0.72 | L14: Wght Avg PM emissions (g/hr) | M14: 0.72 | O14: PM Highest 1-hr (g/hr) | R14: 29.62 | T14: 0.72
A15: Wght Avg HHV Efficiency (%) | B15: 81 | I15: 81 | L15: Wght Avg HHV Efficiency (%) | M15: 81 | T15: 81
A16: Wght Avg CO (g/hr) | B16: =IFERROR(G16*60,"Not reported") -> 6 | D16: Wght Avg CO (g/min) | G16: 0.1 | L16: Wght Avg CO (g/hr) | M16: =IFERROR(R16*60,"Not reported") -> 6 | O16: Wght Avg CO (g/min) | R16: 0.1
A17: Max heat output (Btu/hr) | B17: 32121 | I17: 63000 | L17: Max heat output (Btu/hr) | M17: 32121 | T17: 63000
A18: Manufacturers Instructions to lab | B18: Reported contradicts owners manual | L18: Manufacturers Instructions to lab | M18: Reported contradicts owners manual
A19: Firebox vol. test report | B19: 1.74 | I19: 1.8 | L19: Firebox vol. test report | M19: 1.74 | T19: 1.8
A20: Firebox dimensions | B20: Reported | D20: Longest dim. (in) | F20: 16 | G20: Max log length | L20: Firebox dimensions | M20: Reported | O20: Longest dim. (in) | Q20: 18.25 | R20: Firebox dimension | T20: Appemdix C
A21: Firebox calculations | B21: Not reported | L21: Firebox calculations | M21: Reported/matched | T21: Appemdix C
A22: Efficiency calculations | B22: Reported | L22: Efficiency calculations | M22: Reported
A23: Burn rate calculations | B23: Reported | L23: Burn rate calculations | M23: Reported
A24: Raw data sheets | B24: Reported | L24: Raw data sheets | M24: Reported
A25: Conditioning completed by | B25: Not reported | L25: Conditioning completed by | M25: Manufacturer
A26: Conditioning data | B26: Not reported | L26: Conditioning data | M26: Reported | T26: pp 27-8
A27: Lab technician notes | B27: Reported | I27: N | L27: Lab technician notes | M27: Reported | T27: N
A28: Doc. of run appropriateness | B28: Reported | I28: Did not | L28: Doc. of run appropriateness | M28: Reported | T28: p. 9
A29: Doc. of run validity | B29: Reported | L29: Doc. of run validity | M29: Reported
A30: Doc. of run anomolies | B30: Reported | L30: Doc. of run anomolies | M30: Reported
A31: Doc. of run burn rates | B31: Reported | L31: Doc. of run burn rates | M31: Reported
A32: Photos of the fuel loaded | B32: Reported | L32: Photos of the fuel loaded | M32: Partially reported | T32: missing photos of residual fuel bed
A33: Test Run Data | B33: Determination | I33: Notes | L33: Test Run Data | M33: Determination | T33: Notes
A34: Run # | C34: 1 | D34: 2 | E34: 5 | F34: 6 | H34: 4 | I34: air setting | L34: Run # | N34: 1 | O34: 2 | P34: 5 | Q34: 6 | R34: 4* | T34: air setting
A35: Run Category | C35: Startup & High | D35: Low | E35: Medium | F35: Medium | I35: R1: open | L35: Run Category | N35: Startup & High | O35: Low | P35: Medium | Q35: Medium | R35: Medium | T35: R1: fully open
A36: Burn rate (kg/hr) | C36: 2.26 | D36: 0.68 | E36: 0.7 | F36: 0.8 | G36: NR | H36: 0.74 | I36: R2: open 15 min, 10/32" remainder | L36: Burn rate (kg/hr) | N36: 2.26 | O36: 0.68 | P36: 0.7 | Q36: 0.8 | R36: 0.74 | T36: R2: open 15 min, fully closed
A37: PM emissions by run (g/hr) | C37: 2.03 | D37: 0.38 | E37: 0.39 | F37: 0.4 | G37: NR | H37: 5.78 | I37: R4: open 15 min,11/32" remainder | L37: PM emissions by run (g/hr) | N37: 2.03 | O37: 0.38 | P37: 0.39 | Q37: 0.4 | R37: 5.78 | T37: R4: open 15 min,11/32" remainder
A38: PM 1-hr filter pull (g/hr) | C38: 3.17 | D38: 1.11 | E38: 1.19 | F38: 1.7 | G38: NR | H38: 29.62 | I38: R5: open 15 min,11/32" remainder | L38: PM 1-hr filter pull (g/hr) | N38: 3.17 | O38: 1.11 | P38: 1.19 | Q38: 1.7 | R38: 29.62 | T38: R5: open 15 min,11/32" remainder
A39: Filter data | C39: NR | D39: NR | E39: NR | F39: NR | G39: NR | H39: NR | I39: R6: open 15 min,13/32" remainder | L39: Filter data | N39: Yes | O39: Yes | P39: Yes | Q39: Yes | R39: Yes | T39: R6: open 15 min,13/32" remainder
A40: Train precision (%) | C40: NR | D40: NR | E40: NR | F40: NR | G40: NR | H40: NR | I40: Why is med setting representative? | L40: Train precision (%) | N40: 3.79 | O40: 2.32 | P40: 0.59 | Q40: 4.95 | R40: NR | T40: Why is this representative of Med. Burn?
A41: Negative weights | C41: NR | D41: NR | E41: NR | F41: NR | G41: NR | H41: NR | L41: Negative weights | N41: No | O41: No | P41: No | Q41: No | R41: No | T41: *Run 4 excluded from weighted average at manufacturer’s request; replaced by runs 5 and 6.
A42: Negs handled appropriately | B42: Not reported | L42: Negs handled appropriately | M42: Yes
A43: Heat output by run (Btu/hr) | C43: 32121 | D43: 10614 | E43: 10767 | F43: 12265 | L43: Heat output by run (Btu/hr) | N43: 32121 | O43: 10614 | P43: 10767 | Q43: 12265
A44: CO by run (g/hr) | C44: 0.9 | D44: 6.66 | E44: 7.8 | F44: 7.3 | L44: CO by run (g/hr) | N44: 0.9 | O44: 6.66 | P44: 7.8 | Q44: 7.3
A45: HHV efficiency (%) | C45: 75.8 | D45: 82.6 | E45: 82.2 | F45: 82 | L45: HHV efficiency (%) | N45: 75.8 | O45: 82.6 | P45: 82.2 | Q45: 82
A46: Lowest burn rate tested | B46: Not reported | I46: man instructions 5/16 open | L46: Lowest burn rate tested | M46: Reported
A47: All run data | B47: Not reported | L47: All run data | M47: Reported
A48: Appliance Fueling | B48: Determination | I48: Notes | L48: Appliance Fueling | M48: Determination | T48: Notes
A49: Fuel species | B49: Maple | L49: Fuel species | M49: Maple
A50: Log length (in) | C50: 16 | D50: 16 | E50: 16 | F50: 16 | I50: 16 | L50: Log length (in) | N50: 16 | O50: 16 | P50: 16 | Q50: 16 | T50: 16
A51: Direction of longest dimension | B51: East-West | L51: Direction of longest dimension | M51: East-West
A52: Log direction for testing | B52: Mixed | L52: Log direction for testing | M52: Mixed
A53: Squared (ASTM test only) | B53: Less than 50% | L53: Squared (ASTM test only) | M53: Less than 50%
A54: Debarked (ASTM test only) | B54: More than 50% | L54: Debarked (ASTM test only) | M54: More than 50%
A55: Load density (lb/ft3) | C55: 9.5 | D55: 11.4 | E55: 11.4 | F55: 11.5 | L55: Load density (lb/ft3) | N55: 9.5 | O55: 11.4 | P55: 11.4 | Q55: 11.5
A56: Fuel moisture content load (%wb) | C56: 19.22 | D56: 20.05 | E56: NR | F56: 21.21 | I56: Avg moisture 20.2% | L56: Fuel moisture content load (%wb) | N56: 19.22 | O56: 20.05 | P56: NR | Q56: 21.21 | T56: Avg moisture 20.2%
A57: Fuel piece configuration | B57: Within specified limit | L57: Fuel piece configuration | M57: Within specified limit
A58: Owners Manual Req. | B58: Determination | I58: Notes | L58: Owners Manual Req. | M58: Determination | T58: Notes
A59: Stack height | B59: Included | L59: Stack height | M59: Included
A60: Location recommendation | B60: Included | L60: Location recommendation | M60: Included
A61: Guidance on proper draft | B61: Included | L61: Guidance on proper draft | M61: Included
A62: Fuel loading & reloading | B62: Included | L62: Fuel loading & reloading | M62: Included
A63: Fuel selection recomm. | B63: Included | L63: Fuel selection recomm. | M63: Included
A64: Improper fuels warnings | B64: Included | L64: Improper fuels warnings | M64: Included
A65: Fire starting procedures | B65: Included | L65: Fire starting procedures | M65: Included
A66: Proper use of air controls | B66: Included | L66: Proper use of air controls | M66: Included
A67: Proper operation low | B67: Included | L67: Proper operation low | M67: Included
A68: Ash removal procedures | B68: Included | L68: Ash removal procedures | M68: Included
A69: Replacement parts | B69: Included | L69: Replacement parts | M69: Included
A70: Federal warning (C or NC) | B70: Included | L70: Federal warning (C or NC) | M70: Included
A71: Warranty rights | B71: Included | L71: Warranty rights | M71: Included
A72: Catalytst operation | B72: Included | L72: Catalytst operation | M72: Included
A73: Cat maintenance procedures | B73: Included | L73: Cat maintenance procedures | M73: Included
A74: Determining catalyst det. or failure | B74: Included | L74: Determining catalyst det. or failure | M74: Included
A75: Reporting | B75: Determination | I75: Notes | L75: Reporting | M75: Determination | T75: Notes
A76: Summary tables complete | B76: All reported | L76: Summary tables complete | M76: All reported
A77: All run data submitted | B77: Partially reported | L77: All run data submitted | M77: All reported
A78: Test report complete | B78: Partially reported major | L78: Test report complete | M78: Partially reported minor
A79: Owner manual complete | B79: All reported | L79: Owner manual complete | M79: All reported
A80: Test dates | B80: 2/26-3/2/2019 | I80: extra days of testing, not con-current, no explain. | L80: Test dates | M80: 2/26-3/2/2019 | T80: extra days of testing, not con-current, no explain.
A81: 30 Day notice submitted to EPA | B81: Cannot be determined | L81: 30 Day notice submitted to EPA | M81: Cannot be determined
A82: Tested on the proposed date | B82: Cannot be determined | L82: Tested on the proposed date | M82: Cannot be determined
A83: Tested in consecutive days | B83: No | L83: Tested in consecutive days | M83: No
A84: 60 Day report to EPA | B84: Cannot be determined | L84: 60 Day report to EPA | M84: Cannot be determined
A85: EPA additional Review Elements | B85: Determination | I85: Notes | L85: EPA additional Review Elements | M85: Determination | T85: Notes
A86: Test location | L86: Test location | M86: Lab | T86: OMNI
A87: date lab received the unit | L87: date lab received the unit | M87: Not reported
A88: date first day of conditioning | L88: date first day of conditioning | M88: 2019-01-28
A89: date first day of testing | L89: date first day of testing | M89: 2019-02-26
A90: first hour PM emissions reported for all runs | L90: first hour PM emissions reported for all runs | M90: yes
A91: first hour PM emissions reported in grams per hour | L91: first hour PM emissions reported in grams per hour | M91: yes
A92: first hour PM emissions zero or negative | L92: first hour PM emissions zero or negative | M92: no
A93: first hour PM emissions measured with front and back filter | L93: first hour PM emissions measured with front and back filter | M93: no | T93: Front
A94: Zero CO emission reported | L94: Zero CO emission reported | M94: no
A95: Any incomplete runs | L95: Any incomplete runs | M95: no
A96: Preburn data reported (SU/High-3053, preburn M28R) | L96: Preburn data reported (SU/High-3053, preburn M28R) | M96: yes
A97: filter changes during test run | L97: filter changes during test run | M97: no
A98: filter plugged during test run | L98: filter plugged during test run | M98: no
A99: What type of filter used | L99: What type of filter used | M99: not reported
A100: Back and front filter weighed together (3053 only) | L100: Back and front filter weighed together (3053 only) | M100: yes
A101: Negative probe weight >5% of PM | L101: Negative probe weight >5% of PM | M101: no negatives
A102: Negative probe value | L102: Negative probe value | M102: no negatives
A103: Negative room air values | L103: Negative room air values | M103: no negatives
A104: Ambient background filter data | L104: Ambient background filter data | M104: no negatives
A105: Proportional sampling | L105: Proportional sampling | M105: yes with allowable deviations
A106: Leak check - pre-test leak check reported | L106: Leak check - pre-test leak check reported | M106: yes with allowable deviations
A107: Leak check - any filter change | L107: Leak check - any filter change | M107: yes with allowable deviations
A108: Leak check - post leak check reported | L108: Leak check - post leak check reported | M108: yes with allowable deviations
A109: Dilution tunnel schematic meets ASTM 2515 requirements | L109: Dilution tunnel schematic meets ASTM 2515 requirements | M109: not reported
A110: Firebox measurements confirmed with schematic | L110: Firebox measurements confirmed with schematic | M110: yes
A111: number of conditioning hours reported in summary | L111: number of conditioning hours reported in summary | M111: 51
A112: number of conditioning hours with data | L112: number of conditioning hours with data | M112: 51
A113: number of hours at correct conditioning conditions | L113: number of hours at correct conditioning conditions | M113: unknown | T113: air setting data not provided.
A114: used lowest air settings for low burn (ASTM 3053) or Cat 1(M28R) | L114: used lowest air settings for low burn (ASTM 3053) or Cat 1(M28R) | M114: yes
A115: Air setting data | B115: Cat 1/Low | C115: Cat 2/Med | D115: Cat 3 | E115: Cat 4/High | F115: FC | G115: CV | L115: Air setting data | M115: Cat 1/Low | N115: Cat 2/Med | O115: Cat 3 | P115: Cat 4/High | Q115: FC | R115: CV
M116: yes | N116: yes | P116: yes
A117: Total number of runs | L117: Total number of runs | M117: 6
A118: run averaging done correctly | L118: run averaging done correctly | M118: yes
A119: which SU/H run used for calculating emissions | L119: which SU/H run used for calculating emissions | M119: first run
A120: Fuel data for all SU/H runs (ASTM 3053) | L120: Fuel data for all SU/H runs (ASTM 3053) | M120: not reported
A121: Multiple fuel lengths used | L121: Multiple fuel lengths used | M121: no
A122: Specific gravity of fuel used (ASTM 3053 only) | E122: Value | L122: Specific gravity of fuel used (ASTM 3053 only) | M122: not reported | P122: Value
A123: M28 fuel loaded longest dimension | L123: M28 fuel loaded longest dimension
A124: Calibration data | L124: Calibration data | M124: partially reported | T124: calibrations more than six months from testing

Sheet Kuma-K250
A1: Summary of Review | L1: Summary of Review
A2: Manufacturer | B2: Kuma Stove and Iron Works | L2: Manufacturer | M2: Kuma Stove and Iron Works
A3: Model | B3: K-250 Series, Ashwood LE, Wood Classic LE, Cambridge LE, Cascade LE | F3: Control approach | I3: Hybrid | L3: Model | M3: K-250 Series, Ashwood LE, Wood Classic LE, Cambridge LE, Cascade LE | Q3: Control approach | T3: Hybrid
A4: Prelim review recomm. | B4: Disapproved | L4: Prelim review recomm. | M4: Disapproved
A5: Red flags | B5: 6 | C5: Orange flags | E5: 7 | F5: Yellow flags | H5: 4 | L5: Red flags | M5: 6 | N5: Orange flags | P5: 7 | Q5: Yellow flags | S5: 4
A6: Final Determination | B6: Pending - Major | F6: Date: 9/1/2020 | I6: Basis: IDU, IR, NR | L6: Final Determination | M6: Pending - Major | Q6: Date: 9/1/2020 | T6: Basis: IDU, IR, NR
A7: AK List Status | B7: No Determination List | L7: AK List Status
A8: Testing Information | B8: Determination | I8: Notes | L8: Testing Information | M8: Determination | T8: Notes
A9: Test method | B9: ASTM E3053 | I9: ATM | L9: Test method | M9: ASTM E3053 | T9: ATM
A10: Test Lab | B10: OMNI | I10: performed at Myren lab (consultant) | L10: Test Lab | M10: OMNI | T10: performed at Myren lab (consultant)
A11: Third-party certifier | B11: OMNI | L11: Third-party certifier | M11: OMNI
A12: Report certified | B12: Omni | L12: Report certified | M12: Omni
A13: Test Report Elements | B13: Determination | I13: Notes | L13: Test Report Elements | M13: Determination | T13: Notes
A14: Wght Avg PM emissions (g/hr) | B14: 1.13 | D14: PM Highest 1-hr (g/hr) | G14: 5.38 | L14: Wght Avg PM emissions (g/hr) | M14: 1.13 | O14: PM Highest 1-hr (g/hr) | R14: 5.38
A15: Wght Avg HHV Efficiency (%) | B15: 79.44 | I15: 79.4 | L15: Wght Avg HHV Efficiency (%) | M15: 79.44 | T15: 79.4
A16: Wght Avg CO (g/hr) | B16: =IFERROR(G16*60,"Not reported") -> 10.974 | D16: Wght Avg CO (g/min) | G16: 0.1829 | L16: Wght Avg CO (g/hr) | M16: =IFERROR(R16*60,"Not reported") -> 10.974 | O16: Wght Avg CO (g/min) | R16: 0.1829
A17: Max heat output (Btu/hr) | B17: 30308 | I17: 82000 | L17: Max heat output (Btu/hr) | M17: 30308 | T17: 82000
A18: Manufacturers Instructions to lab | B18: Reported contradicts owners manual | L18: Manufacturers Instructions to lab | M18: Reported contradicts owners manual
A19: Firebox vol. test report | B19: 2.5 | I19: 2.5 | L19: Firebox vol. test report | M19: 2.5 | T19: 2.5
A20: Firebox dimensions | B20: Not reported | D20: Longest dim. (in) | F20: 19 | G20: Max log length | L20: Firebox dimensions | M20: Reported | O20: Longest dim. (in) | Q20: 20.75 | R20: Firebox dimension | T20: Appemdix B
A21: Firebox calculations | B21: Not reported | L21: Firebox calculations | M21: Reported/matched | T21: Appendix B
A22: Efficiency calculations | B22: Reported | L22: Efficiency calculations | M22: Reported
A23: Burn rate calculations | B23: Reported | L23: Burn rate calculations | M23: Reported
A24: Raw data sheets | B24: Reported | L24: Raw data sheets | M24: Reported
A25: Conditioning completed by | B25: Not reported | L25: Conditioning completed by | M25: Manufacturer
A26: Conditioning data | B26: Not reported | L26: Conditioning data | M26: Reported | T26: pp. 26-29
A27: Lab technician notes | B27: Reported | L27: Lab technician notes | M27: Reported
A28: Doc. of run appropriateness | B28: Reported | L28: Doc. of run appropriateness | M28: Reported
A29: Doc. of run validity | B29: Reported | L29: Doc. of run validity | M29: Reported
A30: Doc. of run anomolies | B30: Reported | L30: Doc. of run anomolies | M30: Reported
A31: Doc. of run burn rates | B31: Reported | L31: Doc. of run burn rates | M31: Reported
A32: Photos of the fuel loaded | B32: Reported | L32: Photos of the fuel loaded | M32: Partially reported | T32: photos do not include required photos of residual fuel bed for runs 3 and 4. In Run 2, a full piece remained unburnt charred but intact.
A33: Test Run Data | B33: Determination | I33: Notes | L33: Test Run Data | M33: Determination | T33: Notes
A34: Run # | C34: 1 | D34: 2 | E34: 4 | L34: Run # | N34: 1 | O34: 2 | P34: 4
A35: Run Category | C35: Startup & High | D35: Low | E35: Medium | I35: R1 BR in narrative doesn't match tables | L35: Run Category | N35: Startup & High | O35: Low | P35: Medium
A36: Burn rate (kg/hr) | C36: 2.62 | D36: 0.82 | E36: 1.01 | L36: Burn rate (kg/hr) | N36: 2.48 | O36: 0.82 | P36: 1.01
A37: PM emissions by run (g/hr) | C37: 2.89 | D37: 0.4 | E37: 0.99 | I37: R1: SU/H fully open | L37: PM emissions by run (g/hr) | N37: 2.89 | O37: 0.4 | P37: 0.99 | T37: R1: SU/H fully open
A38: PM 1-hr filter pull (g/hr) | C38: 3.35 | D38: 1.99 | E38: 5.38 | I38: R2: Low 11/32" from open | L38: PM 1-hr filter pull (g/hr) | N38: 3.35 | O38: 1.99 | P38: 5.38 | T38: R2: Low fully closed
A39: Filter data | C39: yes | D39: yes | E39: yes | I39: R3: Med 8/32" from full open | L39: Filter data | N39: yes | O39: yes | P39: yes | T39: R3: Med 3/32" from fully closed
A40: Train precision (%) | C40: NR | D40: NR | E40: NR | I40: Why is this representative of Med. Burn? | L40: Train precision (%) | N40: 4.72 | O40: 7.9 | P40: 4.29 | T40: Why is this representative of Med. Burn?
A41: Negative weights | C41: no | D41: no | E41: no | L41: Negative weights | N41: no | O41: no | P41: no
A42: Negs handled appropriately | B42: Yes | L42: Negs handled appropriately | M42: Yes
A43: Heat output by run (Btu/hr) | C43: 30308 | D43: 11196 | E43: 13636 | L43: Heat output by run (Btu/hr) | N43: 30308 | O43: 11196 | P43: 13636
A44: CO by run (g/hr) | C44: 18.01 | D44: 5.05 | E44: 9.86 | L44: CO by run (g/hr) | N44: 18.01 | O44: 5.05 | P44: 9.86
A45: HHV efficiency (%) | C45: 73.2 | D45: 81.4 | E45: 80.6 | L45: HHV efficiency (%) | N45: 73.2 | O45: 81.4 | P45: 80.6
A46: Lowest burn rate tested | B46: Not reported | I46: Report states PAC open 11/32" | L46: Lowest burn rate tested | M46: Reported | T46: Report states PAC open 11/32"
A47: All run data | B47: Not reported | I47: Report indicates that testing lasted three days but no discussion of why it took three days to complete testing and why is there only two days of testing data? | L47: All run data | M47: Reported | T47: Report indicates that testing lasted three days but no discussion of why it took three days to complete testing and why is there only two days of testing data?
A48: Appliance Fueling | B48: Determination | I48: Notes | L48: Appliance Fueling | M48: Determination | T48: Notes
A49: Fuel species | B49: Not reported | L49: Fuel species | M49: Not reported
A50: Log length (in) | C50: 18 | D50: 18 | E50: 18 | I50: 19 | L50: Log length (in) | N50: 18 | O50: 18 | P50: 18 | T50: 19
A51: Direction of longest dimension | B51: East-West | L51: Direction of longest dimension | M51: East-West
A52: Log direction for testing | B52: Mixed | L52: Log direction for testing | M52: Mixed
A53: Squared (ASTM test only) | B53: Less than 50% | L53: Squared (ASTM test only) | M53: More than 50% | T53: Test run 1 used squared pieces
A54: Debarked (ASTM test only) | B54: More than 50% | L54: Debarked (ASTM test only) | M54: More than 50%
A55: Load density (lb/ft3) | C55: 10.3 | D55: 12.2 | E55: 12 | L55: Load density (lb/ft3) | N55: 10.3 | O55: 12.2 | P55: 12
A56: Fuel moisture content load (%wb) | C56: 21.42 | D56: 22.31 | E56: 22.44 | I56: C avg moisture 22.1% | L56: Fuel moisture content load (%wb) | N56: 21.42 | O56: 22.31 | P56: 22.44 | T56: C avg moisture 22.1%
A57: Fuel piece configuration | B57: Within specified limit | L57: Fuel piece configuration | M57: Within specified limit
A58: Owners Manual Req. | B58: Determination | I58: Notes | L58: Owners Manual Req. | M58: Determination | T58: Notes
A59: Stack height | B59: Included | L59: Stack height | M59: Included
A60: Location recommendation | B60: Included | L60: Location recommendation | M60: Included
A61: Guidance on proper draft | B61: Included | L61: Guidance on proper draft | M61: Included
A62: Fuel loading & reloading | B62: Included | L62: Fuel loading & reloading | M62: Included
A63: Fuel selection recomm. | B63: Included | L63: Fuel selection recomm. | M63: Included
A64: Improper fuels warnings | B64: Included | L64: Improper fuels warnings | M64: Included
A65: Fire starting procedures | B65: Included | L65: Fire starting procedures | M65: Included
A66: Proper use of air controls | B66: Included | L66: Proper use of air controls | M66: Included
A67: Proper operation low | B67: Included | L67: Proper operation low | M67: Included
A68: Ash removal procedures | B68: Included | L68: Ash removal procedures | M68: Included
A69: Replacement parts | B69: Included | L69: Replacement parts | M69: Included
A70: Federal warning (C or NC) | B70: Included | L70: Federal warning (C or NC) | M70: Included
A71: Warranty rights | B71: Included | L71: Warranty rights | M71: Included
A72: Catalytst operation | B72: Included | L72: Catalytst operation | M72: Included
A73: Cat maintenance procedures | B73: Included | L73: Cat maintenance procedures | M73: Included
A74: Determining catalyst det. or failure | B74: Included | L74: Determining catalyst det. or failure | M74: Included
A75: Reporting | B75: Determination | I75: Notes | L75: Reporting | M75: Determination | T75: Notes
A76: Summary tables complete | B76: All reported | L76: Summary tables complete | M76: All reported
A77: All run data submitted | B77: All reported | L77: All run data submitted | M77: All reported
A78: Test report complete | B78: Partially reported major | L78: Test report complete | M78: Partially reported minor
A79: Owner manual complete | B79: All reported | L79: Owner manual complete | M79: All reported
A80: Test dates | B80: 11/27-28/2018 | L80: Test dates | M80: 11/27-28/2018
A81: 30 Day notice submitted to EPA | B81: Cannot be determined | L81: 30 Day notice submitted to EPA | M81: Cannot be determined
A82: Tested on the proposed date | B82: Cannot be determined | L82: Tested on the proposed date | M82: Cannot be determined
A83: Tested in consecutive days | B83: No | L83: Tested in consecutive days | M83: No
A84: 60 Day report to EPA | B84: Cannot be determined | L84: 60 Day report to EPA | M84: Cannot be determined
A85: EPA additional Review Elements | B85: Determination | I85: Notes | L85: EPA additional Review Elements | M85: Determination | T85: Notes
A86: Test location | L86: Test location | M86: Lab | T86: OMNI
A87: date lab received the unit | L87: date lab received the unit | M87: 2018-11-26
A88: date first day of conditioning | L88: date first day of conditioning | M88: 2018-10-29
A89: date first day of testing | L89: date first day of testing | M89: 2018-11-27
A90: first hour PM emissions reported for all runs | L90: first hour PM emissions reported for all runs | M90: yes
A91: first hour PM emissions reported in grams per hour | L91: first hour PM emissions reported in grams per hour | M91: yes
A92: first hour PM emissions zero or negative | L92: first hour PM emissions zero or negative | M92: no
A93: first hour PM emissions measured with front and back filter | L93: first hour PM emissions measured with front and back filter | M93: yes
A94: Zero CO emission reported | L94: Zero CO emission reported | M94: no
A95: Any incomplete runs | L95: Any incomplete runs | M95: no
A96: Preburn data reported (SU/High-3053, preburn M28R) | L96: Preburn data reported (SU/High-3053, preburn M28R) | M96: no
A97: filter changes during test run | L97: filter changes during test run | M97: no
A98: filter plugged during test run | L98: filter plugged during test run | M98: no
A99: What type of filter used | L99: What type of filter used | M99: glass fiber | T99: Teflon coated 47mm filters
A100: Back and front filter weighed together (3053 only) | L100: Back and front filter weighed together (3053 only) | M100: yes
A101: Negative probe weight >5% of PM | L101: Negative probe weight >5% of PM | M101: no negatives
A102: Negative probe value | L102: Negative probe value | M102: no negatives
A103: Negative room air values | L103: Negative room air values | M103: no negatives
A104: Ambient background filter data | L104: Ambient background filter data | M104: no negatives
A105: Proportional sampling | L105: Proportional sampling | M105: yes with allowable deviations
A106: Leak check - pre-test leak check reported | L106: Leak check - pre-test leak check reported | M106: yes with allowable deviations
A107: Leak check - any filter change | L107: Leak check - any filter change | M107: no
A108: Leak check - post leak check reported | L108: Leak check - post leak check reported | M108: yes with allowable deviations
A109: Dilution tunnel schematic meets ASTM 2515 requirements | L109: Dilution tunnel schematic meets ASTM 2515 requirements | M109: not reported
A110: Firebox measurements confirmed with schematic | L110: Firebox measurements confirmed with schematic | M110: yes
A111: number of conditioning hours reported in summary | L111: number of conditioning hours reported in summary | M111: 51
A112: number of conditioning hours with data | L112: number of conditioning hours with data | M112: 51
A113: number of hours at correct conditioning conditions | L113: number of hours at correct conditioning conditions | M113: unknown | T113: air setting data not reported
A114: used lowest air settings for low burn (ASTM 3053) or Cat 1(M28R) | L114: used lowest air settings for low burn (ASTM 3053) or Cat 1(M28R) | M114: yes
A115: Air setting data | B115: Cat 1/Low | C115: Cat 2/Med | D115: Cat 3 | E115: Cat 4/High | F115: FC | G115: CV | L115: Air setting data | M115: Cat 1/Low | N115: Cat 2/Med | O115: Cat 3 | P115: Cat 4/High | Q115: FC | R115: CV
M116: yes | N116: yes | P116: yes
A117: Total number of runs | L117: Total number of runs | M117: 4
A118: run averaging done correctly | L118: run averaging done correctly | M118: yes
A119: which SU/H run used for calculating emissions | L119: which SU/H run used for calculating emissions | M119: first run
A120: Fuel data for all SU/H runs (ASTM 3053) | L120: Fuel data for all SU/H runs (ASTM 3053) | M120: no
A121: Multiple fuel lengths used | L121: Multiple fuel lengths used | M121: no
A122: Specific gravity of fuel used (ASTM 3053 only) | E122: Value | L122: Specific gravity of fuel used (ASTM 3053 only) | M122: no | P122: Value
A123: M28 fuel loaded longest dimension | L123: M28 fuel loaded longest dimension
A124: Calibration data | L124: Calibration data | M124: yes

Sheet Iron Strike-S160AGL
A1: Summary of Review
A2: Manufacturer | B2: Innovative Hearth Products
A3: Model | B3: S160 AGL, S160TGL, C160AGL, T160AGL, WX2016 | F3: Control approach | I3: Non-Catalytic
A4: Prelim review recomm. | B4: Disapproved
A5: Red flags | B5: 7 | C5: Orange flags | E5: 8 | F5: Yellow flags | H5: 6
A6: Final Determination | B6: Disapproved | F6: Date: 9/1/2020 | I6: Basis: ESA, ES1, IR, IDU, NR
A7: AK List Status | B7: Disapproved List
A8: Testing Information | B8: Determination | I8: Notes
A9: Test method | B9: ASTM E3053 | I9: ATM
A10: Test Lab | B10: Polytests Inc. | I10: performed at Polytest facility
A11: Third-party certifier | B11: PFS Corp.
A12: Report certified | B12: Not reported
A13: Test Report Elements | B13: Determination | I13: Notes
A14: Wght Avg PM emissions (g/hr) | B14: 2.1 | D14: PM Highest 1-hr (g/hr) | G14: 8.2
A15: Wght Avg HHV Efficiency (%) | B15: 70 | I15: 70
A16: Wght Avg CO (g/hr) | B16: =IFERROR(G16*60,"Not reported") -> 78.9 | D16: Wght Avg CO (g/min) | G16: 1.315
A17: Max heat output (Btu/hr) | B17: 42574 | I17: 55600
A18: Manufacturers Instructions to lab | B18: Reported
A19: Firebox vol. test report | B19: 1.51 | I19: 1.6
A20: Firebox dimensions | B20: Not reported | D20: Longest dim. (in) | F20: 18 | G20: Max log length
A21: Firebox calculations | B21: Not reported
A22: Efficiency calculations | B22: Reported
A23: Burn rate calculations | B23: Reported
A24: Raw data sheets | B24: Reported
A25: Conditioning completed by | B25: Manufacturer | I25: Manufacturer ran the tests at the lab after lab receipt for testing.
A26: Conditioning data | B26: Partially reported | I26: 1) Data does not meet the reporting requirements of the test method. 2) Cannot determine conformance with medium burn rate requirements.
A27: Lab technician notes | B27: Reported
A28: Doc. of run appropriateness | B28: Partially reported | I28: did not provide full data for pre-burns indicates ran a low and med test in one day not sure how that is possible if SU/H required before each run.
A29: Doc. of run validity | B29: Partially reported | I29: see above.
A30: Doc. of run anomolies | B30: Partially reported | I30: did not report negative weights nor anomolies
A31: Doc. of run burn rates | B31: Reported | I31: N
A32: Photos of the fuel loaded | B32: Partially reported | I32: insufficient to document per test method
A33: Test Run Data | B33: Determination | I33: Notes
A34: Run # | C34: 1.1 | D34: 1.2 | E34: 2 | F34: 3 | G34: 4 | H34: 5
A35: Run Category | C35: Startup & High | D35: Medium | E35: Medium | F35: Low | G35: Medium | H35: Medium | I35: no other start up /high data reported
A36: Burn rate (kg/hr) | C36: 3.47 | D36: 1.2 | E36: 1.19 | F36: 1.15 | G36: 1.26 | H36: 1.71
A37: PM emissions by run (g/hr) | C37: 5.43 | D37: 0.74 | E37: 7.12 | F37: 1.21 | G37: 6.35 | H37: 2 | I37: air setting distance not reported by lab
A38: PM 1-hr filter pull (g/hr) | C38: 8.2 | D38: 4.64 | E38: 4.12 | F38: 6.31 | G38: 4.57 | H38: 7.5 | I38: manufacturer put data in CBI files
A39: Filter data | C39: yes | D39: yes | E39: yes | F39: yes | G39: yes | H39: yes
A40: Train precision (%) | C40: 5.3 | D40: 5.66 | E40: 0.94 | F40: 1.89 | G40: 0.39 | H40: 5.72
A41: Negative weights | C41: yes | D41: yes | E41: yes | F41: yes | G41: yes | H41: yes
A42: Negs handled appropriately | B42: No
A43: Heat output by run (Btu/hr) | C43: 42574 | D43: 16496 | E43: 15822 | F43: 15999 | G43: NR | H43: 22363
A44: CO by run (g/hr) | C44: 106.1 | D44: 80.4 | E44: 107 | F44: 60.3 | G44: NR | H44: 87.6
A45: HHV efficiency (%) | C45: 64.15 | D45: 71.72 | E45: 69.37 | F45: 72.93 | G45: NR | H45: 68.26
A46: Lowest burn rate tested | B46: Cannot be determined | I46: cannot determine without setting information
A47: All run data | B47: Not reported | I47: Missing SU/H data for four M and L runs.
A48: Appliance Fueling | B48: Determination | I48: Notes
A49: Fuel species | B49: Oak
A50: Log length (in) | C50: 16 | D50: 16 | E50: 16 | F50: 16 | G50: 16 | H50: 16 | I50: 18
A51: Direction of longest dimension | B51: East-West
A52: Log direction for testing | B52: North-South
A53: Squared (ASTM test only) | B53: More than 50%
A54: Debarked (ASTM test only) | B54: More than 50%
A55: Load density (lb/ft3) | C55: 10.29 | D55: 12.39 | E55: 11.41 | F55: 11.42 | G55: 11.71 | H55: 12.03
A56: Fuel moisture content load (%wb) | C56: 24.25 | D56: 21.58 | E56: 22.77 | F56: 20.02 | G56: 20.35 | H56: 21.1 | I56: B avg moisture content 21.7
A57: Fuel piece configuration | B57: Within specified limit
A58: Owners Manual Req. | B58: Determination | I58: Notes
A59: Stack height | B59: Included
A60: Location recommendation | B60: Included
A61: Guidance on proper draft | B61: Included
A62: Fuel loading & reloading | B62: Not included
A63: Fuel selection recomm. | B63: Included
A64: Improper fuels warnings | B64: Included
A65: Fire starting procedures | B65: Included
A66: Proper use of air controls | B66: Included
A67: Proper operation low | B67: Included
A68: Ash removal procedures | B68: Included
A69: Replacement parts | B69: Included
A70: Federal warning (C or NC) | B70: Included
A71: Warranty rights | B71: Included
A72: Catalytst operation | B72: Included
A73: Cat maintenance procedures | B73: Included
A74: Determining catalyst det. or failure | B74: Included
A75: Reporting | B75: Determination | I75: Notes
A76: Summary tables complete | B76: All reported
A77: All run data submitted | B77: All reported
A78: Test report complete | B78: Partially reported major
A79: Owner manual complete | B79: Partially reported minor
A80: Test dates | B80: 5/23-25, 28-29/2018 | I80: received in April 2018
A81: 30 Day notice submitted to EPA | B81: Cannot be determined
A82: Tested on the proposed date | B82: Cannot be determined
A83: Tested in consecutive days | B83: Yes | I83: 5 days of testing, norm two days
A84: 60 Day report to EPA | B84: Cannot be determined | I84: June 20, 2018 report date
A85: EPA additional Review Elements | B85: Determination | I85: Notes
A86: Test location
A87: date lab received the unit
A88: date first day of conditioning
A89: date first day of testing
A90: first hour PM emissions reported for all runs
A91: first hour PM emissions reported in grams per hour
A92: first hour PM emissions zero or negative
A93: first hour PM emissions measured with front and back filter
A94: Zero CO emission reported
A95: Any incomplete runs
A96: Preburn data reported (SU/High-3053, preburn M28R)
A97: filter changes during test run
A98: filter plugged during test run
A99: What type of filter used
A100: Back and front filter weighed together (3053 only)
A101: Negative probe weight >5% of PM
A102: Negative probe value
A103: Negative room air values
A104: Ambient background filter data
A105: Proportional sampling
A106: Leak check - pre-test leak check reported
A107: Leak check - any filter change
A108: Leak check - post leak check reported
A109: Dilution tunnel schematic meets ASTM 2515 requirements
A110: Firebox measurements confirmed with schematic
A111: number of conditioning hours reported in summary
A112: number of conditioning hours with data
A113: number of hours at correct conditioning conditions
A114: used lowest air settings for low burn (ASTM 3053) or Cat 1(M28R)
A115: Air setting data | B115: Cat 1/Low | C115: Cat 2/Med | D115: Cat 3 | E115: Cat 4/High | F115: FC | G115: CV
A117: Total number of runs
A118: run averaging done correctly
A119: which SU/H run used for calculating emissions
A120: Fuel data for all SU/H runs (ASTM 3053)
A121: Multiple fuel lengths used
A122: Specific gravity of fuel used (ASTM 3053 only) | E122: Value
A123: M28 fuel loaded longest dimension
A124: Calibration data

Sheet Iron Strike-S210AGL
A1: Summary of Review
A2: Manufacturer | B2: Innovative Hearth products
A3: Model | B3: S210AGL, C210TGL, C210AGL, T2100GL, WSX2021WS-B | F3: Control approach | I3: Non-Catalytic
A4: Prelim review recomm. | B4: Disapproved
A5: Red flags | B5: 6 | C5: Orange flags | E5: 9 | F5: Yellow flags | H5: 6
A6: Final Determination | B6: Pending - Major | F6: Date: 9/1/2020 | I6: Basis: IR, NR
A7: AK List Status | B7: No Determination List
A8: Testing Information | B8: Determination | I8: Notes
A9: Test method | B9: ASTM E3053 | I9: ATM
A10: Test Lab | B10: PFS-TECO | I10: performed at manufacturer facility (Auburn)
A11: Third-party certifier | B11: PFS-TECO
A12: Report certified | B12: PFS-TECO
A13: Test Report Elements | B13: Determination | I13: Notes
A14: Wght Avg PM emissions (g/hr) | B14: 1.55 | D14: PM Highest 1-hr (g/hr) | G14: 5.21
A15: Wght Avg HHV Efficiency (%) | B15: 71 | I15: 76
A16: Wght Avg CO (g/hr) | B16: =IFERROR(G16*60,"Not reported") -> 89.4 | D16: Wght Avg CO (g/min) | G16: 1.49
A17: Max heat output (Btu/hr) | B17: 37857 | I17: 76000
A18: Manufacturers Instructions to lab | B18: Reported
A19: Firebox vol. test report | B19: 2.12 | I19: 2.1
A20: Firebox dimensions | B20: Not reported | D20: Longest dim. (in) | F20: 20 | G20: Max log length
A21: Firebox calculations | B21: Not reported
A22: Efficiency calculations | B22: Reported
A23: Burn rate calculations | B23: Reported
A24: Raw data sheets | B24: Partially reported | I24: missing data from run 1
A25: Conditioning completed by | B25: Lab | I25: States that PFS conducted conditioning but signoff date was same as a test day, no time or dates of testing provided.
A26: Conditioning data | B26: Partially reported | I26: 1) Data does not meet the reporting requirements of the test method. 2) Only 8 of the 50 horus reported were conducted at medium burn rate using 0.91 kg/hr (+/- 0.5 kg/hr).
A27: Lab technician notes | B27: Not reported
A28: Doc. of run appropriateness | B28: Reported
A29: Doc. of run validity | B29: Reported
A30: Doc. of run anomolies | B30: Reported
A31: Doc. of run burn rates | B31: Reported
A32: Photos of the fuel loaded | B32: Partially reported | I32: Missing photos from run #3
A33: Test Run Data | B33: Determination | I33: Notes
A34: Run # | C34: 3 | D34: 2 | E34: 4
A35: Run Category | C35: Startup & High | D35: Low | E35: Medium | I35: burn rate for low higher than medium
A36: Burn rate (kg/hr) | C36: 2.88 | D36: 0.91 | E36: 0.87 | I36: no measurement data on air settings
A37: PM emissions by run (g/hr) | C37: 3.27 | D37: 0.66 | E37: 1.59 | I37: multiple days of testing why not 2 day test?
A38: PM 1-hr filter pull (g/hr) | C38: 5.21 | D38: 3.76 | E38: 4.79
A39: Filter data | C39: yes | D39: yes | E39: yes
A40: Train precision (%) | C40: 3.8 | D40: 3.4 | E40: -5.1
A41: Negative weights | C41: no | D41: no | E41: no
A42: Negs handled appropriately | B42: Yes
A43: Heat output by run (Btu/hr) | C43: 37857 | D43: 12253 | E43: 11817
A44: CO by run (g/hr) | C44: 95 | D44: 84 | E44: 89
A45: HHV efficiency (%) | C45: 69.2 | D45: 71.7 | E45: 71.3
A46: Lowest burn rate tested | B46: Cannot be determined | I46: Did not fully report air settings
A47: All run data | B47: Reported
A48: Appliance Fueling | B48: Determination | I48: Notes
A49: Fuel species | B49: Douglas Fir for SU/H and Maple for Low and Medium | I49: Note two species used for testing
A50: Log length (in) | C50: 15 | D50: 15 | E50: 15 | I50: 20
A51: Direction of longest dimension | B51: East-West
A52: Log direction for testing | B52: North-South
A53: Squared (ASTM test only) | B53: More than 50%
A54: Debarked (ASTM test only) | B54: More than 50%
A55: Load density (lb/ft3) | C55: 10.28 | D55: 11.48 | E55: 11.5
A56: Fuel moisture content load (%wb) | C56: 19.1 | D56: 20.4 | E56: 19.9 | I56: A avg moisture content 19.8%
A57: Fuel piece configuration | B57: Within specified limit
A58: Owners Manual Req. | B58: Determination | I58: Notes
A59: Stack height | B59: Included
A60: Location recommendation | B60: Included
A61: Guidance on proper draft | B61: Included
A62: Fuel loading & reloading | B62: Not included
A63: Fuel selection recomm. | B63: Included
A64: Improper fuels warnings | B64: Included
A65: Fire starting procedures | B65: Included
A66: Proper use of air controls | B66: Included
A67: Proper operation low | B67: Included
A68: Ash removal procedures | B68: Included
A69: Replacement parts | B69: Included
A70: Federal warning (C or NC) | B70: Included
A71: Warranty rights | B71: Included
A72: Catalytst operation | B72: Included
A73: Cat maintenance procedures | B73: Included
A74: Determining catalyst det. or failure | B74: Included
A75: Reporting | B75: Determination | I75: Notes
A76: Summary tables complete | B76: All reported
A77: All run data submitted | B77: All reported
A78: Test report complete | B78: Partially reported major
A79: Owner manual complete | B79: Partially reported minor
A80: Test dates | B80: 4/10-11/2019 | I80: conditioning data signed off on first date of test.
A81: 30 Day notice submitted to EPA | B81: Cannot be determined
A82: Tested on the proposed date | B82: Cannot be determined
A83: Tested in consecutive days | B83: Yes
A84: 60 Day report to EPA | B84: Cannot be determined | I84: initial report date 5/2/2019
A85: EPA additional Review Elements | B85: Determination | I85: Notes
A86: Test location
A87: date lab received the unit
A88: date first day of conditioning
A89: date first day of testing
A90: first hour PM emissions reported for all runs
A91: first hour PM emissions reported in grams per hour
A92: first hour PM emissions zero or negative
A93: first hour PM emissions measured with front and back filter
A94: Zero CO emission reported
A95: Any incomplete runs
A96: Preburn data reported (SU/High-3053, preburn M28R)
A97: filter changes during test run
A98: filter plugged during test run
A99: What type of filter used
A100: Back and front filter weighed together (3053 only)
A101: Negative probe weight >5% of PM
A102: Negative probe value
A103: Negative room air values
A104: Ambient background filter data
A105: Proportional sampling
A106: Leak check - pre-test leak check reported
A107: Leak check - any filter change
A108: Leak check - post leak check reported
A109: Dilution tunnel schematic meets ASTM 2515 requirements
A110: Firebox measurements confirmed with schematic
A111: number of conditioning hours reported in summary
A112: number of conditioning hours with data
A113: number of hours at correct conditioning conditions
A114: used lowest air settings for low burn (ASTM 3053) or Cat 1(M28R)
A115: Air setting data | B115: Cat 1/Low | C115: Cat 2/Med | D115: Cat 3 | E115: Cat 4/High | F115: FC | G115: CV
A117: Total number of runs
A118: run averaging done correctly
A119: which SU/H run used for calculating emissions
A120: Fuel data for all SU/H runs (ASTM 3053)
A121: Multiple fuel lengths used
A122: Specific gravity of fuel used (ASTM 3053 only) | E122: Value
A123: M28 fuel loaded longest dimension
A124: Calibration data

Sheet Travis-Lopi Cape
A1: Summary of Review
A2: Manufacturer | B2: Travis Industries
A3: Model | B3: Lopi Cape Cod Hybrid-Fyre | F3: Control approach | I3: Hybrid
A4: Prelim review recomm. | B4: Disapproved
A5: Red flags | B5: 5 | C5: Orange flags | E5: 6 | F5: Yellow flags | H5: 5
A6: Final Determination | B6: Disapproved | F6: Date: 9/1/2020 | I6: Basis: M1, IDU, IR, NR
A7: AK List Status | B7: Disapproved List
A8: Testing Information | B8: Determination | I8: Notes
A9: Test method | B9: ASTM E3053 | I9: ATM
A10: Test Lab | B10: Polytests Inc. | I10: tested at Polytest facility
A11: Third-party certifier | B11: OMNI
A12: Report certified | B12: Omni
A13: Test Report Elements | B13: Determination | I13: Notes
A14: Wght Avg PM emissions (g/hr) | B14: 1.94 | D14: PM Highest 1-hr (g/hr) | G14: NR
A15: Wght Avg HHV Efficiency (%) | B15: 76.6 | I15: 77
A16: Wght Avg CO (g/hr) | B16: =IFERROR(G16*60,"Not reported") -> 19.8 | D16: Wght Avg CO (g/min) | G16: 0.33
A17: Max heat output (Btu/hr) | B17: 79926 | I17: 70843
A18: Manufacturers Instructions to lab | B18: Reported contradicts owners manual
A19: Firebox vol. test report | B19: 2.76 | I19: 3
A20: Firebox dimensions | B20: Reported | D20: Longest dim. (in) | F20: 26 | G20: Firebox dimension
A21: Firebox calculations | B21: Reported/matched
A22: Efficiency calculations | B22: Reported
A23: Burn rate calculations | B23: Reported
A24: Raw data sheets | B24: Reported
A25: Conditioning completed by | B25: Lab | I25: received March 2018. Report states preliminary testing was completed with cordwood but no data on those test included in the report.
A26: Conditioning data | B26: Partially reported | I26: 1) Data does not meet test method requiremetns. 2) Data insufficient to determine conformance with medium burn rate requiremetns.
A27: Lab technician notes | B27: Reported
A28: Doc. of run appropriateness | B28: Reported
A29: Doc. of run validity | B29: Reported
A30: Doc. of run anomolies | B30: Reported
A31: Doc. of run burn rates | B31: Reported
A32: Photos of the fuel loaded | B32: Partially reported | I32: Insufficient per test method
A33: Test Run Data | B33: Determination | I33: Notes
A34: Run # | C34: 1,1 | D34: 1,2 | E34: 2,1 | F34: 2,2
A35: Run Category | C35: Startup & High | D35: Low | E35: Startup & High | F35: Medium | I35: air settings
A36: Burn rate (kg/hr) | C36: 3.93 | D36: 0.72 | E36: 4.14 | F36: 1.44 | I36: Su/H full open
A37: PM emissions by run (g/hr) | C37: 5.44 | D37: 0.59 | E37: 3.27 | F37: 2.08 | I37: Low full closed
A38: PM 1-hr filter pull (g/hr) | C38: NR | D38: NR | E38: NR | F38: NR | I38: Med 1/8 from min
A39: Filter data | C39: yes | D39: yes | E39: yes | F39: yes
A40: Train precision (%) | C40: 4.3 | D40: 7.37 | E40: 2.82 | F40: 6.2
A41: Negative weights | C41: yes | D41: yes | E41: yes | F41: yes
A42: Negs handled appropriately | B42: No
A43: Heat output by run (Btu/hr) | C43: 54403 | D43: 11322 | E43: 70843 | F43: 20982
A44: CO by run (g/hr) | C44: 39.5 | D44: 10.1 | E44: 62.8 | F44: 14.3
A45: HHV efficiency (%) | C45: 68.07 | D45: 80.9 | E45: 69.61 | F45: 76.09
A46: Lowest burn rate tested | B46: Cannot be determined
A47: All run data | B47: Reported
A48: Appliance Fueling | B48: Determination | I48: Notes
A49: Fuel species | B49: Oak
A50: Log length (in) | C50: 21 | D50: 21 | E50: 21 | F50: 21 | I50: 24
A51: Direction of longest dimension | B51: East-West
A52: Log direction for testing | B52: Cannot be determined
A53: Squared (ASTM test only) | B53: More than 50%
A54: Debarked (ASTM test only) | B54: More than 50%
A55: Load density (lb/ft3) | C55: 9.96 | D55: 11.58 | E55: 9.92 | F55: 11.41 | G55: =SUM(E55:F55) -> 21.33
A56: Fuel moisture content load (%wb) | C56: 21.93 | D56: 22.03 | E56: 22.92 | F56: 20.18 | I56: B avg moisture is 21.8
A57: Fuel piece configuration | B57: Within specified limit
A58: Owners Manual Req. | B58: Determination | I58: Notes
A59: Stack height | B59: Included
A60: Location recommendation | B60: Included
A61: Guidance on proper draft | B61: Included
A62: Fuel loading & reloading | B62: Included
A63: Fuel selection recomm. | B63: Included
A64: Improper fuels warnings | B64: Included
A65: Fire starting procedures | B65: Included
A66: Proper use of air controls | B66: Included
A67: Proper operation low | B67: Included
A68: Ash removal procedures | B68: Included
A69: Replacement parts | B69: Included
A70: Federal warning (C or NC) | B70: Included
A71: Warranty rights | B71: Included
A72: Catalytst operation | B72: Included
A73: Cat maintenance procedures | B73: Included
A74: Determining catalyst det. or failure | B74: Included
A75: Reporting | B75: Determination | I75: Notes
A76: Summary tables complete | B76: Partially reported
A77: All run data submitted | B77: Partially reported
A78: Test report complete | B78: Partially reported major
A79: Owner manual complete | B79: All reported
A80: Test dates | B80: 5/7 & 5/9/2019
A81: 30 Day notice submitted to EPA | B81: Cannot be determined
A82: Tested on the proposed date | B82: Cannot be determined
A83: Tested in consecutive days | B83: No
A84: 60 Day report to EPA | B84: No | I84: Report date August 2018
A85: EPA additional Review Elements | B85: Determination | I85: Notes
A86: Test location
A87: date lab received the unit
A88: date first day of conditioning
A89: date first day of testing
A90: first hour PM emissions reported for all runs
A91: first hour PM emissions reported in grams per hour
A92: first hour PM emissions zero or negative
A93: first hour PM emissions measured with front and back filter
A94: Zero CO emission reported
A95: Any incomplete runs
A96: Preburn data reported (SU/High-3053, preburn M28R)
A97: filter changes during test run
A98: filter plugged during test run
A99: What type of filter used
A100: Back and front filter weighed together (3053 only)
A101: Negative probe weight >5% of PM
A102: Negative probe value
A103: Negative room air values
A104: Ambient background filter data
A105: Proportional sampling
A106: Leak check - pre-test leak check reported
A107: Leak check - any filter change
A108: Leak check - post leak check reported
A109: Dilution tunnel schematic meets ASTM 2515 requirements
A110: Firebox measurements confirmed with schematic
A111: number of conditioning hours reported in summary
A112: number of conditioning hours with data
A113: number of hours at correct conditioning conditions
A114: used lowest air settings for low burn (ASTM 3053) or Cat 1(M28R)
A115: Air setting data | B115: Cat 1/Low | C115: Cat 2/Med | D115: Cat 3 | E115: Cat 4/High | F115: FC | G115: CV
A117: Total number of runs
A118: run averaging done correctly
A119: which SU/H run used for calculating emissions
A120: Fuel data for all SU/H runs (ASTM 3053)
A121: Multiple fuel lengths used
A122: Specific gravity of fuel used (ASTM 3053 only) | E122: Value
A123: M28 fuel loaded longest dimension
A124: Calibration data

Sheet IHP-Montecito-B
A1: Summary of Review
A2: Manufacturer | B2: Innovative Hearth products
A3: Model | B3: Montecito-B, Bainbridge (LVCFAR), WCT6920, WCT4920, WRT4920 | F3: Control approach | I3: Non-Catalytic
A4: Prelim review recomm. | B4: Requires a more thorough review
A5: Red flags | B5: 8 | C5: Orange flags | E5: 7 | F5: Yellow flags | H5: 4
A6: Final Determination | B6: Pending - Major | F6: Date: 9/1/2020 | I6: Basis: IDU, IR, NR
A7: AK List Status | B7: No Determination List
A8: Testing Information | B8: Determination | I8: Notes
A9: Test method | B9: ASTM E3053 | I9: ATM
A10: Test Lab | B10: PFS-TECO | I10: conducted at manufacturer's facility
A11: Third-party certifier | B11: PFS-TECO
A12: Report certified | B12: PFS-TECO
A13: Test Report Elements | B13: Determination | I13: Notes
A14: Wght Avg PM emissions (g/hr) | B14: 1.9 | D14: PM Highest 1-hr (g/hr) | G14: 4.67
A15: Wght Avg HHV Efficiency (%) | B15: 72
A16: Wght Avg CO (g/hr) | B16: =IFERROR(G16*60,"Not reported") -> 54 | D16: Wght Avg CO (g/min) | G16: 0.9
A17: Max heat output (Btu/hr) | B17: 55597 | I17: 80000
A18: Manufacturers Instructions to lab | B18: Not reported
A19: Firebox vol. test report | B19: 1.45 | I19: 4
A20: Firebox dimensions | B20: Not reported | D20: Longest dim. (in) | F20: 30 | G20: Max log length
A21: Firebox calculations | B21: Not reported
A22: Efficiency calculations | B22: Reported
A23: Burn rate calculations | B23: Reported
A24: Raw data sheets | B24: Reported
A25: Conditioning completed by | B25: Not reported
A26: Conditioning data | B26: Not reported
A27: Lab technician notes | B27: Reported
A28: Doc. of run appropriateness | B28: Reported
A29: Doc. of run validity | B29: Reported
A30: Doc. of run anomolies | B30: Partially reported | I30: did not report train precision issues run 3
A31: Doc. of run burn rates | B31: Reported
A32: Photos of the fuel loaded | B32: Reported
A33: Test Run Data | B33: Determination | I33: Notes
A34: Run # | C34: 1 | D34: 2 | E34: 3 | I34: no data on SU/H completed prior to run 3
A35: Run Category | C35: Startup & High | D35: Low | E35: Medium | I35: no measurements for air setting in report
A36: Burn rate (kg/hr) | C36: 4.23 | D36: 1.11 | E36: 1.51
A37: PM emissions by run (g/hr) | C37: 4.56 | D37: 1.32 | E37: 1.17
A38: PM 1-hr filter pull (g/hr) | C38: 4.67 | D38: 1.01 | E38: 1.82
A39: Filter data | C39: yes | D39: yes | E39: yes
A40: Train precision (%) | C40: 5.3 | D40: 1.9 | E40: 22.4 | I40: did not report 22.4% train precision
A41: Negative weights | C41: no | D41: no | E41: yes
A42: Negs handled appropriately | B42: No
A43: Heat output by run (Btu/hr) | C43: 55597 | D43: 15277 | E43: 20653 | I43: reported based on LHV not HHV
A44: CO by run (g/hr) | C44: 28 | D44: 70 | E44: 59
A45: HHV efficiency (%) | C45: 67 | D45: 73 | E45: 72
A46: Lowest burn rate tested | B46: Cannot be determined
A47: All run data | B47: Not reported | I47: Missing data for SU/H run on second test day to determine conformance with method requirements.
A48: Appliance Fueling | B48: Determination | I48: Notes
A49: Fuel species | B49: Douglas Fir and Maple
A50: Log length (in) | C50: 16 | D50: 16 | E50: 16 | I50: 30
A51: Direction of longest dimension | B51: Cannot be determined
A52: Log direction for testing | B52: East-West
A53: Squared (ASTM test only) | B53: More than 50%
A54: Debarked (ASTM test only) | B54: More than 50%
A55: Load density (lb/ft3) | C55: 10.34 | D55: 12.01 | E55: 12.19
A56: Fuel moisture content load (%wb) | C56: 20.2 | D56: 21.6 | E56: 20.5 | I56: B avg moisture content 20.8%
A57: Fuel piece configuration | B57: Within specified limit
A58: Owners Manual Req. | B58: Determination | I58: Notes
A59: Stack height | B59: Included
A60: Location recommendation | B60: Included
A61: Guidance on proper draft | B61: Included
A62: Fuel loading & reloading | B62: Included
A63: Fuel selection recomm. | B63: Included
A64: Improper fuels warnings | B64: Included
A65: Fire starting procedures | B65: Included
A66: Proper use of air controls | B66: Included
A67: Proper operation low | B67: Included
A68: Ash removal procedures | B68: Included
A69: Replacement parts | B69: Included
A70: Federal warning (C or NC) | B70: Included
A71: Warranty rights | B71: Included
A72: Catalytst operation | I72: NA
A73: Cat maintenance procedures | I73: NA
A74: Determining catalyst det. or failure | I74: NA
A75: Reporting | B75: Determination | I75: Notes
A76: Summary tables complete | B76: Partially reported
A77: All run data submitted | B77: Partially reported
A78: Test report complete | B78: Not reported
A79: Owner manual complete | B79: All reported
A80: Test dates | B80: 6/18-19/2019 | I80: received 6/18/20 no aging dates
A81: 30 Day notice submitted to EPA | B81: No
A82: Tested on the proposed date | B82: Cannot be determined
A83: Tested in consecutive days | B83: Yes
A84: 60 Day report to EPA | B84: Cannot be determined
A85: EPA additional Review Elements | B85: Determination | I85: Notes
A86: Test location
A87: date lab received the unit
A88: date first day of conditioning
A89: date first day of testing
A90: first hour PM emissions reported for all runs
A91: first hour PM emissions reported in grams per hour
A92: first hour PM emissions zero or negative
A93: first hour PM emissions measured with front and back filter
A94: Zero CO emission reported
A95: Any incomplete runs
A96: Preburn data reported (SU/High-3053, preburn M28R)
A97: filter changes during test run
A98: filter plugged during test run
A99: What type of filter used
A100: Back and front filter weighed together (3053 only)
A101: Negative probe weight >5% of PM
A102: Negative probe value
A103: Negative room air values
A104: Ambient background filter data
A105: Proportional sampling
A106: Leak check - pre-test leak check reported
A107: Leak check - any filter change
A108: Leak check - post leak check reported
A109: Dilution tunnel schematic meets ASTM 2515 requirements
A110: Firebox measurements confirmed with schematic
A111: number of conditioning hours reported in summary
A112: number of conditioning hours with data
A113: number of hours at correct conditioning conditions
A114: used lowest air settings for low burn (ASTM 3053) or Cat 1(M28R)
A115: Air setting data | B115: Cat 1/Low | C115: Cat 2/Med | D115: Cat 3 | E115: Cat 4/High | F115: FC | G115: CV
A117: Total number of runs
A118: run averaging done correctly
A119: which SU/H run used for calculating emissions
A120: Fuel data for all SU/H runs (ASTM 3053)
A121: Multiple fuel lengths used
A122: Specific gravity of fuel used (ASTM 3053 only) | E122: Value
A123: M28 fuel loaded longest dimension
A124: Calibration data

Sheet Travis-Evergreen
A1: Summary of Review | L1: Summary of Review
A2: Manufacturer | B2: Travis Industries | L2: Manufacturer | M2: Travis Industries
A3: Model | B3: Evergreen | F3: Control approach | I3: Non-Catalytic | L3: Model | M3: Evergreen | Q3: Control approach | T3: Non-Catalytic
A4: Prelim review recomm. | B4: Disapproved | L4: Prelim review recomm. | M4: Disapproved
A5: Red flags | B5: 6 | C5: Orange flags | E5: 5 | F5: Yellow flags | H5: 7 | L5: Red flags | M5: 6 | N5: Orange flags | P5: 5 | Q5: Yellow flags | S5: 7
A6: Final Determination | B6: Disapproved | F6: Date: 9/1/2020 | I6: Basis: ES1, IDU, IR, NR | L6: Final Determination | M6: Disapproved | Q6: Date: 9/1/2020 | T6: Basis: ES1, IDU, IR, NR
A7: AK List Status | B7: Disapproved List | L7: AK List Status
A8: Testing Information | B8: Determination | I8: Notes | L8: Testing Information | M8: Determination | T8: Notes
A9: Test method | B9: ASTM E3053 | I9: ATM | L9: Test method | M9: ASTM E3053 | T9: ATM
A10: Test Lab | B10: OMNI | I10: performed at Travis facility | L10: Test Lab | M10: OMNI | T10: performed at Travis facility
A11: Third-party certifier | B11: OMNI | L11: Third-party certifier | M11: OMNI
A12: Report certified | B12: Omni | L12: Report certified | M12: Omni
A13: Test Report Elements | B13: Determination | I13: Notes | L13: Test Report Elements | M13: Determination | T13: Notes
A14: Wght Avg PM emissions (g/hr) | B14: 1.52 | D14: PM Highest 1-hr (g/hr) | G14: 6.25 | L14: Wght Avg PM emissions (g/hr) | M14: 1.52 | O14: PM Highest 1-hr (g/hr) | R14: 6.25
A15: Wght Avg HHV Efficiency (%) | B15: 77.1 | I15: 77 | L15: Wght Avg HHV Efficiency (%) | M15: 77.1 | T15: 77
A16: Wght Avg CO (g/hr) | B16: =IFERROR(G16*60,"Not reported") -> 110.4 | D16: Wght Avg CO (g/min) | G16: 1.84 | L16: Wght Avg CO (g/hr) | M16: =IFERROR(R16*60,"Not reported") -> 110.4 | O16: Wght Avg CO (g/min) | R16: 1.84
A17: Max heat output (Btu/hr) | B17: 70720 | I17: 70720 | L17: Max heat output (Btu/hr) | M17: 70720 | T17: 70720
A18: Manufacturers Instructions to lab | B18: Reported contradicts owners manual | L18: Manufacturers Instructions to lab | M18: Reported contradicts owners manual
A19: Firebox vol. test report | B19: 2.2 | I19: 2.2 | L19: Firebox vol. test report | M19: 2.2 | T19: 2.2
A20: Firebox dimensions | B20: Not reported | D20: Longest dim. (in) | F20: 20.5 | G20: Max log length | L20: Firebox dimensions | M20: Reported | O20: Longest dim. (in) | Q20: 20.5 | R20: Max log length
A21: Firebox calculations | B21: Not reported | L21: Firebox calculations | M21: Reported/matched | T21: p. 249
A22: Efficiency calculations | B22: Reported | L22: Efficiency calculations | M22: Reported
A23: Burn rate calculations | B23: Reported | L23: Burn rate calculations | M23: Reported
A24: Raw data sheets | B24: Reported | L24: Raw data sheets | M24: Reported
A25: Conditioning completed by | B25: Not reported | L25: Conditioning completed by | M25: Not reported
A26: Conditioning data | B26: Partially reported | I26: aging on 6/28-29/2017,10/11-12/2017, 6/22/18, 4/16/18, 7/3/2018, 7/20/2018. | L26: Conditioning data | M26: Partially reported | T26: aging on 6/28-29/2017,10/11-12/2017, 6/22/18, 4/16/18, 7/3/2018, 7/20/2018.
A27: Lab technician notes | B27: Reported | I27: 1) Data insufficient to determine conformance with medium burn rate requiremetns. | L27: Lab technician notes | M27: Reported | T27: 1) Data insufficient to determine conformance with medium burn rate requiremetns.
A28: Doc. of run appropriateness | B28: Reported | L28: Doc. of run appropriateness | M28: Reported
A29: Doc. of run validity | B29: Reported | L29: Doc. of run validity | M29: Reported
A30: Doc. of run anomolies | B30: Reported | L30: Doc. of run anomolies | M30: Reported
A31: Doc. of run burn rates | B31: Reported | L31: Doc. of run burn rates | M31: Reported
A32: Photos of the fuel loaded | B32: Reported | L32: Photos of the fuel loaded | M32: Reported
A33: Test Run Data | B33: Determination | I33: Notes | L33: Test Run Data | M33: Determination | T33: Notes
A34: Run # | C34: 1 | D34: 2 | E34: 4 | I34: air Settings | L34: Run # | N34: 1 | O34: 2 | P34: 4 | T34: air Settings
A35: Run Category | C35: Startup & High | D35: Low | E35: Medium | I35: 1 full open | L35: Run Category | N35: Startup & High | O35: Low | P35: Medium | T35: 1 full open
A36: Burn rate (kg/hr) | C36: 4.88 | D36: 0.87 | E36: 1.12 | I36: 2full open 5 min, then fully closed | L36: Burn rate (kg/hr) | N36: 4.88 | O36: 0.87 | P36: 1.12 | T36: 2full open 5 min, then fully closed
A37: PM emissions by run (g/hr) | C37: 3.13 | D37: 1.15 | E37: 1.08 | I37: 4 5/16 open | L37: PM emissions by run (g/hr) | N37: 3.13 | O37: 1.15 | P37: 1.08 | T37: 4 5/16 open
A38: PM 1-hr filter pull (g/hr) | C38: 3.81 | D38: 0.29 | E38: 1.08 | L38: PM 1-hr filter pull (g/hr) | N38: 3.81 | O38: 0.29 | P38: 1.08
A39: Filter data | C39: yes | D39: yes | E39: yes | L39: Filter data | N39: yes | O39: yes | P39: yes
A40: Train precision (%) | C40: NR | D40: NR | E40: NR | L40: Train precision (%) | N40: NR | O40: NR | P40: NR
A41: Negative weights | C41: no | D41: no | E41: no | L41: Negative weights | N41: no | O41: no | P41: no
A42: Negs handled appropriately | B42: Yes | L42: Negs handled appropriately | M42: Yes
A43: Heat output by run (Btu/hr) | C43: 70720 | D43: 12772 | E43: 16378 | L43: Heat output by run (Btu/hr) | N43: 70720 | O43: 12772 | P43: 16378
A44: CO by run (g/hr) | C44: 150 | D44: 85.2 | E44: 95.4 | L44: CO by run (g/hr) | N44: 150 | O44: 85.2 | P44: 95.4
A45: HHV efficiency (%) | C45: 74.9 | D45: 77.9 | E45: 77.4 | L45: HHV efficiency (%) | N45: 74.9 | O45: 77.9 | P45: 77.4
A46: Lowest burn rate tested | B46: Cannot be determined | I46: report but contradicting information | L46: Lowest burn rate tested | M46: Cannot be determined | T46: report but contradicting information
A47: All run data | B47: Not reported | I47: Missing SU/H data for second day of testing required to determine compliance with test method. | L47: All run data | M47: Not reported | T47: summary of test data for run 3 is reported, but the full test data is not reported
A48: Appliance Fueling | B48: Determination | I48: Notes | L48: Appliance Fueling | M48: Determination | T48: Notes
A49: Fuel species | B49: Maple | L49: Fuel species | M49: Maple
A50: Log length (in) | C50: 15 | D50: 15 | E50: 15 | I50: 20.5 | L50: Log length (in) | N50: 15 | O50: 15 | P50: 15 | T50: 20.5
A51: Direction of longest dimension | B51: East-West | L51: Direction of longest dimension | M51: East-West
A52: Log direction for testing | B52: North-South | L52: Log direction for testing | M52: Mixed
A53: Squared (ASTM test only) | B53: More than 50% | L53: Squared (ASTM test only) | M53: More than 50% | T53: runs 2, 3, and 4.
A54: Debarked (ASTM test only) | B54: More than 50% | L54: Debarked (ASTM test only) | M54: More than 50%
A55: Load density (lb/ft3) | C55: 10.1 | D55: 12.1 | E55: 12.5 | L55: Load density (lb/ft3) | N55: 10.1 | O55: 12.1 | P55: 12.5
A56: Fuel moisture content load (%wb) | C56: 19.9 | D56: 21.1 | E56: 19.8 | I56: A avg moisture 20.3% | L56: Fuel moisture content load (%wb) | N56: 19.9 | O56: 21.1 | P56: 19.8 | T56: A avg moisture 20.3%
A57: Fuel piece configuration | B57: Within specified limit | L57: Fuel piece configuration | M57: Within specified limit
A58: Owners Manual Req. | B58: Determination | I58: Notes | L58: Owners Manual Req. | M58: Determination | T58: Notes
A59: Stack height | B59: Included | L59: Stack height | M59: Included
A60: Location recommendation | B60: Included | L60: Location recommendation | M60: Included
A61: Guidance on proper draft | B61: Included | L61: Guidance on proper draft | M61: Included
A62: Fuel loading & reloading | B62: Included | L62: Fuel loading & reloading | M62: Included
A63: Fuel selection recomm. | B63: Included | L63: Fuel selection recomm. | M63: Included
A64: Improper fuels warnings | B64: Included | L64: Improper fuels warnings | M64: Included
A65: Fire starting procedures | B65: Included | L65: Fire starting procedures | M65: Included
A66: Proper use of air controls | B66: Included | L66: Proper use of air controls | M66: Included
A67: Proper operation low | B67: Included | L67: Proper operation low | M67: Included
A68: Ash removal procedures | B68: Included | L68: Ash removal procedures | M68: Included
A69: Replacement parts | B69: Included | L69: Replacement parts | M69: Included
A70: Federal warning (C or NC) | B70: Included | L70: Federal warning (C or NC) | M70: Included
A71: Warranty rights | I71: NA | L71: Warranty rights | T71: NA
A72: Catalytst operation | I72: NA | L72: Catalytst operation | T72: NA
A73: Cat maintenance procedures | I73: NA | L73: Cat maintenance procedures | T73: NA
A74: Determining catalyst det. or failure | I74: NA | L74: Determining catalyst det. or failure | T74: NA
A75: Reporting | B75: Determination | I75: Notes | L75: Reporting | M75: Determination | T75: Notes
A76: Summary tables complete | B76: All reported | L76: Summary tables complete | M76: All reported
A77: All run data submitted | B77: All reported | L77: All run data submitted | M77: All reported
A78: Test report complete | B78: Partially reported major | L78: Test report complete | M78: Partially reported major
A79: Owner manual complete | B79: All reported | L79: Owner manual complete | M79: All reported
A80: Test dates | B80: 8/13-15/2018 | I80: No explaination why run 1 is on 8/14 when report states testing began on 8/13. | L80: Test dates | M80: 8/13-15/2018 | T80: No explaination why run 1 is on 8/14 when report states testing began on 8/13.
A81: 30 Day notice submitted to EPA | B81: Cannot be determined | L81: 30 Day notice submitted to EPA | M81: Cannot be determined
A82: Tested on the proposed date | B82: Cannot be determined | L82: Tested on the proposed date | M82: Cannot be determined
A83: Tested in consecutive days | B83: Yes | I83: 3 days testing, 2 day norm | L83: Tested in consecutive days | M83: Yes | T83: 3 days testing, 2 day norm
A84: 60 Day report to EPA | B84: Cannot be determined | I84: Omni report date 10/13/2018 | L84: 60 Day report to EPA | M84: Cannot be determined | T84: Omni report date 10/13/2018
A85: EPA additional Review Elements | B85: Determination | I85: Notes | L85: EPA additional Review Elements | M85: Determination | T85: Notes
A86: Test location | L86: Test location | M86: Lab | T86: OMNI
A87: date lab received the unit | L87: date lab received the unit | M87: 2018-08-13
A88: date first day of conditioning | L88: date first day of conditioning | M88: 2017-06-28
A89: date first day of testing | L89: date first day of testing | M89: 2018-08-14
A90: first hour PM emissions reported for all runs | L90: first hour PM emissions reported for all runs | M90: yes
A91: first hour PM emissions reported in grams per hour | L91: first hour PM emissions reported in grams per hour | M91: yes
A92: first hour PM emissions zero or negative | L92: first hour PM emissions zero or negative | M92: no
A93: first hour PM emissions measured with front and back filter | L93: first hour PM emissions measured with front and back filter | M93: no | T93: Front
A94: Zero CO emission reported | L94: Zero CO emission reported | M94: no
A95: Any incomplete runs | L95: Any incomplete runs | M95: no
A96: Preburn data reported (SU/High-3053, preburn M28R) | L96: Preburn data reported (SU/High-3053, preburn M28R) | M96: no
A97: filter changes during test run | L97: filter changes during test run | M97: no
A98: filter plugged during test run | L98: filter plugged during test run | M98: no
A99: What type of filter used | L99: What type of filter used | M99: glass fiber | T99: Teflon coated 47mm filters
A100: Back and front filter weighed together (3053 only) | L100: Back and front filter weighed together (3053 only) | M100: yes
A101: Negative probe weight >5% of PM | L101: Negative probe weight >5% of PM | M101: reported/handled correctly
A102: Negative probe value | L102: Negative probe value | M102: no negatives
A103: Negative room air values | L103: Negative room air values | M103: no negatives
A104: Ambient background filter data | L104: Ambient background filter data | M104: no negatives
A105: Proportional sampling | L105: Proportional sampling | M105: yes with allowable deviations
A106: Leak check - pre-test leak check reported | L106: Leak check - pre-test leak check reported | M106: yes with allowable deviations
A107: Leak check - any filter change | L107: Leak check - any filter change | M107: yes with allowable deviations
A108: Leak check - post leak check reported | L108: Leak check - post leak check reported | M108: yes with allowable deviations
A109: Dilution tunnel schematic meets ASTM 2515 requirements | L109: Dilution tunnel schematic meets ASTM 2515 requirements | M109: not reported
A110: Firebox measurements confirmed with schematic | L110: Firebox measurements confirmed with schematic | M110: yes
A111: number of conditioning hours reported in summary | L111: number of conditioning hours reported in summary | M111: 65.3
A112: number of conditioning hours with data | L112: number of conditioning hours with data | M112: 0
A113: number of hours at correct conditioning conditions | L113: number of hours at correct conditioning conditions | M113: unknown | T113: air setting data not reported
A114: used lowest air settings for low burn (ASTM 3053) or Cat 1(M28R) | L114: used lowest air settings for low burn (ASTM 3053) or Cat 1(M28R) | M114: yes
A115: Air setting data | B115: Cat 1/Low | C115: Cat 2/Med | D115: Cat 3 | E115: Cat 4/High | F115: FC | G115: CV | L115: Air setting data | M115: Cat 1/Low | N115: Cat 2/Med | O115: Cat 3 | P115: Cat 4/High | Q115: FC | R115: CV
M116: yes | N116: yes | P116: yes
A117: Total number of runs | L117: Total number of runs | M117: 4
A118: run averaging done correctly | L118: run averaging done correctly | M118: yes
A119: which SU/H run used for calculating emissions | L119: which SU/H run used for calculating emissions | M119: first run
A120: Fuel data for all SU/H runs (ASTM 3053) | L120: Fuel data for all SU/H runs (ASTM 3053) | M120: not reported
A121: Multiple fuel lengths used | L121: Multiple fuel lengths used | M121: yes | T121: 1
A122: Specific gravity of fuel used (ASTM 3053 only) | E122: Value | L122: Specific gravity of fuel used (ASTM 3053 only) | M122: not reported | P122: Value
A123: M28 fuel loaded longest dimension | L123: M28 fuel loaded longest dimension
A124: Calibration data | L124: Calibration data | M124: partially reported | T124: data reported but some calibrations longer than 6 months from testing.

Sheet Travis-Answer
A1: Summary of Review
A2: Manufacturer | B2: Travis Industries | I2: 2021-05-31
A3: Model | B3: Answer | F3: Control approach | I3: Non-Catalytic
A4: Prelim review recomm. | B4: Disapproved
A5: Red flags | B5: 7 | C5: Orange flags | E5: 4 | F5: Yellow flags | H5: 8
A6: Final Determination | B6: Pending - Major | F6: Date: 9/1/2020 | I6: Basis: IDU, IR, NR
A7: AK List Status | B7: No Determination List
A8: Testing Information | B8: Determination | I8: Notes
A9: Test method | B9: ASTM E3053 | I9: ATM
A10: Test Lab | B10: OMNI | I10: performed at Travis facility
A11: Third-party certifier | B11: OMNI
A12: Report certified | B12: Omni
A13: Test Report Elements | B13: Determination | I13: Notes
A14: Wght Avg PM emissions (g/hr) | B14: 2 | D14: PM Highest 1-hr (g/hr) | G14: 5.22
A15: Wght Avg HHV Efficiency (%) | B15: 72.4 | I15: 78
A16: Wght Avg CO (g/hr) | B16: =IFERROR(G16*60,"Not reported") -> 104.52 | D16: Wght Avg CO (g/min) | G16: 1.742
A17: Max heat output (Btu/hr) | B17: 59527 | I17: 59527
A18: Manufacturers Instructions to lab | B18: Reported contradicts owners manual
A19: Firebox vol. test report | B19: 1.41 | I19: 2.2
A20: Firebox dimensions | B20: Not reported | D20: Longest dim. (in) | F20: 24 | G20: Max log length
A21: Firebox calculations | B21: Not reported
A22: Efficiency calculations | B22: Reported
A23: Burn rate calculations | B23: Reported
A24: Raw data sheets | B24: Reported
A25: Conditioning completed by | B25: Not reported
A26: Conditioning data | B26: Not reported
A27: Lab technician notes | B27: Reported
A28: Doc. of run appropriateness | B28: Reported
A29: Doc. of run validity | B29: Reported | I29: did not report train precision
A30: Doc. of run anomolies | B30: Reported | I30: did not report negative values for run #1
A31: Doc. of run burn rates | B31: Reported
A32: Photos of the fuel loaded | B32: Reported
A33: Test Run Data | B33: Determination | I33: Notes
A34: Run # | C34: 1 | D34: 2 | E34: 4
A35: Run Category | C35: Startup & High | D35: Low | E35: Medium
A36: Burn rate (kg/hr) | C36: 4.39 | D36: 0.89 | E36: 1.48
A37: PM emissions by run (g/hr) | C37: 2.72 | D37: 1.64 | E37: 2
A38: PM 1-hr filter pull (g/hr) | C38: 3.82 | D38: 2.22 | E38: 5.22
A39: Filter data | C39: yes | D39: yes | E39: yes
A40: Train precision (%) | C40: NR | D40: NR | E40: NR
A41: Negative weights | C41: yes | D41: no | E41: no | I41: run 1 neg front filter
A42: Negs handled appropriately | B42: No
A43: Heat output by run (Btu/hr) | C43: 59527 | D43: 12129 | E43: 20178
A44: CO by run (g/hr) | C44: 113.71 | D44: 90.46 | E44: 111.5
A45: HHV efficiency (%) | C45: 72.2 | D45: 72.4 | E45: 72.6
A46: Lowest burn rate tested | B46: Cannot be determined | I46: Lab notes contradict manufacturers instructions
A47: All run data | B47: Reported
A48: Appliance Fueling | B48: Determination | I48: Notes
A49: Fuel species | B49: Douglas Fir
A50: Log length (in) | C50: 11.5 | D50: 11.5 | E50: 11.5 | I50: 24
A51: Direction of longest dimension | B51: East-West
A52: Log direction for testing | B52: Mixed
A53: Squared (ASTM test only) | B53: More than 50%
A54: Debarked (ASTM test only) | B54: No
A55: Load density (lb/ft3) | C55: 9.6 | D55: 12.4 | E55: 12.4
A56: Fuel moisture content load (%wb) | C56: 22 | D56: 20.8 | E56: 21.3 | I56: B avg moisture 21.4
A57: Fuel piece configuration | B57: Within specified limit
A58: Owners Manual Req. | B58: Determination | I58: Notes
A59: Stack height | B59: Included
A60: Location recommendation | B60: Included
A61: Guidance on proper draft | B61: Included
A62: Fuel loading & reloading | B62: Included
A63: Fuel selection recomm. | B63: Included
A64: Improper fuels warnings | B64: Included
A65: Fire starting procedures | B65: Included
A66: Proper use of air controls | B66: Included
A67: Proper operation low | B67: Included
A68: Ash removal procedures | B68: Included
A69: Replacement parts | B69: Included
A70: Federal warning (C or NC) | B70: Included
A71: Warranty rights | I71: NA
A72: Catalytst operation | I72: NA
A73: Cat maintenance procedures | I73: NA
A74: Determining catalyst det. or failure | I74: NA
A75: Reporting | B75: Determination | I75: Notes
A76: Summary tables complete | B76: All reported
A77: All run data submitted | B77: All reported
A78: Test report complete | B78: Partially reported major | I78: did not report date received or aging information
A79: Owner manual complete | B79: All reported
A80: Test dates | B80: 2/6-7/2019 | I80: received 2/1/2019
A81: 30 Day notice submitted to EPA | B81: Cannot be determined
A82: Tested on the proposed date | B82: Cannot be determined
A83: Tested in consecutive days | B83: Yes
A84: 60 Day report to EPA | B84: Cannot be determined | I84: report date 3/26/2019
A85: EPA additional Review Elements | B85: Determination | I85: Notes
A86: Test location
A87: date lab received the unit
A88: date first day of conditioning
A89: date first day of testing
A90: first hour PM emissions reported for all runs
A91: first hour PM emissions reported in grams per hour
A92: first hour PM emissions zero or negative
A93: first hour PM emissions measured with front and back filter
A94: Zero CO emission reported
A95: Any incomplete runs
A96: Preburn data reported (SU/High-3053, preburn M28R)
A97: filter changes during test run
A98: filter plugged during test run
A99: What type of filter used
A100: Back and front filter weighed together (3053 only)
A101: Negative probe weight >5% of PM
A102: Negative probe value
A103: Negative room air values
A104: Ambient background filter data
A105: Proportional sampling
A106: Leak check - pre-test leak check reported
A107: Leak check - any filter change
A108: Leak check - post leak check reported
A109: Dilution tunnel schematic meets ASTM 2515 requirements
A110: Firebox measurements confirmed with schematic
A111: number of conditioning hours reported in summary
A112: number of conditioning hours with data
A113: number of hours at correct conditioning conditions
A114: used lowest air settings for low burn (ASTM 3053) or Cat 1(M28R)
A115: Air setting data | B115: Cat 1/Low | C115: Cat 2/Med | D115: Cat 3 | E115: Cat 4/High | F115: FC | G115: CV
A117: Total number of runs
A118: run averaging done correctly
A119: which SU/H run used for calculating emissions
A120: Fuel data for all SU/H runs (ASTM 3053)
A121: Multiple fuel lengths used
A122: Specific gravity of fuel used (ASTM 3053 only) | E122: Value
A123: M28 fuel loaded longest dimension
A124: Calibration data

Sheet Travis-Endeavor
A1: Summary of Review | L1: Summary of Review
A2: Manufacturer | B2: Travis Industries | L2: Manufacturer | M2: Travis Industries
A3: Model | B3: Endeavor | F3: Control approach | I3: Non-Catalytic | L3: Model | M3: Endeavor | Q3: Control approach | T3: Non-Catalytic
A4: Prelim review recomm. | B4: Disapproved | L4: Prelim review recomm. | M4: Disapproved
A5: Red flags | B5: 9 | C5: Orange flags | E5: 5 | F5: Yellow flags | H5: 5 | L5: Red flags | M5: 5 | N5: Orange flags | P5: 5 | Q5: Yellow flags | S5: 5
A6: Final Determination | B6: Disapproved | F6: Date: 9/1/2020 | I6: Basis: ES1, IDU, IR, NR | L6: Final Determination | M6: Disapproved | Q6: Date: 9/1/2020 | T6: Basis: ES1, IDU, IR, NR
A7: AK List Status | B7: Disapproved List | L7: AK List Status
A8: Testing Information | B8: Determination | I8: Notes | L8: Testing Information | M8: Determination | T8: Notes
A9: Test method | B9: ASTM E3053 | I9: ATM | L9: Test method | M9: ASTM E3053 | T9: ATM
A10: Test Lab | B10: OMNI | I10: performed at Travis facility | L10: Test Lab | M10: OMNI | T10: performed at Travis facility
A11: Third-party certifier | B11: OMNI | L11: Third-party certifier | M11: OMNI
A12: Report certified | B12: Omni | L12: Report certified | M12: Omni
A13: Test Report Elements | B13: Determination | I13: Notes | L13: Test Report Elements | M13: Determination | T13: Notes
A14: Wght Avg PM emissions (g/hr) | B14: 1.4 | D14: PM Highest 1-hr (g/hr) | G14: 6.19 | I14: The manufacturer reports that except for runs 1 and 2, which were invalid, all other valid runs met the 6g/hr Ist hr requirment | L14: Wght Avg PM emissions (g/hr) | M14: 1.4 | O14: PM Highest 1-hr (g/hr) | R14: 6.19 | T14: The manufacturer reports that except for runs 1 and 2 which were invalid, all other valid runs met the 6g/hr Ist hr requirment. Report review did not concur with manufacturer statements, sending to EPA for determination.
A15: Wght Avg HHV Efficiency (%) | B15: 74.16 | L15: Wght Avg HHV Efficiency (%) | M15: 74.16 | T15: 74.2
A16: Wght Avg CO (g/hr) | B16: =IFERROR(G16*60,"Not reported") -> 90.36 | D16: Wght Avg CO (g/min) | G16: 1.506 | L16: Wght Avg CO (g/hr) | M16: =IFERROR(R16*60,"Not reported") -> 90.36 | O16: Wght Avg CO (g/min) | R16: 1.506
A17: Max heat output (Btu/hr) | B17: 67090 | L17: Max heat output (Btu/hr) | M17: 67090 | T17: 67090
A18: Manufacturers Instructions to lab | B18: Not reported | I18: Manufacturer reports that are titled "fuel instructions," reported on pages 22-24 | L18: Manufacturers Instructions to lab | M18: Reported contradicts owners manual
A19: Firebox vol. test report | B19: 2.43 | L19: Firebox vol. test report | M19: 2.43 | T19: 2.5
A20: Firebox dimensions | B20: Not reported | D20: Longest dim. (in) | F20: 20 | G20: Max log length | I20: Manufacturer reports that firebox voulme are made by third party and provided drawings for confirmation | L20: Firebox dimensions | M20: Reported | O20: Longest dim. (in) | Q20: 20 | R20: Firebox dimension | T20: Manufacturer provided schematic.
A21: Firebox calculations | B21: Not reported | I21: The drawings provided by the manufacturer only shows dimensions | L21: Firebox calculations | M21: Not reported | T21: Calculations are a required reporting element and must be reported to ensure accuracy.
A22: Efficiency calculations | B22: Reported | L22: Efficiency calculations | M22: Reported
A23: Burn rate calculations | B23: Reported | L23: Burn rate calculations | M23: Reported
A24: Raw data sheets | B24: Reported | L24: Raw data sheets | M24: Reported
A25: Conditioning completed by | B25: Not reported | I25: Manufacturer claims that there is no pre-burn in ASTM E3053 test series | L25: Conditioning completed by | M25: Not reported | T25: Manufacturer states "there is no preburn in a ASTM E3053 test series" -Can be referred to as aging and conditioning
A26: Conditioning data | B26: Partially reported | L26: Conditioning data | M26: Partially reported | T26: 1) Data does not meet test method requiremetns. 2) Data insufficient to determine conformance with medium burn rate requiremetns.
A27: Lab technician notes | B27: Reported | L27: Lab technician notes | M27: Reported
A28: Doc. of run appropriateness | B28: Reported | L28: Doc. of run appropriateness | M28: Reported
A29: Doc. of run validity | B29: Reported | L29: Doc. of run validity | M29: Reported
A30: Doc. of run anomolies | B30: Reported | L30: Doc. of run anomolies | M30: Reported
A31: Doc. of run burn rates | B31: Reported | L31: Doc. of run burn rates | M31: Reported
A32: Photos of the fuel loaded | B32: Reported | I32: Review found photos to be complete. | L32: Photos of the fuel loaded | M32: Reported
A33: Test Run Data | B33: Determination | I33: Notes | L33: Test Run Data | M33: Determination | T33: Notes
A34: Run # | C34: 3 | D34: 4 | E34: 6 | L34: Run # | N34: 3 | O34: 4 | P34: 6
A35: Run Category | C35: Startup & High | D35: Low | E35: Medium | L35: Run Category | N35: Startup & High | O35: Low | P35: Medium
A36: Burn rate (kg/hr) | C36: 4.86 | D36: 1.11 | E36: 1.83 | I36: burn rates on p 6&7 don't match data on p 33. | L36: Burn rate (kg/hr) | N36: 4.86 | O36: 1.11 | P36: 1.83 | T36: burn rates on p 6&7 don't match data on p 33.
A37: PM emissions by run (g/hr) | C37: 3.08 | D37: 1.11 | E37: 0.85 | L37: PM emissions by run (g/hr) | N37: 3.08 | O37: 1.11 | P37: 0.85
A38: PM 1-hr filter pull (g/hr) | C38: 4.9 | D38: 5.85 | E38: 0.47 | L38: PM 1-hr filter pull (g/hr) | N38: 4.9 | O38: 5.85 | P38: 0.47
A39: Filter data | C39: yes | D39: yes | E39: yes | L39: Filter data | N39: yes | O39: yes | P39: yes
A40: Train precision (%) | C40: NR | D40: NR | E40: NR | L40: Train precision (%) | N40: NR | O40: NR | P40: NR
A41: Negative weights | C41: no | D41: yes | E41: yes | I41: The manufacturer claims that ASTM 2515 specifically requires that a negative probe weight be recorded as zero | L41: Negative weights | N41: no | O41: yes | P41: yes | T41: The manufacturer claims that ASTM 2515 specifically requires that a negative probe weight be recorded as zero - Front and rear filter weights were recorded as negatives and subtracted from total particulate catch.
A42: Negs handled appropriately | B42: No | L42: Negs handled appropriately | M42: No
A43: Heat output by run (Btu/hr) | C43: 67090 | D43: 15435 | E43: 25712 | L43: Heat output by run (Btu/hr) | N43: 67090 | O43: 15435 | P43: 25712
A44: CO by run (g/hr) | C44: 56.76 | D44: 111.06 | E44: 103.26 | L44: CO by run (g/hr) | N44: 56.76 | O44: 111.06 | P44: 103.26
A45: HHV efficiency (%) | C45: 73.4 | D45: 74 | E45: 74.7 | L45: HHV efficiency (%) | N45: 73.4 | O45: 74 | P45: 74.7
A46: Lowest burn rate tested | B46: Reported | I46: lab says fully closed, man. Instructions 13/64" op | L46: Lowest burn rate tested | M46: Cannot be determined | T46: lab says fully closed, manufacturers. Instructions 13/64" open - Not enough information to make a final determination, will be sent to EPA for final decision.
A47: All run data | B47: Reported | L47: All run data | M47: Reported
A48: Appliance Fueling | B48: Determination | I48: Notes | L48: Appliance Fueling | M48: Determination | T48: Notes
A49: Fuel species | B49: Douglas Fir | L49: Fuel species | M49: Douglas Fir
A50: Log length (in) | C50: 15 | D50: 15 | E50: 15 | L50: Log length (in) | N50: 15 | O50: 15 | P50: 15 | T50: 18
A51: Direction of longest dimension | B51: East-West | L51: Direction of longest dimension | M51: East-West
A52: Log direction for testing | B52: Mixed | L52: Log direction for testing | M52: Mixed
A53: Squared (ASTM test only) | B53: More than 50% | I53: Manufacturer claims that since they use Douglas Fir it is very difficult to meet the fuel requirements because of the higher volume to weight ratio when compared to hardwoods. | L53: Squared (ASTM test only) | M53: More than 50% | T53: Manufacturer claims that since they use Douglas Fir it is very difficult to meet the fuel requirements because of the higher volume to weight ratio when compared to hardwoods. Please refer to EPA MEMO XXXX.
A54: Debarked (ASTM test only) | B54: More than 50% | I54: Manufacturer claims that when Douglas Fir split down from bigger pieces to meet the fuel load size and weight requirements, most of the remaining bark falls off. | L54: Debarked (ASTM test only) | M54: More than 50% | T54: Manufacturer claims that when Douglas Fir split down from bigger pieces to meet the fuel load size and weight requirements, most of the remaining bark falls off. Please refer to EPA MEMO XXXX.
A55: Load density (lb/ft3) | C55: 10.2 | D55: 12 | E55: 11.9 | L55: Load density (lb/ft3) | N55: 10.2 | O55: 12 | P55: 11.9
A56: Fuel moisture content load (%wb) | C56: 22.13 | D56: 20.94 | E56: 21.02 | I56: B avg moisture 21.4 | L56: Fuel moisture content load (%wb) | N56: 22.13 | O56: 20.94 | P56: 21.02 | T56: B avg moisture 21.4
A57: Fuel piece configuration | B57: Within specified limit | L57: Fuel piece configuration | M57: Within specified limit
A58: Owners Manual Req. | B58: Determination | I58: Notes | L58: Owners Manual Req. | M58: Determination | T58: Notes
A59: Stack height | B59: Included | L59: Stack height | M59: Included
A60: Location recommendation | B60: Included | L60: Location recommendation | M60: Included
A61: Guidance on proper draft | B61: Included | L61: Guidance on proper draft | M61: Included
A62: Fuel loading & reloading | B62: Included | L62: Fuel loading & reloading | M62: Included
A63: Fuel selection recomm. | B63: Included | L63: Fuel selection recomm. | M63: Included
A64: Improper fuels warnings | B64: Included | L64: Improper fuels warnings | M64: Included
A65: Fire starting procedures | B65: Included | L65: Fire starting procedures | M65: Included
A66: Proper use of air controls | B66: Included | L66: Proper use of air controls | M66: Included
A67: Proper operation low | B67: Included | L67: Proper operation low | M67: Included
A68: Ash removal procedures | B68: Included | L68: Ash removal procedures | M68: Included
A69: Replacement parts | B69: Included | L69: Replacement parts | M69: Included
A70: Federal warning (C or NC) | B70: Included | L70: Federal warning (C or NC) | M70: Included
A71: Warranty rights | I71: NA | L71: Warranty rights | T71: NA
A72: Catalytst operation | I72: NA | L72: Catalytst operation | T72: NA
A73: Cat maintenance procedures | I73: NA | L73: Cat maintenance procedures | T73: NA
A74: Determining catalyst det. or failure | I74: NA | L74: Determining catalyst det. or failure | T74: NA
A75: Reporting | B75: Determination | I75: Notes | L75: Reporting | M75: Determination | T75: Notes
A76: Summary tables complete | B76: All reported | L76: Summary tables complete | M76: All reported
A77: All run data submitted | B77: All reported | L77: All run data submitted | M77: All reported
A78: Test report complete | B78: Partially reported minor | L78: Test report complete | M78: Partially reported minor
A79: Owner manual complete | B79: All reported | L79: Owner manual complete | M79: All reported
A80: Test dates | B80: 1/8-10/2019 | I80: 1 extra day of testing | L80: Test dates | M80: 1/8-10/2019 | T80: 1 extra day of testing
A81: 30 Day notice submitted to EPA | B81: Cannot be determined | L81: 30 Day notice submitted to EPA | M81: Cannot be determined
A82: Tested on the proposed date | B82: Cannot be determined | L82: Tested on the proposed date | M82: Cannot be determined
A83: Tested in consecutive days | B83: Yes | I83: 3 days of testing, 2 day norm | L83: Tested in consecutive days | M83: Yes | T83: 3 days of testing, 2 day norm
A84: 60 Day report to EPA | B84: Cannot be determined | I84: completed 3/9/2019 | L84: 60 Day report to EPA | M84: Cannot be determined | T84: completed 3/9/2019
A85: EPA additional Review Elements | B85: Determination | I85: Notes | L85: EPA additional Review Elements | M85: Determination | T85: Notes
A86: Test location | L86: Test location
A87: date lab received the unit | L87: date lab received the unit
A88: date first day of conditioning | L88: date first day of conditioning
A89: date first day of testing | L89: date first day of testing
A90: first hour PM emissions reported for all runs | L90: first hour PM emissions reported for all runs
A91: first hour PM emissions reported in grams per hour | L91: first hour PM emissions reported in grams per hour
A92: first hour PM emissions zero or negative | L92: first hour PM emissions zero or negative
A93: first hour PM emissions measured with front and back filter | L93: first hour PM emissions measured with front and back filter
A94: Zero CO emission reported | L94: Zero CO emission reported
A95: Any incomplete runs | L95: Any incomplete runs
A96: Preburn data reported (SU/High-3053, preburn M28R) | L96: Preburn data reported (SU/High-3053, preburn M28R)
A97: filter changes during test run | L97: filter changes during test run
A98: filter plugged during test run | L98: filter plugged during test run
A99: What type of filter used | L99: What type of filter used
A100: Back and front filter weighed together (3053 only) | L100: Back and front filter weighed together (3053 only)
A101: Negative probe weight >5% of PM | L101: Negative probe weight >5% of PM
A102: Negative probe value | L102: Negative probe value
A103: Negative room air values | L103: Negative room air values
A104: Ambient background filter data | L104: Ambient background filter data
A105: Proportional sampling | L105: Proportional sampling
A106: Leak check - pre-test leak check reported | L106: Leak check - pre-test leak check reported
A107: Leak check - any filter change | L107: Leak check - any filter change
A108: Leak check - post leak check reported | L108: Leak check - post leak check reported
A109: Dilution tunnel schematic meets ASTM 2515 requirements | L109: Dilution tunnel schematic meets ASTM 2515 requirements
A110: Firebox measurements confirmed with schematic | L110: Firebox measurements confirmed with schematic
A111: number of conditioning hours reported in summary | L111: number of conditioning hours reported in summary
A112: number of conditioning hours with data | L112: number of conditioning hours with data
A113: number of hours at correct conditioning conditions | L113: number of hours at correct conditioning conditions
A114: used lowest air settings for low burn (ASTM 3053) or Cat 1(M28R) | L114: used lowest air settings for low burn (ASTM 3053) or Cat 1(M28R)
A115: Air setting data | B115: Cat 1/Low | C115: Cat 2/Med | D115: Cat 3 | E115: Cat 4/High | F115: FC | G115: CV | L115: Air setting data | M115: Cat 1/Low | N115: Cat 2/Med | O115: Cat 3 | P115: Cat 4/High | Q115: FC | R115: CV
A117: Total number of runs | L117: Total number of runs
A118: run averaging done correctly | L118: run averaging done correctly
A119: which SU/H run used for calculating emissions | L119: which SU/H run used for calculating emissions
A120: Fuel data for all SU/H runs (ASTM 3053) | L120: Fuel data for all SU/H runs (ASTM 3053)
A121: Multiple fuel lengths used | L121: Multiple fuel lengths used
A122: Specific gravity of fuel used (ASTM 3053 only) | E122: Value | L122: Specific gravity of fuel used (ASTM 3053 only) | P122: Value
A123: M28 fuel loaded longest dimension | L123: M28 fuel loaded longest dimension
A124: Calibration data | L124: Calibration data

Sheet Travis-Liberty
A1: Summary of Review
A2: Manufacturer | B2: Travis Industries
A3: Model | B3: Liberty | F3: Control approach | I3: Non-Catalytic
A4: Prelim review recomm. | B4: Disapproved
A5: Red flags | B5: 9 | C5: Orange flags | E5: 3 | F5: Yellow flags | H5: 6
A6: Final Determination | B6: Disapproved | F6: Date: 9/1/2020 | I6: Basis: ESA, ES1, IR, NR
A7: AK List Status | B7: Disapproved List
A8: Testing Information | B8: Determination | I8: Notes
A9: Test method | B9: ASTM E3053 | I9: ATM
A10: Test Lab | B10: OMNI | I10: performed at travis facility
A11: Third-party certifier | B11: OMNI
A12: Report certified | B12: Omni
A13: Test Report Elements | B13: Determination | I13: Notes
A14: Wght Avg PM emissions (g/hr) | B14: 2.5 | D14: PM Highest 1-hr (g/hr) | G14: 8.34
A15: Wght Avg HHV Efficiency (%) | B15: 69.5 | I15: 70
A16: Wght Avg CO (g/hr) | B16: =IFERROR(G16*60,"Not reported") -> 162.78 | D16: Wght Avg CO (g/min) | G16: 2.713
A17: Max heat output (Btu/hr) | B17: 63239 | I17: 63239
A18: Manufacturers Instructions to lab | B18: Reported contradicts owners manual
A19: Firebox vol. test report | B19: 3.65 | I19: 3.65
A20: Firebox dimensions | B20: Not reported | D20: Longest dim. (in) | F20: 24 | G20: Max log length
A21: Firebox calculations | B21: Not reported
A22: Efficiency calculations | B22: Reported
A23: Burn rate calculations | B23: Reported
A24: Raw data sheets | B24: Reported
A25: Conditioning completed by | B25: Not reported
A26: Conditioning data | B26: Not reported
A27: Lab technician notes | B27: Reported
A28: Doc. of run appropriateness | B28: Reported
A29: Doc. of run validity | B29: Reported
A30: Doc. of run anomolies | B30: Reported
A31: Doc. of run burn rates | B31: Reported
A32: Photos of the fuel loaded | B32: Reported
A33: Test Run Data | B33: Determination | I33: Notes
A34: Run # | C34: 1 | D34: 4 | E34: 6
A35: Run Category | C35: Startup & High | D35: Medium | E35: Low
A36: Burn rate (kg/hr) | C36: 4.61 | D36: 1.74 | E36: 1.18
A37: PM emissions by run (g/hr) | C37: 3.81 | D37: 1.4 | E37: 2.94
A38: PM 1-hr filter pull (g/hr) | C38: 3.9 | D38: 8.34 | E38: 6.64
A39: Filter data | C39: yes | D39: yes | E39: yes
A40: Train precision (%) | C40: NR | D40: NR | E40: NR
A41: Negative weights | C41: no | D41: no | E41: no
A42: Negs handled appropriately | B42: No
A43: Heat output by run (Btu/hr) | C43: 63239 | D43: 22845 | E43: 15155
A44: CO by run (g/hr) | C44: 132.61 | D44: 169.29 | E44: 186.47
A45: HHV efficiency (%) | C45: 71.1 | D45: 70 | E45: 68.2
A46: Lowest burn rate tested | B46: Reported
A47: All run data | B47: Reported
A48: Appliance Fueling | B48: Determination | I48: Notes
A49: Fuel species | B49: Douglas Fir
A50: Log length (in) | C50: 17.5 | D50: 17.5 | E50: 17 | I50: 24
A51: Direction of longest dimension | B51: East-West
A52: Log direction for testing | B52: Mixed | I52: N/S on bottom, E/W top, 15" on bottom
A53: Squared (ASTM test only) | B53: More than 50%
A54: Debarked (ASTM test only) | B54: More than 50%
A55: Load density (lb/ft3) | C55: 10.1 | D55: 11.6 | E55: 12.3
A56: Fuel moisture content load (%wb) | C56: 20.27 | D56: 20.79 | E56: 20.29 | I56: A avg moisture 20.5
A57: Fuel piece configuration | B57: Within specified limit
A58: Owners Manual Req. | B58: Determination | I58: Notes
A59: Stack height | B59: Included
A60: Location recommendation | B60: Included
A61: Guidance on proper draft | B61: Included
A62: Fuel loading & reloading | B62: Included
A63: Fuel selection recomm. | B63: Included
A64: Improper fuels warnings | B64: Included
A65: Fire starting procedures | B65: Included
A66: Proper use of air controls | B66: Included
A67: Proper operation low | B67: Included
A68: Ash removal procedures | B68: Included
A69: Replacement parts | B69: Included
A70: Federal warning (C or NC) | B70: Included
A71: Warranty rights | I71: NA
A72: Catalytst operation | I72: NA
A73: Cat maintenance procedures | I73: NA
A74: Determining catalyst det. or failure | I74: NA
A75: Reporting | B75: Determination | I75: Notes
A76: Summary tables complete | B76: All reported
A77: All run data submitted | B77: All reported
A78: Test report complete | B78: Partially reported minor
A79: Owner manual complete | B79: All reported
A80: Test dates | B80: 9/10-12/2019
A81: 30 Day notice submitted to EPA | B81: Cannot be determined
A82: Tested on the proposed date | B82: Cannot be determined
A83: Tested in consecutive days | B83: Yes | I83: three days of testing, 2 day norm
A84: 60 Day report to EPA | B84: Cannot be determined | I84: Report 9/27/2019
A85: EPA additional Review Elements | B85: Determination | I85: Notes
A86: Test location
A87: date lab received the unit
A88: date first day of conditioning
A89: date first day of testing
A90: first hour PM emissions reported for all runs
A91: first hour PM emissions reported in grams per hour
A92: first hour PM emissions zero or negative
A93: first hour PM emissions measured with front and back filter
A94: Zero CO emission reported
A95: Any incomplete runs
A96: Preburn data reported (SU/High-3053, preburn M28R)
A97: filter changes during test run
A98: filter plugged during test run
A99: What type of filter used
A100: Back and front filter weighed together (3053 only)
A101: Negative probe weight >5% of PM
A102: Negative probe value
A103: Negative room air values
A104: Ambient background filter data
A105: Proportional sampling
A106: Leak check - pre-test leak check reported
A107: Leak check - any filter change
A108: Leak check - post leak check reported
A109: Dilution tunnel schematic meets ASTM 2515 requirements
A110: Firebox measurements confirmed with schematic
A111: number of conditioning hours reported in summary
A112: number of conditioning hours with data
A113: number of hours at correct conditioning conditions
A114: used lowest air settings for low burn (ASTM 3053) or Cat 1(M28R)
A115: Air setting data | B115: Cat 1/Low | C115: Cat 2/Med | D115: Cat 3 | E115: Cat 4/High | F115: FC | G115: CV
A117: Total number of runs
A118: run averaging done correctly
A119: which SU/H run used for calculating emissions
A120: Fuel data for all SU/H runs (ASTM 3053)
A121: Multiple fuel lengths used
A122: Specific gravity of fuel used (ASTM 3053 only) | E122: Value
A123: M28 fuel loaded longest dimension
A124: Calibration data

Sheet Travis-42Apex
A1: Summary of Review | L1: Summary of Review
A2: Manufacturer | B2: Travis Industries | L2: Manufacturer | M2: Travis Industries
A3: Model | B3: 42 Apex | F3: Control approach | I3: Catalytic | L3: Model | M3: 42 Apex | Q3: Control approach | T3: Catalytic
A4: Prelim review recomm. | B4: Disapproved | L4: Prelim review recomm. | M4: Disapproved
A5: Red flags | B5: =7+SUMPRODUCT((B14="NR")+(B14="Not reported")+(G14="NR")+(G14="Not reported"))+COUNTIF(B18:H32,"=Not reported")+COUNTIF(B18:H32,"=NR")+COUNTIF(B14,">2")+COUNTIF(G14,">6")+COUNTIF(B21,"=Reported/not matched")+COUNTIF(B39,"=Not reported")+COUNTIF(B42,"=No")+COUNTIF(B46:B47,"=Not reported")+COUNTIF(B49,"=NR")+COUNTIF(B49,"=Not reported")+COUNTIF(B50,"=Not reported")+COUNTIF(B53,"=All")+COUNTIF(B53,"=More than 50%")+COUNTIF(B54,"=More than 50%")+COUNTIF(B55:B57,"=Not within specified limit") -> 17 | C5: Orange flags | E5: =SUMPRODUCT((B15="NR")+(B15="Not reported")+(G16="NR")+(G16="Not reported")+(B17="NR")+(B17="Not reported"))+COUNTIF(B18:H32,"=Partially reported")+COUNTIF(B34:B38,"=Not reported")+COUNTIF(B40:B41,"=Not reported")+COUNTIF(B43:B45,"=Not reported")+COUNTIF(B46,"=Cannot be determined")+COUNTIF(B39,"=Partially reported")+COUNTIF(B49,"=NR")+COUNTIF(B49,"=Not reported")+COUNTIF(B51:B57,"=Not reported")+COUNTIF(B50,"=Partially reported")+IF(AND(C50<>"",F20<>"",C50<5/6*F20),1,0)+IF(AND(D50<>"",F20<>"",D50<5/6*F20),1,0)+IF(AND(E50<>"",F20<>"",E50<5/6*F20),1,0)+IF(AND(F50<>"",F20<>"",F50<5/6*F20),1,0)+IF(AND(G50<>"",F20<>"",G50<5/6*F20),1,0)+IF(AND(H50<>"",F20<>"",H50<5/6*F20),1,0)+COUNTIF(B59:B74,"=Not included")+COUNTIF(B76:B80,"Not reported")+COUNTIF(B76:B80,"=NR")+COUNTIF(B76:B80,"Partially reported major")+COUNTIF(B81:B84,"=No") -> 4 | F5: Yellow flags | H5: 2 | I5: OM not reviewed | L5: Red flags | M5: =7+SUMPRODUCT((M14="NR")+(M14="Not reported")+(R14="NR")+(R14="Not reported"))+COUNTIF(M18:S32,"=Not reported")+COUNTIF(M18:S32,"=NR")+COUNTIF(M14,">2")+COUNTIF(R14,">6")+COUNTIF(M21,"=Reported/not matched")+COUNTIF(M39,"=Not reported")+COUNTIF(M42,"=No")+COUNTIF(M46:M47,"=Not reported")+COUNTIF(M49,"=NR")+COUNTIF(M49,"=Not reported")+COUNTIF(M50,"=Not reported")+COUNTIF(M53,"=All")+COUNTIF(M53,"=More than 50%")+COUNTIF(M54,"=More than 50%")+COUNTIF(M55:M57,"=Not within specified limit") -> 15 | N5: Orange flags | P5: =SUMPRODUCT((M15="NR")+(M15="Not reported")+(R16="NR")+(R16="Not reported")+(M17="NR")+(M17="Not reported"))+COUNTIF(M18:S32,"=Partially reported")+COUNTIF(M34:M38,"=Not reported")+COUNTIF(M40:M41,"=Not reported")+COUNTIF(M43:M45,"=Not reported")+COUNTIF(M46,"=Cannot be determined")+COUNTIF(M39,"=Partially reported")+COUNTIF(M49,"=NR")+COUNTIF(M49,"=Not reported")+COUNTIF(M51:M57,"=Not reported")+COUNTIF(M50,"=Partially reported")+IF(AND(N50<>"",Q20<>"",N50<5/6*Q20),1,0)+IF(AND(O50<>"",Q20<>"",O50<5/6*Q20),1,0)+IF(AND(P50<>"",Q20<>"",P50<5/6*Q20),1,0)+IF(AND(Q50<>"",Q20<>"",Q50<5/6*Q20),1,0)+IF(AND(R50<>"",Q20<>"",R50<5/6*Q20),1,0)+IF(AND(S50<>"",Q20<>"",S50<5/6*Q20),1,0)+COUNTIF(M59:M74,"=Not included")+COUNTIF(M76:M80,"Not reported")+COUNTIF(M76:M80,"=NR")+COUNTIF(M76:M80,"Partially reported major")+COUNTIF(M81:M84,"=No") -> 4 | Q5: Yellow flags | S5: 2 | T5: OM not reviewed
A6: Final Determination | B6: Disapproved | F6: Date: 9/1/2020 | I6: Basis: NTR, IDU, NR, data in question | L6: Final Determination | M6: Disapproved | Q6: Date: 9/1/2020 | T6: Basis: NTR, IDU, NR, data in question
A7: AK List Status | B7: No Determination List | L7: AK List Status
A8: Testing Information | B8: Determination | I8: Notes | L8: Testing Information | M8: Determination | T8: Notes
A9: Test method | B9: ASTM E3053 | I9: Emission data from this test is identical to Travis large flush model but models are different - This was a error on the manufacturers part and has been corrected | L9: Test method | M9: ASTM E3053 | T9: Emission data from this test is identical to Travis large flush model but models are different - This was a error on the manufacturers part and has been corrected
A10: Test Lab | B10: OMNI | L10: Test Lab | M10: OMNI
A11: Third-party certifier | B11: OMNI | L11: Third-party certifier | M11: OMNI
A12: Report certified | B12: Not reported | L12: Report certified | M12: Not reported
A13: Test Report Elements | B13: Determination | I13: Notes | L13: Test Report Elements | M13: Determination | T13: Notes
A14: Wght Avg PM emissions (g/hr) | B14: 0.93 | D14: PM Highest 1-hr (g/hr) | G14: 3.25 | L14: Wght Avg PM emissions (g/hr) | M14: 0.93 | O14: PM Highest 1-hr (g/hr) | R14: 3.25
A15: Wght Avg HHV Efficiency (%) | B15: 73.08 | L15: Wght Avg HHV Efficiency (%) | M15: 73.08 | T15: 73
A16: Wght Avg CO (g/hr) | B16: =IFERROR(G16*60,"Not reported") -> 36.048 | D16: Wght Avg CO (g/min) | G16: 0.6008 | L16: Wght Avg CO (g/hr) | M16: =IFERROR(R16*60,"Not reported") -> 36.048 | O16: Wght Avg CO (g/min) | R16: 0.6008
A17: Max heat output (Btu/hr) | B17: 49626 | L17: Max heat output (Btu/hr) | M17: 49626 | T17: 49626
A18: Manufacturers Instructions to lab | B18: Not reported | I18: manufacturer reported on pg.20-22 | L18: Manufacturers Instructions to lab | M18: Reported contradicts owners manual
A19: Firebox vol. test report | B19: 3.2 | L19: Firebox vol. test report | M19: 3.2 | T19: 3.5
A20: Firebox dimensions | B20: Not reported | D20: Longest dim. (in) | F20: 24 | G20: Max log length | I20: Manufacturer provided schematic although no width can be determined from drawings. | L20: Firebox dimensions | M20: Not reported | O20: Longest dim. (in) | Q20: 24 | R20: Max log length | T20: Manufacturer provided schematic although ADEC cannot determine appropriate dimensions from data provided.
A21: Firebox calculations | B21: Not reported | I21: manufacturer supplied appliance drawings but did not included calculations in report | L21: Firebox calculations | M21: Reported/not matched | T21: Calculations are a required reporting element and must be reported to ensure accuracy.
A22: Efficiency calculations | B22: Not reported | L22: Efficiency calculations | M22: Not reported
A23: Burn rate calculations | B23: Not reported | I23: Manufacturer- states this is located on pg 99 of report | L23: Burn rate calculations | M23: Partially reported | T23: Actual calculations not supplied only equations and raw data
A24: Raw data sheets | B24: Reported | I24: Supplied on page 38 of report | L24: Raw data sheets | M24: Reported
A25: Conditioning completed by | B25: Not reported | L25: Conditioning completed by | M25: Not reported
A26: Conditioning data | B26: Not reported | I26: Manufacturer states "there is no preburn in a ASTM E3053 test series" | L26: Conditioning data | M26: Not reported | T26: Manufacturer states "there is no preburn in a ASTM E3053 test series" -Can be referred to as aging and conditioning
A27: Lab technician notes | B27: Not reported | I27: Supplied on page 56 of report | L27: Lab technician notes | M27: Reported
A28: Doc. of run appropriateness | B28: Reported | I28: intial review error corrected information found on pg 6 of report | L28: Doc. of run appropriateness | M28: Reported
A29: Doc. of run validity | B29: Reported | L29: Doc. of run validity | M29: Reported
A30: Doc. of run anomolies | B30: Reported | L30: Doc. of run anomolies | M30: Reported
A31: Doc. of run burn rates | B31: Reported | L31: Doc. of run burn rates | M31: Reported
A32: Photos of the fuel loaded | B32: Reported | L32: Photos of the fuel loaded | M32: Reported
A33: Test Run Data | B33: Determination | I33: Notes | L33: Test Run Data | M33: Determination | T33: Notes
A34: Run # | C34: 1 | D34: 2 | E34: 3 | L34: Run # | N34: 1 | O34: 2 | P34: 3
A35: Run Category | C35: Startup & High | D35: Low | E35: Medium | L35: Run Category | N35: Startup & High | O35: Low | P35: Medium
A36: Burn rate (kg/hr) | C36: 3.78 | D36: 0.97 | E36: 1.14 | L36: Burn rate (kg/hr) | N36: 3.78 | O36: 0.97 | P36: 1.14
A37: PM emissions by run (g/hr) | C37: 2.62 | D37: 0.43 | E37: 0.58 | L37: PM emissions by run (g/hr) | N37: 2.62 | O37: 0.43 | P37: 0.58
A38: PM 1-hr filter pull (g/hr) | C38: 3.25 | D38: 0.27 | E38: -0.77 | L38: PM 1-hr filter pull (g/hr) | N38: 3.25 | O38: 0.27 | P38: -0.77
A39: Filter data | C39: NR | D39: NR | E39: NR | L39: Filter data | N39: NR | O39: NR | P39: NR
A40: Train precision (%) | C40: NR | D40: NR | E40: NR | L40: Train precision (%) | N40: NR | O40: NR | P40: NR
A41: Negative weights | C41: NR | D41: NR | E41: NR | L41: Negative weights | N41: NR | O41: NR | P41: NR
A42: Negs handled appropriately | B42: Not reported | L42: Negs handled appropriately | M42: Not reported
A43: Heat output by run (Btu/hr) | C43: 49626 | D43: 13537 | E43: 15840 | L43: Heat output by run (Btu/hr) | N43: 49626 | O43: 13537 | P43: 15840
A44: CO by run (g/hr) | C44: 20.05 | D44: 55.79 | E44: 32.31 | L44: CO by run (g/hr) | N44: 20.05 | O44: 55.79 | P44: 32.31
A45: HHV efficiency (%) | C45: 68 | D45: 74.6 | E45: 74.1 | L45: HHV efficiency (%) | N45: 68 | O45: 74.6 | P45: 74.1
A46: Lowest burn rate tested | L46: Lowest burn rate tested | M46: Reported
A47: All run data | L47: All run data | M47: Not reported | T47: Missing SU/H data for second day of testing required to determine compliance with test method.
A48: Appliance Fueling | B48: Determination | I48: Notes | L48: Appliance Fueling | M48: Determination | T48: Notes
A49: Fuel species | B49: Douglas Fir | L49: Fuel species | M49: Douglas Fir
A50: Log length (in) | C50: 15 | D50: 15 | E50: 15 | L50: Log length (in) | N50: 15 | O50: 15 | P50: 15 | T50: 24
A51: Direction of longest dimension | B51: East-West | L51: Direction of longest dimension | M51: East-West
A52: Log direction for testing | B52: Mixed | L52: Log direction for testing | M52: Mixed
A53: Squared (ASTM test only) | B53: More than 50% | I53: Manufacturer petitions that M28r uses milled wood and the wood for this test was prepared via the requirements of 3053 | L53: Squared (ASTM test only) | M53: More than 50% | T53: Manufacturer petitions that M28r uses milled wood and the wood for this test was prepared via the requirements of 3053
A54: Debarked (ASTM test only) | B54: More than 50% | I54: Manufacture petitions that the bark on doug fir falls off when dry | L54: Debarked (ASTM test only) | M54: More than 50% | T54: Manufacture petitions that the bark on doug fir falls off when dry
A55: Load density (lb/ft3) | C55: 9.96 | D55: 12.3 | E55: 11.84 | L55: Load density (lb/ft3) | N55: 9.96 | O55: 12.3 | P55: 11.84
A56: Fuel moisture content load (%wb) | C56: 20.5 | D56: 20.7 | E56: 22.6 | L56: Fuel moisture content load (%wb) | N56: 20.5 | O56: 20.7 | P56: 22.6
A57: Fuel piece configuration | B57: Within specified limit | L57: Fuel piece configuration | M57: Within specified limit
A58: Owners Manual Req. | B58: Determination | I58: Notes | L58: Owners Manual Req. | M58: Determination | T58: Notes
A59: Stack height | L59: Stack height
A60: Location recommendation | L60: Location recommendation
A61: Guidance on proper draft | L61: Guidance on proper draft
A62: Fuel loading & reloading | L62: Fuel loading & reloading
A63: Fuel selection recomm. | L63: Fuel selection recomm.
A64: Improper fuels warnings | L64: Improper fuels warnings
A65: Fire starting procedures | L65: Fire starting procedures
A66: Proper use of air controls | L66: Proper use of air controls
A67: Proper operation low | L67: Proper operation low
A68: Ash removal procedures | L68: Ash removal procedures
A69: Replacement parts | L69: Replacement parts
A70: Federal warning (C or NC) | L70: Federal warning (C or NC)
A71: Warranty rights | L71: Warranty rights
A72: Catalytst operation | L72: Catalytst operation
A73: Cat maintenance procedures | L73: Cat maintenance procedures
A74: Determining catalyst det. or failure | L74: Determining catalyst det. or failure
A75: Reporting | B75: Determination | I75: Notes | L75: Reporting | M75: Determination | T75: Notes
A76: Summary tables complete | L76: Summary tables complete
A77: All run data submitted | L77: All run data submitted
A78: Test report complete | L78: Test report complete
A79: Owner manual complete | L79: Owner manual complete
A80: Test dates | L80: Test dates
A81: 30 Day notice submitted to EPA | B81: No | I81: not addressed in response | L81: 30 Day notice submitted to EPA | M81: Cannot be determined | T81: not addressed in response
A82: Tested on the proposed date | B82: Cannot be determined | I82: not addressed in response | L82: Tested on the proposed date | M82: Cannot be determined | T82: not addressed in response
A83: Tested in consecutive days | B83: Yes | L83: Tested in consecutive days | M83: Yes
A84: 60 Day report to EPA | B84: Yes | L84: 60 Day report to EPA | M84: Cannot be determined
A85: EPA additional Review Elements | B85: Determination | I85: Notes | L85: EPA additional Review Elements | M85: Determination | T85: Notes
A86: Test location | L86: Test location
A87: date lab received the unit | L87: date lab received the unit
A88: date first day of conditioning | L88: date first day of conditioning
A89: date first day of testing | L89: date first day of testing
A90: first hour PM emissions reported for all runs | L90: first hour PM emissions reported for all runs
A91: first hour PM emissions reported in grams per hour | L91: first hour PM emissions reported in grams per hour
A92: first hour PM emissions zero or negative | L92: first hour PM emissions zero or negative
A93: first hour PM emissions measured with front and back filter | L93: first hour PM emissions measured with front and back filter
A94: Zero CO emission reported | L94: Zero CO emission reported
A95: Any incomplete runs | L95: Any incomplete runs
A96: Preburn data reported (SU/High-3053, preburn M28R) | L96: Preburn data reported (SU/High-3053, preburn M28R)
A97: filter changes during test run | L97: filter changes during test run
A98: filter plugged during test run | L98: filter plugged during test run
A99: What type of filter used | L99: What type of filter used
A100: Back and front filter weighed together (3053 only) | L100: Back and front filter weighed together (3053 only)
A101: Negative probe weight >5% of PM | L101: Negative probe weight >5% of PM
A102: Negative probe value | L102: Negative probe value
A103: Negative room air values | L103: Negative room air values
A104: Ambient background filter data | L104: Ambient background filter data
A105: Proportional sampling | L105: Proportional sampling
A106: Leak check - pre-test leak check reported | L106: Leak check - pre-test leak check reported
